Workbook

Sheet About BRC HyPerTool
A1: North Carolina Long-Term Bioretention Hydrologic Performance Tool
A3: LONG-TERM MODELING OF BIORETENTION HYDROLOGY WITH DRAINMOD
B4: Developed by: Drs. Robert A. Brown, William F. Hunt, and R. Wayne Skaggs
B5: Department of Biological and Agricultural Engineering
B6: North Carolina State University, Raleigh, North Carolina
B7: Contact: Dr. William (Bill) F. Hunt, 919-515-6715, bill_hunt@ncsu.edu
A8: Funded by: Water Resources Research Institute (WRRI) of the University of North Carolina
B10: INTRODUCTION
B11: Previous bioretention design standards in North Carolina relied upon capture and treatment of a specific water quality volume. This "one size fits all" approach, while conservative, does not allow designers and regulators to assess the average annual performance of bioretention cells with varying design features. DRAINMOD allows for accurate long-term prediction of bioretention hydrology by simulating drainage system designs under complex saturated and unsaturated conditions using real weather data. Output from DRAINMOD simulations of various bioretention designs for the state of North Carolina are provided in this model.
B20: MODEL APPLICATIONS
B21: The North Carolina Long-Term Bioretention Hydrologic Performance Tool (HyPerTool) may be used to estimate the hydrologic and water quality functions of bioretention cells with specific hydraulic design features. Analysis is performed on an arbitrary bioretention system containing the NCDENR (2009) recommended soil media. Designs can be optimized for project constraints by adjusting the depth of soil media, internal water storage (IWS), average surface ponding depth, and surface storge volume (relative to the water quality volume).
J26: Project Partners
B29: MODEL LIMITATIONS
B30: This model may be used as a tool to analyze bioretention performance, however, all models are approximations of reality; users should understand the inherent error associated with the model output (see Brown et al., 2011 for model details). Only realistic drainage system configurations were modeled (e.g. two-foot-deep cells built in hydrologic soil group D were not modeled because this design will not meet water quantity/quality goals).
B37: REFERENCES
B38: Model
B39: Brown, R.A., Hunt, W.F., and Skaggs, R.W. 2011. "Long-term Modeling of Bioretention Hydrology with DRAINMOD." Project #70255. Water Resources Research Institute of the University of North Carolina, N.C. State University, Raleigh, N.C., 1-113. (Submitted).
B44: Average Runoff Nutrient Concentrations
B45: Barrett, M. E., P. Kearfott, and J. F. Malina, Jr. 2006. Stormwater quality benefits of a porous friction course and its effect on pollutant removal by roadside shoulders. Water Environment Research. 78(11):2177-2185.
B48: Passeport, E., and W.F. Hunt. 2009a. "Asphalt Parking Lot Runoff Nutrient Characterization for Eight Sites in North Carolina, USA." Journal of Environmental Engineering. 14(4): 352-361.
B52: Average Bioretetion Drainage Effluent Concentrations
B53: Brown, R.A. and W.F. Hunt.Underdrain Configuration to Enhance Bioretention Exfiltration to Reduce Pollutant Loads. Journal of Environmental Engineering. (in press - November 2011).
B56: Hunt, W.F. Smith, J.T., Jadlocki, S.J., Hathaway, J.M., Eubanks, P.R. 2008. Pollutant Removal and Peak Flow Mitigation by a Bioretention Cell in Urban Charlotte, N.C. Journal of Environmental Engineering, 134(5), 403-408.
B59: Line, D. E. and Hunt, W.F. 2009. Performance of a bioretention area and a level spreader-grass filter strip at two highway sites in north carolina. Journal of Irrigation and Drainage Engineering, 135(2): 217-224.
B62: Passeport, E., Hunt, W.F., Line, D.E., Smith, R.A., and Brown. R.A. 2009b. Field study of the ability of two grassed bioretention cells to reduce storm-water runoff pollution. Journal of Irrigation and Drainage Engineering, 135(4): 505-510.
B65: Sharkey, L.J. (2006). “The Performance of Bioretention Areas in North Carolina: A Study of Water Quality, Water Quantity, and Soil Media.” M.S. thesis. Raleigh, NC: North Carolina State University, Biological and Agricultural Engineering.

Sheet BRC HyPerTool
A1: North Carolina Long-Term Bioretention Hydrologic Performance Tool
A2: DESIGN INPUT PARAMETERS | M2: NOTES
A3: Units
A4: Hydrologic Soil Group
A5: Soil Media Depth | C5: =IF(B3="SI",IF(OR(AND(OR(B4="C",B4="D"),B5=0.6),AND(OR(B4="A",B4="B",B4="C"),B5=1.5)),"PLEASE UPDATE!","m"),IF(OR(AND(OR(B4="C",B4="D"),B5=2),AND(OR(B4="A",B4="B",B4="C"),B5=5)),"PLEASE UPDATE!","ft")) -> ft
A6: Depth to IWS | C6: =IF(B3="SI",IF(OR(AND(OR(B4="D",B4="C"),B6=30),AND(OR(B4="A",B4="B"),B6=45)),"PLEASE UPDATE!","cm"),IF(OR(AND(OR(B4="D",B4="C"),B6=1),AND(OR(B4="A",B4="B"),B6=1.5)),"PLEASE UPDATE!","ft")) -> ft
A7: Average Surface Ponding | C7: =IF(B3="SI","cm","in") -> in
A8: Surface Storage Ratio | C8: relative to WQ volume
A9: Drainage Coefficient | C9: =IF(AND(OR(B9=1.3,B9=0.6,B9=40,B9=20),B6="NO IWS"),"PLEASE UPDATE",IF(B3="SI","cm/d","ft/d")) -> ft/d
A10: BRC Area : Drainage Area Ratio | B10: =IF(OR(B7=9,B7=23),(B8*0.11111),IF(OR(B7=12,B7=30),(B8*0.083333),"")) -> 
A11: Factor of Safety | B11: NONE
A13: WATER QUALITY CHARACTERIZATION
A14: Runoff Avg TN Conc. | B14: 1.63 | C14: mg/L
A15: Drainage Avg TN Conc. | B15: 0.9 | C15: mg/L
A16: Runoff Avg TP Conc. | B16: 0.19 | C16: mg/L
A17: Drainage Avg TP Conc. | B17: 0.14 | C17: mg/L
A19: DESIGN OUTPUT PARAMETERS
A20: Maximum Subgrade Ksat | B20: =IF(ISNA(IF(B3="SI",HLOOKUP(B4,All_Simulations!B1:E2,2),HLOOKUP(B4,All_Simulations!B1:E3,3))),"",(IF(B3="SI",HLOOKUP(B4,All_Simulations!B1:E2,2),HLOOKUP(B4,All_Simulations!B1:E3,3)))) ->  | C20: =IF(B3="SI","cm/hr","in/hr") -> in/hr
A22: HYDROLOGY | B22: =IF(B3="SI","Total (cm/yr)","Total (in/yr)") -> Total (in/yr) | C22: Percent of Total
A23: Runoff | B23: =IF(B3="SI",IF(ISNA(INDEX(RAINFALL,MATCH('BRC HyPerTool'!$B4&'BRC HyPerTool'!$B5&'BRC HyPerTool'!$B7&All_Simulations!$W3&'BRC HyPerTool'!$B6&'BRC HyPerTool'!$B9,SOILTYPE&MEDIADEPTHSI&SURFSTORAGE&AREARATION&TOPIWS&DRAINAGECOEFF,0))),"",(INDEX(RAINFALL,MATCH('BRC HyPerTool'!$B4&'BRC HyPerTool'!$B5&'BRC HyPerTool'!$B7&All_Simulations!$W3&'BRC HyPerTool'!$B6&'BRC HyPerTool'!$B9,SOILTYPE&MEDIADEPTHSI&SURFSTORAGE&AREARATION&TOPIWS&DRAINAGECOEFF,0)))),IF(ISNA(INDEX(RAINFALL,MATCH('BRC HyPerTool'!$B4&'BRC HyPerTool'!$B5&'BRC HyPerTool'!$B7&All_Simulations!$W3&'BRC HyPerTool'!$B6&'BRC HyPerTool'!$B9,SOILTYPE&MEDIADEPTH&SURFSTORAGEENG&AREARATION&TOPIWSENG&DCENG,0))),"",((INDEX(RAINFALL,MATCH('BRC HyPerTool'!$B4&'BRC HyPerTool'!$B5&'BRC HyPerTool'!$B7&All_Simulations!$W3&'BRC HyPerTool'!$B6&'BRC HyPerTool'!$B9,SOILTYPE&MEDIADEPTH&SURFSTORAGEENG&AREARATION&TOPIWSENG&DCENG,0)))/2.54))) -> 
A24: ET | B24: =IF(B3="SI",IF(ISNA(INDEX(ET,MATCH('BRC HyPerTool'!$B4&'BRC HyPerTool'!$B5&'BRC HyPerTool'!$B7&All_Simulations!$W3&'BRC HyPerTool'!$B6&'BRC HyPerTool'!$B9,SOILTYPE&MEDIADEPTHSI&SURFSTORAGE&AREARATION&TOPIWS&DRAINAGECOEFF,0))),"",IF(B11="NONE",(INDEX(ET,MATCH('BRC HyPerTool'!$B4&'BRC HyPerTool'!$B5&'BRC HyPerTool'!$B7&All_Simulations!$W3&'BRC HyPerTool'!$B6&'BRC HyPerTool'!$B9,SOILTYPE&MEDIADEPTHSI&SURFSTORAGE&AREARATION&TOPIWS&DRAINAGECOEFF,0))),(INDEX(ET_10,MATCH('BRC HyPerTool'!$B4&'BRC HyPerTool'!$B5&'BRC HyPerTool'!$B7&All_Simulations!$W3&'BRC HyPerTool'!$B6&'BRC HyPerTool'!$B9,SOILTYPE&MEDIADEPTHSI&SURFSTORAGE&AREARATION&TOPIWS&DRAINAGECOEFF,0))))),IF(ISNA(INDEX(ET,MATCH('BRC HyPerTool'!$B4&'BRC HyPerTool'!$B5&'BRC HyPerTool'!$B7&All_Simulations!$W3&'BRC HyPerTool'!$B6&'BRC HyPerTool'!$B9,SOILTYPE&MEDIADEPTH&SURFSTORAGEENG&AREARATION&TOPIWSENG&DCENG,0))),"",IF(B11="NONE",(INDEX(ET,MATCH('BRC HyPerTool'!$B4&'BRC HyPerTool'!$B5&'BRC HyPerTool'!$B7&All_Simulations!$W3&'BRC HyPerTool'!$B6&'BRC HyPerTool'!$B9,SOILTYPE&MEDIADEPTH&SURFSTORAGEENG&AREARATION&TOPIWSENG&DCENG,0)))/2.54,(INDEX(ET_10,MATCH('BRC HyPerTool'!$B4&'BRC HyPerTool'!$B5&'BRC HyPerTool'!$B7&All_Simulations!$W3&'BRC HyPerTool'!$B6&'BRC HyPerTool'!$B9,SOILTYPE&MEDIADEPTH&SURFSTORAGEENG&AREARATION&TOPIWSENG&DCENG,0)))/2.54))) ->  | C24: =IF(B24="","",B24/$B$23) -> 
A25: Overflow | B25: =IF(B3="SI",IF(ISNA(INDEX(RUNOFF,MATCH('BRC HyPerTool'!$B4&'BRC HyPerTool'!$B5&'BRC HyPerTool'!$B7&All_Simulations!$W3&'BRC HyPerTool'!$B6&'BRC HyPerTool'!$B9,SOILTYPE&MEDIADEPTHSI&SURFSTORAGE&AREARATION&TOPIWS&DRAINAGECOEFF,0))),"",IF(B11="NONE",(INDEX(RUNOFF,MATCH('BRC HyPerTool'!$B4&'BRC HyPerTool'!$B5&'BRC HyPerTool'!$B7&All_Simulations!$W3&'BRC HyPerTool'!$B6&'BRC HyPerTool'!$B9,SOILTYPE&MEDIADEPTHSI&SURFSTORAGE&AREARATION&TOPIWS&DRAINAGECOEFF,0))),(INDEX(Runoff10,MATCH('BRC HyPerTool'!$B4&'BRC HyPerTool'!$B5&'BRC HyPerTool'!$B7&All_Simulations!$W3&'BRC HyPerTool'!$B6&'BRC HyPerTool'!$B9,SOILTYPE&MEDIADEPTHSI&SURFSTORAGE&AREARATION&TOPIWS&DRAINAGECOEFF,0))))),IF(ISNA(INDEX(RUNOFF,MATCH('BRC HyPerTool'!$B4&'BRC HyPerTool'!$B5&'BRC HyPerTool'!$B7&All_Simulations!$W3&'BRC HyPerTool'!$B6&'BRC HyPerTool'!$B9,SOILTYPE&MEDIADEPTH&SURFSTORAGEENG&AREARATION&TOPIWSENG&DCENG,0))),"",IF(B11="NONE",(INDEX(RUNOFF,MATCH('BRC HyPerTool'!$B4&'BRC HyPerTool'!$B5&'BRC HyPerTool'!$B7&All_Simulations!$W3&'BRC HyPerTool'!$B6&'BRC HyPerTool'!$B9,SOILTYPE&MEDIADEPTH&SURFSTORAGEENG&AREARATION&TOPIWSENG&DCENG,0)))/2.54,(INDEX(Runoff10,MATCH('BRC HyPerTool'!$B4&'BRC HyPerTool'!$B5&'BRC HyPerTool'!$B7&All_Simulations!$W3&'BRC HyPerTool'!$B6&'BRC HyPerTool'!$B9,SOILTYPE&MEDIADEPTH&SURFSTORAGEENG&AREARATION&TOPIWSENG&DCENG,0)))/2.54))) ->  | C25: =IF(B25="","",B25/$B$23) -> 
A26: Exfiltration | B26: =IF(B3="SI",IF(ISNA(INDEX(VertSeepage,MATCH('BRC HyPerTool'!$B4&'BRC HyPerTool'!$B5&'BRC HyPerTool'!$B7&All_Simulations!$W3&'BRC HyPerTool'!$B6&'BRC HyPerTool'!$B9,SOILTYPE&MEDIADEPTHSI&SURFSTORAGE&AREARATION&TOPIWS&DRAINAGECOEFF,0))),"",IF(B11="NONE",(INDEX(VertSeepage,MATCH('BRC HyPerTool'!$B4&'BRC HyPerTool'!$B5&'BRC HyPerTool'!$B7&All_Simulations!$W3&'BRC HyPerTool'!$B6&'BRC HyPerTool'!$B9,SOILTYPE&MEDIADEPTHSI&SURFSTORAGE&AREARATION&TOPIWS&DRAINAGECOEFF,0))),(INDEX(VertSeepage10,MATCH('BRC HyPerTool'!$B4&'BRC HyPerTool'!$B5&'BRC HyPerTool'!$B7&All_Simulations!$W3&'BRC HyPerTool'!$B6&'BRC HyPerTool'!$B9,SOILTYPE&MEDIADEPTHSI&SURFSTORAGE&AREARATION&TOPIWS&DRAINAGECOEFF,0))))),IF(ISNA(INDEX(VertSeepage,MATCH('BRC HyPerTool'!$B4&'BRC HyPerTool'!$B5&'BRC HyPerTool'!$B7&All_Simulations!$W3&'BRC HyPerTool'!$B6&'BRC HyPerTool'!$B9,SOILTYPE&MEDIADEPTH&SURFSTORAGEENG&AREARATION&TOPIWSENG&DCENG,0))),"",IF(B11="NONE",(INDEX(VertSeepage,MATCH('BRC HyPerTool'!$B4&'BRC HyPerTool'!$B5&'BRC HyPerTool'!$B7&All_Simulations!$W3&'BRC HyPerTool'!$B6&'BRC HyPerTool'!$B9,SOILTYPE&MEDIADEPTH&SURFSTORAGEENG&AREARATION&TOPIWSENG&DCENG,0)))/2.54,(INDEX(VertSeepage10,MATCH('BRC HyPerTool'!$B4&'BRC HyPerTool'!$B5&'BRC HyPerTool'!$B7&All_Simulations!$W3&'BRC HyPerTool'!$B6&'BRC HyPerTool'!$B9,SOILTYPE&MEDIADEPTH&SURFSTORAGEENG&AREARATION&TOPIWSENG&DCENG,0)))/2.54))) ->  | C26: =IF(B26="","",B26/$B$23) -> 
A27: Drainage | B27: =IF(B3="SI",IF(ISNA(INDEX(DRAINAGE,MATCH('BRC HyPerTool'!$B4&'BRC HyPerTool'!$B5&'BRC HyPerTool'!$B7&All_Simulations!$W3&'BRC HyPerTool'!$B6&'BRC HyPerTool'!$B9,SOILTYPE&MEDIADEPTHSI&SURFSTORAGE&AREARATION&TOPIWS&DRAINAGECOEFF,0))),"",IF(B11="NONE",(INDEX(DRAINAGE,MATCH('BRC HyPerTool'!$B4&'BRC HyPerTool'!$B5&'BRC HyPerTool'!$B7&All_Simulations!$W3&'BRC HyPerTool'!$B6&'BRC HyPerTool'!$B9,SOILTYPE&MEDIADEPTHSI&SURFSTORAGE&AREARATION&TOPIWS&DRAINAGECOEFF,0))),(INDEX(Drainage10,MATCH('BRC HyPerTool'!$B4&'BRC HyPerTool'!$B5&'BRC HyPerTool'!$B7&All_Simulations!$W3&'BRC HyPerTool'!$B6&'BRC HyPerTool'!$B9,SOILTYPE&MEDIADEPTHSI&SURFSTORAGE&AREARATION&TOPIWS&DRAINAGECOEFF,0))))),IF(ISNA(INDEX(DRAINAGE,MATCH('BRC HyPerTool'!$B4&'BRC HyPerTool'!$B5&'BRC HyPerTool'!$B7&All_Simulations!$W3&'BRC HyPerTool'!$B6&'BRC HyPerTool'!$B9,SOILTYPE&MEDIADEPTH&SURFSTORAGEENG&AREARATION&TOPIWSENG&DCENG,0))),"",IF(B11="NONE",(INDEX(DRAINAGE,MATCH('BRC HyPerTool'!$B4&'BRC HyPerTool'!$B5&'BRC HyPerTool'!$B7&All_Simulations!$W3&'BRC HyPerTool'!$B6&'BRC HyPerTool'!$B9,SOILTYPE&MEDIADEPTH&SURFSTORAGEENG&AREARATION&TOPIWSENG&DCENG,0)))/2.54,(INDEX(Drainage10,MATCH('BRC HyPerTool'!$B4&'BRC HyPerTool'!$B5&'BRC HyPerTool'!$B7&All_Simulations!$W3&'BRC HyPerTool'!$B6&'BRC HyPerTool'!$B9,SOILTYPE&MEDIADEPTH&SURFSTORAGEENG&AREARATION&TOPIWSENG&DCENG,0)))/2.54))) ->  | C27: =IF(B27="","",B27/$B$23) -> 
A29: VOLUME REDUCTION | B29: =IF(B23="","",(B23-B25-B27)/B23) -> 
A30: TREATS 90% OF RUNOFF? | B30: =IF(B23="","",IF(C25>10%,"NO","YES")) -> 
A32: WATER QUALITY | B32: =IF(B3="SI","Total (kg/ha-yr)","Total (lb/ac-yr)") -> Total (lb/ac-yr) | C32: Percent Reduction
A33: Influent Avg Total N | B33: =IF(B3="SI",IF(B23="","",(B23*(B10))*1.63/10),IF(B23="","",(B23*(B10))*1.63*2.54*0.8922/10)) -> 
A34: Effluent Avg Total N | B34: =IF(B3="SI",IF(B23="","",(B25*B10*1.63/10)+(B27*B10*0.9/10)),IF(B23="","",(B25*B10*1.63*2.54*0.8922/10)+(B27*B10*0.9*2.54*0.8922/10))) ->  | C34: =IF(B23="","",(B33-B34)/B33) -> 
A35: Influent Avg Total P | B35: =IF(B3="SI",IF(B23="","",B23*(B10)*0.19/10),IF(B23="","",B23*(B10)*0.19*2.54*0.8922/10)) -> 
A36: Effluent Avg Total P | B36: =IF(B3="SI",IF(B23="","",(B25*B10*0.19/10)+(B27*B10*0.14/10)),IF(B23="","",(B25*B10*0.19*2.54*0.8922/10)+(B27*B10*0.14*2.54*0.8922/10))) ->  | C36: =IF(B23="","",(B35-B36)/B35) -> 
E49: Created by: | F49: Drs. Robert A. Brown, William F. Hunt, and R. Wayne Skaggs, NCSU, 2011
E50: Contact: | F50: Dr. William (Bill) F. Hunt, 919-515-6715, bill_hunt@ncsu.edu
E51: Funding by: | F51: Water Resources Research Institute (WRRI) of the University of North Carolina
E52: References: | F52: Model: Brown et al., 2011. Influent Concentrations: Passeport and Hunt, 2009a. Effluent Concentrations: Barrett et al., 2006; Brown and Hunt, 2011; Hunt et al., 2008; Li et al., 2009; Line and Hunt, 2009; Passeport et al., 2009b; Sharkey, 2006.

Sheet All_Simulations (hidden)
A1: Soil Type | B1: A | C1: B | D1: C | E1: D | G1: 1-ac 100% imp. Drainage area | I1: Drain Area Ratio | Q1: Variable Selection Lists
A2: Ksat (cm/hr) | B2: 3 | C2: 0.35 | D2: 0.05 | E2: 0.005 | G2: Surf. Stor | H2: Relative to 100% | I2: 0.5 | J2: 0.75 | K2: 1 | L2: 1.25 | M2: 1.5 | N2: 2 | Q2: Factors of Safety | R2: Units | S2: Media Depth | T2: Ponding | U2: Depth to IWS | V2: DC
A3: Ksat (in/hr) | B3: =ROUND(B2/2.54,2) -> 1.18 | C3: =ROUND(C2/2.54,2) -> 0.14 | D3: =(ROUND(D2/2.54,3)) -> 0.02 | E3: =ROUND(E2/2.54,4) -> 0.002 | F3: 12 | G3: 30 cm | H3: 14 | I3: =$H$3/I2 -> 28 | J3: =ROUND($H$3/J2,1) -> 18.7 | K3: =$H$3/K2 -> 14 | L3: =$H$3/L2 -> 11.2 | M3: =ROUND($H$3/M2,1) -> 9.3 | N3: =$H$3/N2 -> 7 | O3: 14 | Q3: Safety | R3: Units | S3: Media | T3: Ponding | U3: IWS | V3: DC | W3: =IF('BRC HyPerTool'!B3="SI",IF(ISNA(IF('BRC HyPerTool'!B7=23,LOOKUP('BRC HyPerTool'!B8,Area_Ratio,All_Simulations!I4:N4),LOOKUP('BRC HyPerTool'!B8,Area_Ratio,All_Simulations!I3:N3))),"",(IF('BRC HyPerTool'!B7=23,LOOKUP('BRC HyPerTool'!B8,Area_Ratio,All_Simulations!I4:N4),LOOKUP('BRC HyPerTool'!B8,Area_Ratio,All_Simulations!I3:N3)))),IF(ISNA(IF('BRC HyPerTool'!B7=9,LOOKUP('BRC HyPerTool'!B8,Area_Ratio,All_Simulations!I4:N4),LOOKUP('BRC HyPerTool'!B8,Area_Ratio,All_Simulations!I3:N3))),"",(IF('BRC HyPerTool'!B7=9,LOOKUP('BRC HyPerTool'!B8,Area_Ratio,All_Simulations!I4:N4),LOOKUP('BRC HyPerTool'!B8,Area_Ratio,All_Simulations!I3:N3))))) -> 
F4: 9 | G4: 23 cm | H4: 10.2 | I4: =$H$4/I2 -> 20.4 | J4: 13.6 | K4: 10.2 | L4: =ROUND($H$4/L2,1) -> 8.2 | M4: 6.8 | N4: 5.1 | O4: 10.2 | Q4: NONE | R4: SI | S4: =IF('BRC HyPerTool'!B3="SI",(IF('BRC HyPerTool'!B4="A",0.6,0.9)),(IF('BRC HyPerTool'!B4="A",2,3))) -> 3 | T4: =IF('BRC HyPerTool'!B3="SI",23,9) -> 9 | U4: NO IWS | V4: =IF('BRC HyPerTool'!B3="SI",60,2) -> 2
Q5: 0.1 | R5: English | S5: =IF('BRC HyPerTool'!B3="SI",IF(S4=0.6,0.9,1.2),IF(S4=2,3,4)) -> 4 | T5: =IF('BRC HyPerTool'!B3="SI",30,12) -> 12 | U5: =IF('BRC HyPerTool'!B3="SI",IF(OR('BRC HyPerTool'!B4="A",'BRC HyPerTool'!B4="B"),30,45),IF(OR('BRC HyPerTool'!B4="A",'BRC HyPerTool'!B4="B"),1,1.5)) -> 1.5 | V5: =IF('BRC HyPerTool'!B3="SI",IF('BRC HyPerTool'!B6="NO IWS","",40),IF('BRC HyPerTool'!B6="NO IWS","",1.3)) -> 1.3
S6: =IF('BRC HyPerTool'!B3="SI",IF('BRC HyPerTool'!B4="D",1.5,""),IF('BRC HyPerTool'!B4="D",5,"")) ->  | V6: =IF('BRC HyPerTool'!B3="SI",IF('BRC HyPerTool'!B6="NO IWS","",20),IF('BRC HyPerTool'!B6="NO IWS","",0.6)) -> 0.6
G9: A & B - 1 ft | H9: A & B - 30 cm | J9: Conv - 60
A10: A,B,C, or D | B10: 2, 3, 4, or 5 ft | C10: m | D10: 9 or 12 in | E10: 23 or 30 cm | G10: C & D - 1.5 ft | H10: C & D 45 cm | J10: IWS - 60,40,20 | K10: Runoff | L10: ET | N10: Drainage | P10: Overflow | R10: Exfiltration
A11: Soil Type | B11: Media Depth | C11: Media Depth | D11: Surf Storage | E11: Surf Storage | F11: Area Ratio | G11: Top of IWS | H11: Top of IWS | I11: DC | J11: DC (cm/day) | K11: Rainfall | L11: ET | M11: ET (10%) | N11: Drainage | O11: Drainage (10%) | P11: Runoff | Q11: Overflow (10%) | R11: VertSeepage | S11: Exfilt (10%) | T11: Area Ratio | U11: ET | V11: Drainage | W11: Overflow | X11: Exfiltration
A12: A | B12: 2 | C12: 0.6 | D12: 12 | E12: 30 | F12: 28 | G12: NO IWS | H12: NO IWS | I12: 2 | J12: 60 | K12: 2734 | L12: 100 | M12: =L12*0.9 -> 90 | N12: 1055 | O12: =K12-(M12+Q12+S12) -> 1093.6 | P12: 651 | Q12: =P12*1.1 -> 716.1 | R12: 927 | S12: =0.9*R12 -> 834.3 | T12: 0.5 | U12: =L12/K12 -> 0.03657644477 | V12: =N12/K12 -> 0.3858814923 | W12: =P12/K12 -> 0.2381126554 | X12: =R12/K12 -> 0.339063643
A13: A | B13: 2 | C13: 0.6 | D13: 12 | E13: 30 | F13: 28 | G13: 1 | H13: 30 | I13: 2 | J13: 60 | K13: 2734 | L13: 100 | M13: =L13*0.9 -> 90 | N13: 0 | O13: =K13-(M13+Q13+S13) -> 142.3 | P13: 651 | Q13: =P13*1.1 -> 716.1 | R13: 1984 | S13: =0.9*R13 -> 1785.6 | T13: 0.5 | U13: 0.03657644477 | V13: 0 | W13: 0.2381126554 | X13: 0.7256766642
A14: A | B14: 2 | C14: 0.6 | D14: 12 | E14: 30 | F14: 28 | G14: 1 | H14: 30 | I14: 1.3 | J14: 40 | K14: 2734 | L14: 100 | M14: 90 | N14: 0 | O14: 142.3 | P14: 651 | Q14: 716.1 | R14: 1984 | S14: 1785.6 | T14: 0.5 | U14: 0.03657644477 | V14: 0 | W14: 0.2381126554 | X14: 0.7256766642
A15: A | B15: 2 | C15: 0.6 | D15: 12 | E15: 30 | F15: 28 | G15: 1 | H15: 30 | I15: 0.6 | J15: 20 | K15: 2734 | L15: 100 | M15: 90 | N15: 0 | O15: 142.3 | P15: 651 | Q15: 716.1 | R15: 1984 | S15: 1785.6 | T15: 0.5 | U15: 0.03657644477 | V15: 0 | W15: 0.2381126554 | X15: 0.7256766642
A16: A | B16: 2 | C16: 0.6 | D16: 12 | E16: 30 | F16: 18.7 | G16: NO IWS | H16: NO IWS | I16: 2 | J16: 60 | K16: 1861 | L16: 100 | M16: 90 | N16: 781 | O16: 842.4 | P16: 233 | Q16: 256.3 | R16: 747 | S16: 672.3 | T16: 0.75 | U16: 0.05373455132 | V16: 0.4196668458 | W16: 0.1252015046 | X16: 0.4013970983
A17: A | B17: 2 | C17: 0.6 | D17: 12 | E17: 30 | F17: 18.7 | G17: 1 | H17: 30 | I17: 2 | J17: 60 | K17: 1861 | L17: 100 | M17: 90 | N17: 0 | O17: 138.6 | P17: 233 | Q17: 256.3 | R17: 1529 | S17: 1376.1 | T17: 0.75 | U17: 0.05373455132 | V17: 0 | W17: 0.1252015046 | X17: 0.8216012896
A18: A | B18: 2 | C18: 0.6 | D18: 12 | E18: 30 | F18: 18.7 | G18: 1 | H18: 30 | I18: 1.3 | J18: 40 | K18: 1861 | L18: 100 | M18: 90 | N18: 0 | O18: 138.6 | P18: 233 | Q18: 256.3 | R18: 1529 | S18: 1376.1 | T18: 0.75 | U18: 0.05373455132 | V18: 0 | W18: 0.1252015046 | X18: 0.8216012896
A19: A | B19: 2 | C19: 0.6 | D19: 12 | E19: 30 | F19: 18.7 | G19: 1 | H19: 30 | I19: 0.6 | J19: 20 | K19: 1861 | L19: 100 | M19: 90 | N19: 0 | O19: 138.6 | P19: 233 | Q19: 256.3 | R19: 1529 | S19: 1376.1 | T19: 0.75 | U19: 0.05373455132 | V19: 0 | W19: 0.1252015046 | X19: 0.8216012896
A20: A | B20: 2 | C20: 0.6 | D20: 12 | E20: 30 | F20: 14 | G20: NO IWS | H20: NO IWS | I20: 2 | J20: 60 | K20: 1420 | L20: 100 | M20: 90 | N20: 597 | O20: 659.5 | P20: 99 | Q20: 108.9 | R20: 624 | S20: 561.6 | T20: 1 | U20: 0.07042253521 | V20: 0.4204225352 | W20: 0.06971830986 | X20: 0.4394366197
A21: A | B21: 2 | C21: 0.6 | D21: 12 | E21: 30 | F21: 14 | G21: 1 | H21: 30 | I21: 2 | J21: 60 | K21: 1420 | L21: 100 | M21: 90 | N21: 0 | O21: 121.3 | P21: 99 | Q21: 108.9 | R21: 1222 | S21: 1099.8 | T21: 1 | U21: 0.07042253521 | V21: 0 | W21: 0.06971830986 | X21: 0.8605633803
A22: A | B22: 2 | C22: 0.6 | D22: 12 | E22: 30 | F22: 14 | G22: 1 | H22: 30 | I22: 1.3 | J22: 40 | K22: 1420 | L22: 100 | M22: 90 | N22: 0 | O22: 121.3 | P22: 99 | Q22: 108.9 | R22: 1222 | S22: 1099.8 | T22: 1 | U22: 0.07042253521 | V22: 0 | W22: 0.06971830986 | X22: 0.8605633803
A23: A | B23: 2 | C23: 0.6 | D23: 12 | E23: 30 | F23: 14 | G23: 1 | H23: 30 | I23: 0.6 | J23: 20 | K23: 1420 | L23: 100 | M23: 90 | N23: 0 | O23: 121.3 | P23: 99 | Q23: 108.9 | R23: 1222 | S23: 1099.8 | T23: 1 | U23: 0.07042253521 | V23: 0 | W23: 0.06971830986 | X23: 0.8605633803
A24: A | B24: 2 | C24: 0.6 | D24: 12 | E24: 30 | F24: 11.2 | G24: NO IWS | H24: NO IWS | I24: 2 | J24: 60 | K24: 1158 | L24: 100 | M24: 90 | N24: 471 | O24: 529.9 | P24: 49 | Q24: 53.9 | R24: 538 | S24: 484.2 | T24: 1.25 | U24: 0.08635578584 | V24: 0.4067357513 | W24: 0.04231433506 | X24: 0.4645941278
A25: A | B25: 2 | C25: 0.6 | D25: 12 | E25: 30 | F25: 11.2 | G25: 1 | H25: 30 | I25: 2 | J25: 60 | K25: 1158 | L25: 100 | M25: 90 | N25: 0 | O25: 106 | P25: 49 | Q25: 53.9 | R25: 1009 | S25: 908.1 | T25: 1.25 | U25: 0.08635578584 | V25: 0 | W25: 0.04231433506 | X25: 0.8713298791
A26: A | B26: 2 | C26: 0.6 | D26: 12 | E26: 30 | F26: 11.2 | G26: 1 | H26: 30 | I26: 1.3 | J26: 40 | K26: 1158 | L26: 100 | M26: 90 | N26: 0 | O26: 106 | P26: 49 | Q26: 53.9 | R26: 1009 | S26: 908.1 | T26: 1.25 | U26: 0.08635578584 | V26: 0 | W26: 0.04231433506 | X26: 0.8713298791
A27: A | B27: 2 | C27: 0.6 | D27: 12 | E27: 30 | F27: 11.2 | G27: 1 | H27: 30 | I27: 0.6 | J27: 20 | K27: 1158 | L27: 100 | M27: 90 | N27: 0 | O27: 106 | P27: 49 | Q27: 53.9 | R27: 1009 | S27: 908.1 | T27: 1.25 | U27: 0.08635578584 | V27: 0 | W27: 0.04231433506 | X27: 0.8713298791
A28: A | B28: 2 | C28: 0.6 | D28: 12 | E28: 30 | F28: 9.3 | G28: NO IWS | H28: NO IWS | I28: 2 | J28: 60 | K28: 979 | L28: 99 | M28: 89.1 | N28: 381 | O28: 435.6 | P28: 26 | Q28: 28.6 | R28: 473 | S28: 425.7 | T28: 1.5 | U28: 0.1011235955 | V28: 0.3891726251 | W28: 0.02655771195 | X28: 0.4831460674
A29: A | B29: 2 | C29: 0.6 | D29: 12 | E29: 30 | F29: 9.3 | G29: 1 | H29: 30 | I29: 2 | J29: 60 | K29: 979 | L29: 99 | M29: 89.1 | N29: 0 | O29: 92.7 | P29: 26 | Q29: 28.6 | R29: 854 | S29: 768.6 | T29: 1.5 | U29: 0.1011235955 | V29: 0 | W29: 0.02655771195 | X29: 0.8723186925
A30: A | B30: 2 | C30: 0.6 | D30: 12 | E30: 30 | F30: 9.3 | G30: 1 | H30: 30 | I30: 1.3 | J30: 40 | K30: 979 | L30: 99 | M30: 89.1 | N30: 0 | O30: 92.7 | P30: 26 | Q30: 28.6 | R30: 854 | S30: 768.6 | T30: 1.5 | U30: 0.1011235955 | V30: 0 | W30: 0.02655771195 | X30: 0.8723186925
A31: A | B31: 2 | C31: 0.6 | D31: 12 | E31: 30 | F31: 9.3 | G31: 1 | H31: 30 | I31: 0.6 | J31: 20 | K31: 979 | L31: 99 | M31: 89.1 | N31: 0 | O31: 92.7 | P31: 26 | Q31: 28.6 | R31: 854 | S31: 768.6 | T31: 1.5 | U31: 0.1011235955 | V31: 0 | W31: 0.02655771195 | X31: 0.8723186925
A32: A | B32: 2 | C32: 0.6 | D32: 12 | E32: 30 | F32: 7 | G32: NO IWS | H32: NO IWS | I32: 2 | J32: 60 | K32: 764 | L32: 99 | M32: 89.1 | N32: 269 | O32: 316.5 | P32: 10 | Q32: 11 | R32: 386 | S32: 347.4 | T32: 2 | U32: 0.1295811518 | V32: 0.3520942408 | W32: 0.01308900524 | X32: 0.5052356021
A33: A | B33: 2 | C33: 0.6 | D33: 12 | E33: 30 | F33: 7 | G33: 1 | H33: 30 | I33: 2 | J33: 60 | K33: 764 | L33: 99 | M33: 89.1 | N33: 0 | O33: 74.4 | P33: 10 | Q33: 11 | R33: 655 | S33: 589.5 | T33: 2 | U33: 0.1295811518 | V33: 0 | W33: 0.01308900524 | X33: 0.8573298429
A34: A | B34: 2 | C34: 0.6 | D34: 12 | E34: 30 | F34: 7 | G34: 1 | H34: 30 | I34: 1.3 | J34: 40 | K34: 764 | L34: 99 | M34: 89.1 | N34: 0 | O34: 74.4 | P34: 10 | Q34: 11 | R34: 655 | S34: 589.5 | T34: 2 | U34: 0.1295811518 | V34: 0 | W34: 0.01308900524 | X34: 0.8573298429
A35: A | B35: 2 | C35: 0.6 | D35: 12 | E35: 30 | F35: 7 | G35: 1 | H35: 30 | I35: 0.6 | J35: 20 | K35: 764 | L35: 99 | M35: 89.1 | N35: 0 | O35: 74.4 | P35: 10 | Q35: 11 | R35: 655 | S35: 589.5 | T35: 2 | U35: 0.1295811518 | V35: 0 | W35: 0.01308900524 | X35: 0.8573298429
A36: A | B36: 2 | C36: 0.6 | D36: 9 | E36: 23 | F36: 20.4 | G36: NO IWS | H36: NO IWS | I36: 2 | J36: 60 | K36: 2021 | L36: 100 | M36: 90 | N36: 788 | O36: 836.6 | P36: 378 | Q36: 415.8 | R36: 754 | S36: 678.6 | T36: 0.5 | U36: 0.04948045522 | V36: 0.3899059871 | W36: 0.1870361207 | X36: 0.3730826324
A37: A | B37: 2 | C37: 0.6 | D37: 9 | E37: 23 | F37: 20.4 | G37: 1 | H37: 30 | I37: 2 | J37: 60 | K37: 2021 | L37: 100 | M37: 90 | N37: 0 | O37: 125.6 | P37: 378 | Q37: 415.8 | R37: 1544 | S37: 1389.6 | T37: 0.5 | U37: 0.04948045522 | V37: 0 | W37: 0.1870361207 | X37: 0.7639782286
A38: A | B38: 2 | C38: 0.6 | D38: 9 | E38: 23 | F38: 20.4 | G38: 1 | H38: 30 | I38: 1.3 | J38: 40 | K38: 2021 | L38: 100 | M38: 90 | N38: 0 | O38: 125.6 | P38: 378 | Q38: 415.8 | R38: 1544 | S38: 1389.6 | T38: 0.5 | U38: 0.04948045522 | V38: 0 | W38: 0.1870361207 | X38: 0.7639782286
A39: A | B39: 2 | C39: 0.6 | D39: 9 | E39: 23 | F39: 20.4 | G39: 1 | H39: 30 | I39: 0.6 | J39: 20 | K39: 2021 | L39: 100 | M39: 90 | N39: 0 | O39: 125.6 | P39: 378 | Q39: 415.8 | R39: 1544 | S39: 1389.6 | T39: 0.5 | U39: 0.04948045522 | V39: 0 | W39: 0.1870361207 | X39: 0.7639782286
A40: A | B40: 2 | C40: 0.6 | D40: 9 | E40: 23 | F40: 13.6 | G40: NO IWS | H40: NO IWS | I40: 2 | J40: 60 | K40: 1383 | L40: 100 | M40: 90 | N40: 558 | O40: 615.3 | P40: 126 | Q40: 138.6 | R40: 599 | S40: 539.1 | T40: 0.75 | U40: 0.0723065799 | V40: 0.4034707158 | W40: 0.09110629067 | X40: 0.4331164136
A41: A | B41: 2 | C41: 0.6 | D41: 9 | E41: 23 | F41: 13.6 | G41: 1 | H41: 30 | I41: 2 | J41: 60 | K41: 1383 | L41: 100 | M41: 90 | N41: 0 | O41: 113.1 | P41: 126 | Q41: 138.6 | R41: 1157 | S41: 1041.3 | T41: 0.75 | U41: 0.0723065799 | V41: 0 | W41: 0.09110629067 | X41: 0.8365871294
A42: A | B42: 2 | C42: 0.6 | D42: 9 | E42: 23 | F42: 13.6 | G42: 1 | H42: 30 | I42: 1.3 | J42: 40 | K42: 1383 | L42: 100 | M42: 90 | N42: 0 | O42: 113.1 | P42: 126 | Q42: 138.6 | R42: 1157 | S42: 1041.3 | T42: 0.75 | U42: 0.0723065799 | V42: 0 | W42: 0.09110629067 | X42: 0.8365871294
A43: A | B43: 2 | C43: 0.6 | D43: 9 | E43: 23 | F43: 13.6 | G43: 1 | H43: 30 | I43: 0.6 | J43: 20 | K43: 1383 | L43: 100 | M43: 90 | N43: 0 | O43: 113.1 | P43: 126 | Q43: 138.6 | R43: 1157 | S43: 1041.3 | T43: 0.75 | U43: 0.0723065799 | V43: 0 | W43: 0.09110629067 | X43: 0.8365871294
A44: A | B44: 2 | C44: 0.6 | D44: 9 | E44: 23 | F44: 10.2 | G44: NO IWS | H44: NO IWS | I44: 2 | J44: 60 | K44: 1064 | L44: 100 | M44: 90 | N44: 414 | O44: 468.4 | P44: 53 | Q44: 58.3 | R44: 497 | S44: 447.3 | T44: 1 | U44: 0.09398496241 | V44: 0.3890977444 | W44: 0.04981203008 | X44: 0.4671052632
A45: A | B45: 2 | C45: 0.6 | D45: 9 | E45: 23 | F45: 10.2 | G45: 1 | H45: 30 | I45: 2 | J45: 60 | K45: 1064 | L45: 100 | M45: 90 | N45: 0 | O45: 95.8 | P45: 53 | Q45: 58.3 | R45: 911 | S45: 819.9 | T45: 1 | U45: 0.09398496241 | V45: 0 | W45: 0.04981203008 | X45: 0.8562030075
A46: A | B46: 2 | C46: 0.6 | D46: 9 | E46: 23 | F46: 10.2 | G46: 1 | H46: 30 | I46: 1.3 | J46: 40 | K46: 1064 | L46: 100 | M46: 90 | N46: 0 | O46: 95.8 | P46: 53 | Q46: 58.3 | R46: 911 | S46: 819.9 | T46: 1 | U46: 0.09398496241 | V46: 0 | W46: 0.04981203008 | X46: 0.8562030075
A47: A | B47: 2 | C47: 0.6 | D47: 9 | E47: 23 | F47: 10.2 | G47: 1 | H47: 30 | I47: 0.6 | J47: 20 | K47: 1064 | L47: 100 | M47: 90 | N47: 0 | O47: 95.8 | P47: 53 | Q47: 58.3 | R47: 911 | S47: 819.9 | T47: 1 | U47: 0.09398496241 | V47: 0 | W47: 0.04981203008 | X47: 0.8562030075
A48: A | B48: 2 | C48: 0.6 | D48: 9 | E48: 23 | F48: 8.2 | G48: NO IWS | H48: NO IWS | I48: 2 | J48: 60 | K48: 876 | L48: 99 | M48: 89.1 | N48: 322 | O48: 372.2 | P48: 26 | Q48: 28.6 | R48: 429 | S48: 386.1 | T48: 1.25 | U48: 0.1130136986 | V48: 0.3675799087 | W48: 0.0296803653 | X48: 0.4897260274
A49: A | B49: 2 | C49: 0.6 | D49: 9 | E49: 23 | F49: 8.2 | G49: 1 | H49: 30 | I49: 2 | J49: 60 | K49: 876 | L49: 99 | M49: 89.1 | N49: 0 | O49: 82.4 | P49: 26 | Q49: 28.6 | R49: 751 | S49: 675.9 | T49: 1.25 | U49: 0.1130136986 | V49: 0 | W49: 0.0296803653 | X49: 0.8573059361
A50: A | B50: 2 | C50: 0.6 | D50: 9 | E50: 23 | F50: 8.2 | G50: 1 | H50: 30 | I50: 1.3 | J50: 40 | K50: 876 | L50: 99 | M50: 89.1 | N50: 0 | O50: 82.4 | P50: 26 | Q50: 28.6 | R50: 751 | S50: 675.9 | T50: 1.25 | U50: 0.1130136986 | V50: 0 | W50: 0.0296803653 | X50: 0.8573059361
A51: A | B51: 2 | C51: 0.6 | D51: 9 | E51: 23 | F51: 8.2 | G51: 1 | H51: 30 | I51: 0.6 | J51: 20 | K51: 876 | L51: 99 | M51: 89.1 | N51: 0 | O51: 82.4 | P51: 26 | Q51: 28.6 | R51: 751 | S51: 675.9 | T51: 1.25 | U51: 0.1130136986 | V51: 0 | W51: 0.0296803653 | X51: 0.8573059361
A52: A | B52: 2 | C52: 0.6 | D52: 9 | E52: 23 | F52: 6.8 | G52: NO IWS | H52: NO IWS | I52: 2 | J52: 60 | K52: 745 | L52: 99 | M52: 89.1 | N52: 256 | O52: 302.1 | P52: 14 | Q52: 15.4 | R52: 376 | S52: 338.4 | T52: 1.5 | U52: 0.132885906 | V52: 0.3436241611 | W52: 0.01879194631 | X52: 0.5046979866
A53: A | B53: 2 | C53: 0.6 | D53: 9 | E53: 23 | F53: 6.8 | G53: 1 | H53: 30 | I53: 2 | J53: 60 | K53: 745 | L53: 99 | M53: 89.1 | N53: 0 | O53: 71.7 | P53: 14 | Q53: 15.4 | R53: 632 | S53: 568.8 | T53: 1.5 | U53: 0.132885906 | V53: 0 | W53: 0.01879194631 | X53: 0.8483221477
A54: A | B54: 2 | C54: 0.6 | D54: 9 | E54: 23 | F54: 6.8 | G54: 1 | H54: 30 | I54: 1.3 | J54: 40 | K54: 745 | L54: 99 | M54: 89.1 | N54: 0 | O54: 71.7 | P54: 14 | Q54: 15.4 | R54: 632 | S54: 568.8 | T54: 1.5 | U54: 0.132885906 | V54: 0 | W54: 0.01879194631 | X54: 0.8483221477
A55: A | B55: 2 | C55: 0.6 | D55: 9 | E55: 23 | F55: 6.8 | G55: 1 | H55: 30 | I55: 0.6 | J55: 20 | K55: 745 | L55: 99 | M55: 89.1 | N55: 0 | O55: 71.7 | P55: 14 | Q55: 15.4 | R55: 632 | S55: 568.8 | T55: 1.5 | U55: 0.132885906 | V55: 0 | W55: 0.01879194631 | X55: 0.8483221477
A56: A | B56: 2 | C56: 0.6 | D56: 9 | E56: 23 | F56: 5.1 | G56: NO IWS | H56: NO IWS | I56: 2 | J56: 60 | K56: 585 | L56: 99 | M56: 89.1 | N56: 176 | O56: 215.9 | P56: 5 | Q56: 5.5 | R56: 305 | S56: 274.5 | T56: 2 | U56: 0.1692307692 | V56: 0.3008547009 | W56: 0.008547008547 | X56: 0.5213675214
A57: A | B57: 2 | C57: 0.6 | D57: 9 | E57: 23 | F57: 5.1 | G57: 1 | H57: 30 | I57: 2 | J57: 60 | K57: 585 | L57: 99 | M57: 89.1 | N57: 0 | O57: 57.5 | P57: 5 | Q57: 5.5 | R57: 481 | S57: 432.9 | T57: 2 | U57: 0.1692307692 | V57: 0 | W57: 0.008547008547 | X57: 0.8222222222
A58: A | B58: 2 | C58: 0.6 | D58: 9 | E58: 23 | F58: 5.1 | G58: 1 | H58: 30 | I58: 1.3 | J58: 40 | K58: 585 | L58: 99 | M58: 89.1 | N58: 0 | O58: 57.5 | P58: 5 | Q58: 5.5 | R58: 481 | S58: 432.9 | T58: 2 | U58: 0.1692307692 | V58: 0 | W58: 0.008547008547 | X58: 0.8222222222
A59: A | B59: 2 | C59: 0.6 | D59: 9 | E59: 23 | F59: 5.1 | G59: 1 | H59: 30 | I59: 0.6 | J59: 20 | K59: 585 | L59: 99 | M59: 89.1 | N59: 0 | O59: 57.5 | P59: 5 | Q59: 5.5 | R59: 481 | S59: 432.9 | T59: 2 | U59: 0.1692307692 | V59: 0 | W59: 0.008547008547 | X59: 0.8222222222
A60: A | B60: 3 | C60: 0.9 | D60: 12 | E60: 30 | F60: 28 | G60: NO IWS | H60: NO IWS | I60: 2 | J60: 60 | K60: 2734 | L60: 100 | M60: 90 | N60: 1095 | O60: 1132.6 | P60: 636 | Q60: 699.6 | R60: 902 | S60: 811.8 | T60: 0.5 | U60: 0.03657644477 | V60: 0.4005120702 | W60: 0.2326261887 | X60: 0.3299195318
A61: A | B61: 3 | C61: 0.9 | D61: 12 | E61: 30 | F61: 28 | G61: 1 | H61: 30 | I61: 2 | J61: 60 | K61: 2734 | L61: 100 | M61: 90 | N61: 0 | O61: 144.1 | P61: 633 | Q61: 696.3 | R61: 2004 | S61: 1803.6 | T61: 0.5 | U61: 0.03657644477 | V61: 0 | W61: 0.2315288954 | X61: 0.7329919532
A62: A | B62: 3 | C62: 0.9 | D62: 12 | E62: 30 | F62: 28 | G62: 1 | H62: 30 | I62: 1.3 | J62: 40 | K62: 2734 | L62: 100 | M62: 90 | N62: 0 | O62: 144.1 | P62: 633 | Q62: 696.3 | R62: 2004 | S62: 1803.6 | T62: 0.5 | U62: 0.03657644477 | V62: 0 | W62: 0.2315288954 | X62: 0.7329919532
A63: A | B63: 3 | C63: 0.9 | D63: 12 | E63: 30 | F63: 28 | G63: 1 | H63: 30 | I63: 0.6 | J63: 20 | K63: 2734 | L63: 100 | M63: 90 | N63: 0 | O63: 144.1 | P63: 633 | Q63: 696.3 | R63: 2004 | S63: 1803.6 | T63: 0.5 | U63: 0.03657644477 | V63: 0 | W63: 0.2315288954 | X63: 0.7329919532
A64: A | B64: 3 | C64: 0.9 | D64: 12 | E64: 30 | F64: 18.7 | G64: NO IWS | H64: NO IWS | I64: 2 | J64: 60 | K64: 1861 | L64: 100 | M64: 90 | N64: 813 | O64: 872.6 | P64: 226 | Q64: 248.6 | R64: 722 | S64: 649.8 | T64: 0.75 | U64: 0.05373455132 | V64: 0.4368619022 | W64: 0.121440086 | X64: 0.3879634605
A65: A | B65: 3 | C65: 0.9 | D65: 12 | E65: 30 | F65: 18.7 | G65: 1 | H65: 30 | I65: 2 | J65: 60 | K65: 1861 | L65: 100 | M65: 90 | N65: 0 | O65: 139.5 | P65: 224 | Q65: 246.4 | R65: 1539 | S65: 1385.1 | T65: 0.75 | U65: 0.05373455132 | V65: 0 | W65: 0.1203653949 | X65: 0.8269747448
A66: A | B66: 3 | C66: 0.9 | D66: 12 | E66: 30 | F66: 18.7 | G66: 1 | H66: 30 | I66: 1.3 | J66: 40 | K66: 1861 | L66: 100 | M66: 90 | N66: 0 | O66: 139.5 | P66: 224 | Q66: 246.4 | R66: 1539 | S66: 1385.1 | T66: 0.75 | U66: 0.05373455132 | V66: 0 | W66: 0.1203653949 | X66: 0.8269747448
A67: A | B67: 3 | C67: 0.9 | D67: 12 | E67: 30 | F67: 18.7 | G67: 1 | H67: 30 | I67: 0.6 | J67: 20 | K67: 1861 | L67: 100 | M67: 90 | N67: 0 | O67: 139.5 | P67: 224 | Q67: 246.4 | R67: 1539 | S67: 1385.1 | T67: 0.75 | U67: 0.05373455132 | V67: 0 | W67: 0.1203653949 | X67: 0.8269747448
A68: A | B68: 3 | C68: 0.9 | D68: 12 | E68: 30 | F68: 14 | G68: NO IWS | H68: NO IWS | I68: 2 | J68: 60 | K68: 1420 | L68: 100 | M68: 90 | N68: 623 | O68: 683.5 | P68: 96 | Q68: 105.6 | R68: 601 | S68: 540.9 | T68: 1 | U68: 0.07042253521 | V68: 0.4387323944 | W68: 0.0676056338 | X68: 0.4232394366
A69: A | B69: 3 | C69: 0.9 | D69: 12 | E69: 30 | F69: 14 | G69: 1 | H69: 30 | I69: 2 | J69: 60 | K69: 1420 | L69: 100 | M69: 90 | N69: 0 | O69: 121.2 | P69: 95 | Q69: 104.5 | R69: 1227 | S69: 1104.3 | T69: 1 | U69: 0.07042253521 | V69: 0 | W69: 0.06690140845 | X69: 0.864084507
A70: A | B70: 3 | C70: 0.9 | D70: 12 | E70: 30 | F70: 14 | G70: 1 | H70: 30 | I70: 1.3 | J70: 40 | K70: 1420 | L70: 100 | M70: 90 | N70: 0 | O70: 121.2 | P70: 95 | Q70: 104.5 | R70: 1227 | S70: 1104.3 | T70: 1 | U70: 0.07042253521 | V70: 0 | W70: 0.06690140845 | X70: 0.864084507
A71: A | B71: 3 | C71: 0.9 | D71: 12 | E71: 30 | F71: 14 | G71: 1 | H71: 30 | I71: 0.6 | J71: 20 | K71: 1420 | L71: 100 | M71: 90 | N71: 0 | O71: 121.2 | P71: 95 | Q71: 104.5 | R71: 1227 | S71: 1104.3 | T71: 1 | U71: 0.07042253521 | V71: 0 | W71: 0.06690140845 | X71: 0.864084507
A72: A | B72: 3 | C72: 0.9 | D72: 12 | E72: 30 | F72: 11.2 | G72: NO IWS | H72: NO IWS | I72: 2 | J72: 60 | K72: 1158 | L72: 100 | M72: 90 | N72: 495 | O72: 551.9 | P72: 47 | Q72: 51.7 | R72: 516 | S72: 464.4 | T72: 1.25 | U72: 0.08635578584 | V72: 0.4274611399 | W72: 0.04058721934 | X72: 0.4455958549
A73: A | B73: 3 | C73: 0.9 | D73: 12 | E73: 30 | F73: 11.2 | G73: 1 | H73: 30 | I73: 2 | J73: 60 | K73: 1158 | L73: 100 | M73: 90 | N73: 0 | O73: 106.6 | P73: 46 | Q73: 50.6 | R73: 1012 | S73: 910.8 | T73: 1.25 | U73: 0.08635578584 | V73: 0 | W73: 0.03972366149 | X73: 0.8739205527
A74: A | B74: 3 | C74: 0.9 | D74: 12 | E74: 30 | F74: 11.2 | G74: 1 | H74: 30 | I74: 1.3 | J74: 40 | K74: 1158 | L74: 100 | M74: 90 | N74: 0 | O74: 106.6 | P74: 46 | Q74: 50.6 | R74: 1012 | S74: 910.8 | T74: 1.25 | U74: 0.08635578584 | V74: 0 | W74: 0.03972366149 | X74: 0.8739205527
A75: A | B75: 3 | C75: 0.9 | D75: 12 | E75: 30 | F75: 11.2 | G75: 1 | H75: 30 | I75: 0.6 | J75: 20 | K75: 1158 | L75: 100 | M75: 90 | N75: 0 | O75: 106.6 | P75: 46 | Q75: 50.6 | R75: 1012 | S75: 910.8 | T75: 1.25 | U75: 0.08635578584 | V75: 0 | W75: 0.03972366149 | X75: 0.8739205527
A76: A | B76: 3 | C76: 0.9 | D76: 12 | E76: 30 | F76: 9.3 | G76: NO IWS | H76: NO IWS | I76: 2 | J76: 60 | K76: 979 | L76: 100 | M76: 90 | N76: 402 | O76: 453.8 | P76: 25 | Q76: 27.5 | R76: 453 | S76: 407.7 | T76: 1.5 | U76: =L76/K76 -> 0.102145046 | V76: =N76/K76 -> 0.4106230848 | W76: =P76/K76 -> 0.02553626149 | X76: =R76/K76 -> 0.4627170582
A77: A | B77: 3 | C77: 0.9 | D77: 12 | E77: 30 | F77: 9.3 | G77: 1 | H77: 30 | I77: 2 | J77: 60 | K77: 979 | L77: 99 | M77: =L77*0.9 -> 89.1 | N77: 0 | O77: =K77-(M77+Q77+S77) -> 93.1 | P77: 24 | Q77: =P77*1.1 -> 26.4 | R77: 856 | S77: =0.9*R77 -> 770.4 | T77: 1.5 | U77: 0.1011235955 | V77: 0 | W77: 0.02451481103 | X77: 0.8743615935
A78: A | B78: 3 | C78: 0.9 | D78: 12 | E78: 30 | F78: 9.3 | G78: 1 | H78: 30 | I78: 1.3 | J78: 40 | K78: 979 | L78: 99 | M78: 89.1 | N78: 0 | O78: 93.1 | P78: 24 | Q78: 26.4 | R78: 856 | S78: 770.4 | T78: 1.5 | U78: 0.1011235955 | V78: 0 | W78: 0.02451481103 | X78: 0.8743615935
A79: A | B79: 3 | C79: 0.9 | D79: 12 | E79: 30 | F79: 9.3 | G79: 1 | H79: 30 | I79: 0.6 | J79: 20 | K79: 979 | L79: 99 | M79: 89.1 | N79: 0 | O79: 93.1 | P79: 24 | Q79: 26.4 | R79: 856 | S79: 770.4 | T79: 1.5 | U79: 0.1011235955 | V79: 0 | W79: 0.02451481103 | X79: 0.8743615935
A80: A | B80: 3 | C80: 0.9 | D80: 12 | E80: 30 | F80: 7 | G80: NO IWS | H80: NO IWS | I80: 2 | J80: 60 | K80: 764 | L80: 100 | M80: 90 | N80: 286 | O80: 332 | P80: 9 | Q80: 9.9 | R80: 369 | S80: 332.1 | T80: 2 | U80: 0.1308900524 | V80: 0.3743455497 | W80: 0.01178010471 | X80: 0.4829842932
A81: A | B81: 3 | C81: 0.9 | D81: 12 | E81: 30 | F81: 7 | G81: 1 | H81: 30 | I81: 2 | J81: 60 | K81: 764 | L81: 99 | M81: 89.1 | N81: 0 | O81: 75.5 | P81: 9 | Q81: 9.9 | R81: 655 | S81: 589.5 | T81: 2 | U81: 0.1295811518 | V81: 0 | W81: 0.01178010471 | X81: 0.8573298429
A82: A | B82: 3 | C82: 0.9 | D82: 12 | E82: 30 | F82: 7 | G82: 1 | H82: 30 | I82: 1.3 | J82: 40 | K82: 764 | L82: 99 | M82: 89.1 | N82: 0 | O82: 75.5 | P82: 9 | Q82: 9.9 | R82: 655 | S82: 589.5 | T82: 2 | U82: 0.1295811518 | V82: 0 | W82: 0.01178010471 | X82: 0.8573298429
A83: A | B83: 3 | C83: 0.9 | D83: 12 | E83: 30 | F83: 7 | G83: 1 | H83: 30 | I83: 0.6 | J83: 20 | K83: 764 | L83: 99 | M83: 89.1 | N83: 0 | O83: 75.5 | P83: 9 | Q83: 9.9 | R83: 655 | S83: 589.5 | T83: 2 | U83: 0.1295811518 | V83: 0 | W83: 0.01178010471 | X83: 0.8573298429
A84: A | B84: 3 | C84: 0.9 | D84: 9 | E84: 23 | F84: 20.4 | G84: NO IWS | H84: NO IWS | I84: 2 | J84: 60 | K84: 2021 | L84: 100 | M84: 90 | N84: 823 | O84: 870.3 | P84: 367 | Q84: 403.7 | R84: 730 | S84: 657 | T84: 0.5 | U84: 0.04948045522 | V84: 0.4072241465 | W84: 0.1815932707 | X84: 0.3612073231
A85: A | B85: 3 | C85: 0.9 | D85: 9 | E85: 23 | F85: 20.4 | G85: 1 | H85: 30 | I85: 2 | J85: 60 | K85: 2021 | L85: 100 | M85: 90 | N85: 0 | O85: 126.4 | P85: 365 | Q85: 401.5 | R85: 1559 | S85: 1403.1 | T85: 0.5 | U85: 0.04948045522 | V85: 0 | W85: 0.1806036616 | X85: 0.7714002969
A86: A | B86: 3 | C86: 0.9 | D86: 9 | E86: 23 | F86: 20.4 | G86: 1 | H86: 30 | I86: 1.3 | J86: 40 | K86: 2021 | L86: 100 | M86: 90 | N86: 0 | O86: 126.4 | P86: 365 | Q86: 401.5 | R86: 1559 | S86: 1403.1 | T86: 0.5 | U86: 0.04948045522 | V86: 0 | W86: 0.1806036616 | X86: 0.7714002969
A87: A | B87: 3 | C87: 0.9 | D87: 9 | E87: 23 | F87: 20.4 | G87: 1 | H87: 30 | I87: 0.6 | J87: 20 | K87: 2021 | L87: 100 | M87: 90 | N87: 0 | O87: 126.4 | P87: 365 | Q87: 401.5 | R87: 1559 | S87: 1403.1 | T87: 0.5 | U87: 0.04948045522 | V87: 0 | W87: 0.1806036616 | X87: 0.7714002969
A88: A | B88: 3 | C88: 0.9 | D88: 9 | E88: 23 | F88: 13.6 | G88: NO IWS | H88: NO IWS | I88: 2 | J88: 60 | K88: 1383 | L88: 100 | M88: 90 | N88: 585 | O88: 640.6 | P88: 121 | Q88: 133.1 | R88: 577 | S88: 519.3 | T88: 0.75 | U88: 0.0723065799 | V88: 0.4229934924 | W88: 0.08749096168 | X88: 0.417208966
A89: A | B89: 3 | C89: 0.9 | D89: 9 | E89: 23 | F89: 13.6 | G89: 1 | H89: 30 | I89: 2 | J89: 60 | K89: 1383 | L89: 100 | M89: 90 | N89: 0 | O89: 113.4 | P89: 120 | Q89: 132 | R89: 1164 | S89: 1047.6 | T89: 0.75 | U89: 0.0723065799 | V89: 0 | W89: 0.08676789588 | X89: 0.84164859
A90: A | B90: 3 | C90: 0.9 | D90: 9 | E90: 23 | F90: 13.6 | G90: 1 | H90: 30 | I90: 1.3 | J90: 40 | K90: 1383 | L90: 100 | M90: 90 | N90: 0 | O90: 113.4 | P90: 120 | Q90: 132 | R90: 1164 | S90: 1047.6 | T90: 0.75 | U90: 0.0723065799 | V90: 0 | W90: 0.08676789588 | X90: 0.84164859
A91: A | B91: 3 | C91: 0.9 | D91: 9 | E91: 23 | F91: 13.6 | G91: 1 | H91: 30 | I91: 0.6 | J91: 20 | K91: 1383 | L91: 100 | M91: 90 | N91: 0 | O91: 113.4 | P91: 120 | Q91: 132 | R91: 1164 | S91: 1047.6 | T91: 0.75 | U91: 0.0723065799 | V91: 0 | W91: 0.08676789588 | X91: 0.84164859
A92: A | B92: 3 | C92: 0.9 | D92: 9 | E92: 23 | F92: 10.2 | G92: NO IWS | H92: NO IWS | I92: 2 | J92: 60 | K92: 1064 | L92: 100 | M92: 90 | N92: 436 | O92: 488.6 | P92: 51 | Q92: 56.1 | R92: 477 | S92: 429.3 | T92: 1 | U92: 0.09398496241 | V92: 0.4097744361 | W92: 0.04793233083 | X92: 0.4483082707
A93: A | B93: 3 | C93: 0.9 | D93: 9 | E93: 23 | F93: 10.2 | G93: 1 | H93: 30 | I93: 2 | J93: 60 | K93: 1064 | L93: 100 | M93: 90 | N93: 0 | O93: 95.5 | P93: 50 | Q93: 55 | R93: 915 | S93: 823.5 | T93: 1 | U93: 0.09398496241 | V93: 0 | W93: 0.0469924812 | X93: 0.859962406
A94: A | B94: 3 | C94: 0.9 | D94: 9 | E94: 23 | F94: 10.2 | G94: 1 | H94: 30 | I94: 1.3 | J94: 40 | K94: 1064 | L94: 100 | M94: 90 | N94: 0 | O94: 95.5 | P94: 50 | Q94: 55 | R94: 915 | S94: 823.5 | T94: 1 | U94: 0.09398496241 | V94: 0 | W94: 0.0469924812 | X94: 0.859962406
A95: A | B95: 3 | C95: 0.9 | D95: 9 | E95: 23 | F95: 10.2 | G95: 1 | H95: 30 | I95: 0.6 | J95: 20 | K95: 1064 | L95: 100 | M95: 90 | N95: 0 | O95: 95.5 | P95: 50 | Q95: 55 | R95: 915 | S95: 823.5 | T95: 1 | U95: 0.09398496241 | V95: 0 | W95: 0.0469924812 | X95: 0.859962406
A96: A | B96: 3 | C96: 0.9 | D96: 9 | E96: 23 | F96: 8.2 | G96: NO IWS | H96: NO IWS | I96: 2 | J96: 60 | K96: 876 | L96: 100 | M96: 90 | N96: 342 | O96: 389.5 | P96: 25 | Q96: 27.5 | R96: 410 | S96: 369 | T96: 1.25 | U96: 0.1141552511 | V96: 0.3904109589 | W96: 0.02853881279 | X96: 0.4680365297
A97: A | B97: 3 | C97: 0.9 | D97: 9 | E97: 23 | F97: 8.2 | G97: 1 | H97: 30 | I97: 2 | J97: 60 | K97: 876 | L97: 99 | M97: 89.1 | N97: 0 | O97: 82.8 | P97: 24 | Q97: 26.4 | R97: 753 | S97: 677.7 | T97: 1.25 | U97: 0.1130136986 | V97: 0 | W97: 0.02739726027 | X97: 0.8595890411
A98: A | B98: 3 | C98: 0.9 | D98: 9 | E98: 23 | F98: 8.2 | G98: 1 | H98: 30 | I98: 1.3 | J98: 40 | K98: 876 | L98: 99 | M98: 89.1 | N98: 0 | O98: 82.8 | P98: 24 | Q98: 26.4 | R98: 753 | S98: 677.7 | T98: 1.25 | U98: 0.1130136986 | V98: 0 | W98: 0.02739726027 | X98: 0.8595890411
A99: A | B99: 3 | C99: 0.9 | D99: 9 | E99: 23 | F99: 8.2 | G99: 1 | H99: 30 | I99: 0.6 | J99: 20 | K99: 876 | L99: 99 | M99: 89.1 | N99: 0 | O99: 82.8 | P99: 24 | Q99: 26.4 | R99: 753 | S99: 677.7 | T99: 1.25 | U99: 0.1130136986 | V99: 0 | W99: 0.02739726027 | X99: 0.8595890411
A100: A | B100: 3 | C100: 0.9 | D100: 9 | E100: 23 | F100: 6.8 | G100: NO IWS | H100: NO IWS | I100: 2 | J100: 60 | K100: 745 | L100: 100 | M100: 90 | N100: 273 | O100: 317.6 | P100: 13 | Q100: 14.3 | R100: 359 | S100: 323.1 | T100: 1.5 | U100: 0.1342281879 | V100: 0.366442953 | W100: 0.01744966443 | X100: 0.4818791946
A101: A | B101: 3 | C101: 0.9 | D101: 9 | E101: 23 | F101: 6.8 | G101: 1 | H101: 30 | I101: 2 | J101: 60 | K101: 745 | L101: 99 | M101: 89.1 | N101: 0 | O101: 71.9 | P101: 13 | Q101: 14.3 | R101: 633 | S101: 569.7 | T101: 1.5 | U101: 0.132885906 | V101: 0 | W101: 0.01744966443 | X101: 0.8496644295
A102: A | B102: 3 | C102: 0.9 | D102: 9 | E102: 23 | F102: 6.8 | G102: 1 | H102: 30 | I102: 1.3 | J102: 40 | K102: 745 | L102: 99 | M102: 89.1 | N102: 0 | O102: 71.9 | P102: 13 | Q102: 14.3 | R102: 633 | S102: 569.7 | T102: 1.5 | U102: 0.132885906 | V102: 0 | W102: 0.01744966443 | X102: 0.8496644295
A103: A | B103: 3 | C103: 0.9 | D103: 9 | E103: 23 | F103: 6.8 | G103: 1 | H103: 30 | I103: 0.6 | J103: 20 | K103: 745 | L103: 99 | M103: 89.1 | N103: 0 | O103: 71.9 | P103: 13 | Q103: 14.3 | R103: 633 | S103: 569.7 | T103: 1.5 | U103: 0.132885906 | V103: 0 | W103: 0.01744966443 | X103: 0.8496644295
A104: A | B104: 3 | C104: 0.9 | D104: 9 | E104: 23 | F104: 5.1 | G104: NO IWS | H104: NO IWS | I104: 2 | J104: 60 | K104: 585 | L104: 99 | M104: 89.1 | N104: 190 | O104: 228.5 | P104: 5 | Q104: 5.5 | R104: 291 | S104: 261.9 | T104: 2 | U104: 0.1692307692 | V104: 0.3247863248 | W104: 0.008547008547 | X104: 0.4974358974
A105: A | B105: 3 | C105: 0.9 | D105: 9 | E105: 23 | F105: 5.1 | G105: 1 | H105: 30 | I105: 2 | J105: 60 | K105: 585 | L105: 99 | M105: 89.1 | N105: 0 | O105: 56.6 | P105: 5 | Q105: 5.5 | R105: 482 | S105: 433.8 | T105: 2 | U105: 0.1692307692 | V105: 0 | W105: 0.008547008547 | X105: 0.8239316239
A106: A | B106: 3 | C106: 0.9 | D106: 9 | E106: 23 | F106: 5.1 | G106: 1 | H106: 30 | I106: 1.3 | J106: 40 | K106: 585 | L106: 99 | M106: 89.1 | N106: 0 | O106: 56.6 | P106: 5 | Q106: 5.5 | R106: 482 | S106: 433.8 | T106: 2 | U106: 0.1692307692 | V106: 0 | W106: 0.008547008547 | X106: 0.8239316239
A107: A | B107: 3 | C107: 0.9 | D107: 9 | E107: 23 | F107: 5.1 | G107: 1 | H107: 30 | I107: 0.6 | J107: 20 | K107: 585 | L107: 99 | M107: 89.1 | N107: 0 | O107: 56.6 | P107: 5 | Q107: 5.5 | R107: 482 | S107: 433.8 | T107: 2 | U107: 0.1692307692 | V107: 0 | W107: 0.008547008547 | X107: 0.8239316239
A108: B | B108: 3 | C108: 0.9 | D108: 12 | E108: 30 | F108: 28 | G108: NO IWS | H108: NO IWS | I108: 2 | J108: 60 | K108: 2734 | L108: 100 | M108: 90 | N108: 1788 | O108: 1756.1 | P108: 637 | Q108: 700.7 | R108: 208 | S108: 187.2 | T108: 0.5 | U108: 0.03657644477 | V108: 0.6539868325 | W108: 0.2329919532 | X108: 0.07607900512
A109: B | B109: 3 | C109: 0.9 | D109: 12 | E109: 30 | F109: 28 | G109: 1 | H109: 30 | I109: 2 | J109: 60 | K109: 2734 | L109: 100 | M109: 90 | N109: 875 | O109: 935 | P109: 634 | Q109: 697.4 | R109: 1124 | S109: 1011.6 | T109: 0.5 | U109: 0.03657644477 | V109: 0.3200438917 | W109: 0.2318946598 | X109: 0.4111192392
A110: B | B110: 3 | C110: 0.9 | D110: 12 | E110: 30 | F110: 28 | G110: 1 | H110: 30 | I110: 1.3 | J110: 40 | K110: 2734 | L110: 100 | M110: 90 | N110: 746 | O110: 806.7 | P110: 695 | Q110: 764.5 | R110: 1192 | S110: 1072.8 | T110: 0.5 | U110: 0.03657644477 | V110: 0.272860278 | W110: 0.2542062911 | X110: 0.4359912217
A111: B | B111: 3 | C111: 0.9 | D111: 12 | E111: 30 | F111: 28 | G111: 1 | H111: 30 | I111: 0.6 | J111: 20 | K111: 2734 | L111: 100 | M111: 90 | N111: 565 | O111: 632.6 | P111: 751 | Q111: 826.1 | R111: 1317 | S111: 1185.3 | T111: 0.5 | U111: 0.03657644477 | V111: 0.2066569129 | W111: 0.2746891002 | X111: 0.4817117776
A112: B | B112: 3 | C112: 0.9 | D112: 12 | E112: 30 | F112: 18.7 | G112: NO IWS | H112: NO IWS | I112: 2 | J112: 60 | K112: 1861 | L112: 100 | M112: 90 | N112: 1358 | O112: 1363.1 | P112: 226 | Q112: 248.6 | R112: 177 | S112: 159.3 | T112: 0.75 | U112: 0.05373455132 | V112: 0.7297152069 | W112: 0.121440086 | X112: 0.09511015583
A113: B | B113: 3 | C113: 0.9 | D113: 12 | E113: 30 | F113: 18.7 | G113: 1 | H113: 30 | I113: 2 | J113: 60 | K113: 1861 | L113: 100 | M113: 90 | N113: 578 | O113: 661.9 | P113: 222 | Q113: 244.2 | R113: 961 | S113: 864.9 | T113: 0.75 | U113: 0.05373455132 | V113: 0.3105857066 | W113: 0.1192907039 | X113: 0.5163890382
A114: B | B114: 3 | C114: 0.9 | D114: 12 | E114: 30 | F114: 18.7 | G114: 1 | H114: 30 | I114: 1.3 | J114: 40 | K114: 1861 | L114: 100 | M114: 90 | N114: 505 | O114: 589.5 | P114: 251 | Q114: 276.1 | R114: 1006 | S114: 905.4 | T114: 0.75 | U114: 0.05373455132 | V114: 0.2713594841 | W114: 0.1348737238 | X114: 0.5405695862
A115: B | B115: 3 | C115: 0.9 | D115: 12 | E115: 30 | F115: 18.7 | G115: 1 | H115: 30 | I115: 0.6 | J115: 20 | K115: 1861 | L115: 100 | M115: 90 | N115: 387 | O115: 477.9 | P115: 278 | Q115: 305.8 | R115: 1097 | S115: 987.3 | T115: 0.75 | U115: 0.05373455132 | V115: 0.2079527136 | W115: 0.1493820527 | X115: 0.5894680279
A116: B | B116: 3 | C116: 0.9 | D116: 12 | E116: 30 | F116: 14 | G116: NO IWS | H116: NO IWS | I116: 2 | J116: 60 | K116: 1420 | L116: 100 | M116: 90 | N116: 1070 | O116: 1084.9 | P116: 96 | Q116: 105.6 | R116: 155 | S116: 139.5 | T116: 1 | U116: 0.07042253521 | V116: 0.7535211268 | W116: 0.0676056338 | X116: 0.1091549296
A117: B | B117: 3 | C117: 0.9 | D117: 12 | E117: 30 | F117: 14 | G117: 1 | H117: 30 | I117: 2 | J117: 60 | K117: 1420 | L117: 100 | M117: 90 | N117: 391 | O117: 475.3 | P117: 93 | Q117: 102.3 | R117: 836 | S117: 752.4 | T117: 1 | U117: 0.07042253521 | V117: 0.2753521127 | W117: 0.06549295775 | X117: 0.5887323944
A118: B | B118: 3 | C118: 0.9 | D118: 12 | E118: 30 | F118: 14 | G118: 1 | H118: 30 | I118: 1.3 | J118: 40 | K118: 1420 | L118: 100 | M118: 90 | N118: 346 | O118: 431.3 | P118: 106 | Q118: 116.6 | R118: 869 | S118: 782.1 | T118: 1 | U118: 0.07042253521 | V118: 0.2436619718 | W118: 0.07464788732 | X118: 0.611971831
A119: B | B119: 3 | C119: 0.9 | D119: 12 | E119: 30 | F119: 14 | G119: 1 | H119: 30 | I119: 0.6 | J119: 20 | K119: 1420 | L119: 100 | M119: 90 | N119: 268 | O119: 337.4 | P119: 139 | Q119: 152.9 | R119: 933 | S119: 839.7 | T119: 1 | U119: 0.07042253521 | V119: 0.1887323944 | W119: 0.09788732394 | X119: 0.6570422535
A120: B | B120: 3 | C120: 0.9 | D120: 12 | E120: 30 | F120: 11.2 | G120: NO IWS | H120: NO IWS | I120: 2 | J120: 60 | K120: 1158 | L120: 100 | M120: 90 | N120: 872 | O120: 891.2 | P120: 47 | Q120: 51.7 | R120: 139 | S120: 125.1 | T120: 1.25 | U120: 0.08635578584 | V120: 0.7530224525 | W120: 0.04058721934 | X120: 0.1200345423
A121: B | B121: 3 | C121: 0.9 | D121: 12 | E121: 30 | F121: 11.2 | G121: 1 | H121: 30 | I121: 2 | J121: 60 | K121: 1158 | L121: 100 | M121: 90 | N121: 271 | O121: 350.5 | P121: 46 | Q121: 50.6 | R121: 741 | S121: 666.9 | T121: 1.25 | U121: 0.08635578584 | V121: 0.2340241796 | W121: 0.03972366149 | X121: 0.6398963731
A122: B | B122: 3 | C122: 0.9 | D122: 12 | E122: 30 | F122: 11.2 | G122: 1 | H122: 30 | I122: 1.3 | J122: 40 | K122: 1158 | L122: 100 | M122: 90 | N122: 242 | O122: 322.3 | P122: 52 | Q122: 57.2 | R122: 765 | S122: 688.5 | T122: 1.25 | U122: 0.08635578584 | V122: 0.2089810017 | W122: 0.04490500864 | X122: 0.6606217617
A123: B | B123: 3 | C123: 0.9 | D123: 12 | E123: 30 | F123: 11.2 | G123: 1 | H123: 30 | I123: 0.6 | J123: 20 | K123: 1158 | L123: 100 | M123: 90 | N123: 187 | O123: 272.1 | P123: 60 | Q123: 66 | R123: 811 | S123: 729.9 | T123: 1.25 | U123: 0.08635578584 | V123: 0.1614853195 | W123: 0.0518134715 | X123: 0.7003454231
A124: B | B124: 3 | C124: 0.9 | D124: 12 | E124: 30 | F124: 9.3 | G124: NO IWS | H124: NO IWS | I124: 2 | J124: 60 | K124: 979 | L124: 99 | M124: 89.1 | N124: 728 | O124: 748.1 | P124: 25 | Q124: 27.5 | R124: 127 | S124: 114.3 | T124: 1.5 | U124: 0.1011235955 | V124: 0.7436159346 | W124: 0.02553626149 | X124: 0.1297242084
A125: B | B125: 3 | C125: 0.9 | D125: 12 | E125: 30 | F125: 9.3 | G125: 1 | H125: 30 | I125: 2 | J125: 60 | K125: 979 | L125: 99 | M125: 89.1 | N125: 191 | O125: 265 | P125: 24 | Q125: 26.4 | R125: 665 | S125: 598.5 | T125: 1.5 | U125: 0.1011235955 | V125: 0.1950970378 | W125: 0.02451481103 | X125: 0.6792645557
A126: B | B126: 3 | C126: 0.9 | D126: 12 | E126: 30 | F126: 9.3 | G126: 1 | H126: 30 | I126: 1.3 | J126: 40 | K126: 979 | L126: 99 | M126: 89.1 | N126: 171 | O126: 247.3 | P126: 27 | Q126: 29.7 | R126: 681 | S126: 612.9 | T126: 1.5 | U126: 0.1011235955 | V126: 0.1746680286 | W126: 0.02757916241 | X126: 0.695607763
A127: B | B127: 3 | C127: 0.9 | D127: 12 | E127: 30 | F127: 9.3 | G127: 1 | H127: 30 | I127: 0.6 | J127: 20 | K127: 979 | L127: 100 | M127: 90 | N127: 133 | O127: 210.3 | P127: 32 | Q127: 35.2 | R127: 715 | S127: 643.5 | T127: 1.5 | U127: 0.102145046 | V127: 0.1358529111 | W127: 0.03268641471 | X127: 0.7303370787
A128: B | B128: 3 | C128: 0.9 | D128: 12 | E128: 30 | F128: 7 | G128: NO IWS | H128: NO IWS | I128: 2 | J128: 60 | K128: 764 | L128: 99 | M128: 89.1 | N128: 545 | O128: 566 | P128: 9 | Q128: 9.9 | R128: 110 | S128: 99 | T128: 2 | U128: 0.1295811518 | V128: 0.7133507853 | W128: 0.01178010471 | X128: 0.1439790576
A129: B | B129: 3 | C129: 0.9 | D129: 12 | E129: 30 | F129: 7 | G129: 1 | H129: 30 | I129: 2 | J129: 60 | K129: 764 | L129: 99 | M129: 89.1 | N129: 104 | O129: 169.1 | P129: 9 | Q129: 9.9 | R129: 551 | S129: 495.9 | T129: 2 | U129: 0.1295811518 | V129: 0.1361256545 | W129: 0.01178010471 | X129: 0.7212041885
A130: B | B130: 3 | C130: 0.9 | D130: 12 | E130: 30 | F130: 7 | G130: 1 | H130: 30 | I130: 1.3 | J130: 40 | K130: 764 | L130: 99 | M130: 89.1 | N130: 93 | O130: 158.8 | P130: 11 | Q130: 12.1 | R130: 560 | S130: 504 | T130: 2 | U130: 0.1295811518 | V130: 0.1217277487 | W130: 0.01439790576 | X130: 0.7329842932
A131: B | B131: 3 | C131: 0.9 | D131: 12 | E131: 30 | F131: 7 | G131: 1 | H131: 30 | I131: 0.6 | J131: 20 | K131: 764 | L131: 99 | M131: 89.1 | N131: 73 | O131: 140.6 | P131: 12 | Q131: 13.2 | R131: 579 | S131: 521.1 | T131: 2 | U131: 0.1295811518 | V131: 0.09554973822 | W131: 0.01570680628 | X131: 0.7578534031
A132: B | B132: 3 | C132: 0.9 | D132: 9 | E132: 23 | F132: 20.4 | G132: NO IWS | H132: NO IWS | I132: 2 | J132: 60 | K132: 2021 | L132: 100 | M132: 90 | N132: 1374 | O132: 1365.1 | P132: 368 | Q132: 404.8 | R132: 179 | S132: 161.1 | T132: 0.5 | U132: 0.04948045522 | V132: 0.6798614547 | W132: 0.1820880752 | X132: 0.08857001484
A133: B | B133: 3 | C133: 0.9 | D133: 9 | E133: 23 | F133: 20.4 | G133: 1 | H133: 30 | I133: 2 | J133: 60 | K133: 2021 | L133: 100 | M133: 90 | N133: 571 | O133: 642.6 | P133: 367 | Q133: 403.7 | R133: 983 | S133: 884.7 | T133: 0.5 | U133: 0.04948045522 | V133: 0.2825333993 | W133: 0.1815932707 | X133: 0.4863928748
A134: B | B134: 3 | C134: 0.9 | D134: 9 | E134: 23 | F134: 20.4 | G134: 1 | H134: 30 | I134: 1.3 | J134: 40 | K134: 2021 | L134: 100 | M134: 90 | N134: 496 | O134: 568.3 | P134: 401 | Q134: 441.1 | R134: 1024 | S134: 921.6 | T134: 0.5 | U134: 0.04948045522 | V134: 0.2454230579 | W134: 0.1984166254 | X134: 0.5066798615
A135: B | B135: 3 | C135: 0.9 | D135: 9 | E135: 23 | F135: 20.4 | G135: 1 | H135: 30 | I135: 0.6 | J135: 20 | K135: 2021 | L135: 100 | M135: 90 | N135: 372 | O135: 448.2 | P135: 439 | Q135: 482.9 | R135: 1111 | S135: 999.9 | T135: 0.5 | U135: 0.04948045522 | V135: 0.1840672934 | W135: 0.2172191984 | X135: 0.5497278575
A136: B | B136: 3 | C136: 0.9 | D136: 9 | E136: 23 | F136: 13.6 | G136: NO IWS | H136: NO IWS | I136: 2 | J136: 60 | K136: 1383 | L136: 100 | M136: 90 | N136: 1011 | O136: 1022.9 | P136: 122 | Q136: 134.2 | R136: 151 | S136: 135.9 | T136: 0.75 | U136: 0.0723065799 | V136: 0.7310195228 | W136: 0.08821402748 | X136: 0.1091829356
A137: B | B137: 3 | C137: 0.9 | D137: 9 | E137: 23 | F137: 13.6 | G137: 1 | H137: 30 | I137: 2 | J137: 60 | K137: 1383 | L137: 100 | M137: 90 | N137: 346 | O137: 425.9 | P137: 119 | Q137: 130.9 | R137: 818 | S137: 736.2 | T137: 0.75 | U137: 0.0723065799 | V137: 0.2501807664 | W137: 0.08604483008 | X137: 0.5914678236
A138: B | B138: 3 | C138: 0.9 | D138: 9 | E138: 23 | F138: 13.6 | G138: 1 | H138: 30 | I138: 1.3 | J138: 40 | K138: 1383 | L138: 100 | M138: 90 | N138: 305 | O138: 387.3 | P138: 132 | Q138: 145.2 | R138: 845 | S138: 760.5 | T138: 0.75 | U138: 0.0723065799 | V138: 0.2205350687 | W138: 0.09544468547 | X138: 0.6109906001
A139: B | B139: 3 | C139: 0.9 | D139: 9 | E139: 23 | F139: 13.6 | G139: 1 | H139: 30 | I139: 0.6 | J139: 20 | K139: 1383 | L139: 100 | M139: 90 | N139: 233 | O139: 318 | P139: 150 | Q139: 165 | R139: 900 | S139: 810 | T139: 0.75 | U139: 0.0723065799 | V139: 0.1684743312 | W139: 0.1084598698 | X139: 0.6507592191
A140: B | B140: 3 | C140: 0.9 | D140: 9 | E140: 23 | F140: 10.2 | G140: NO IWS | H140: NO IWS | I140: 2 | J140: 60 | K140: 1064 | L140: 100 | M140: 90 | N140: 781 | O140: 799.1 | P140: 51 | Q140: 56.1 | R140: 132 | S140: 118.8 | T140: 1 | U140: =L140/K140 -> 0.09398496241 | V140: =N140/K140 -> 0.7340225564 | W140: =P140/K140 -> 0.04793233083 | X140: =R140/K140 -> 0.1240601504
A141: B | B141: 3 | C141: 0.9 | D141: 9 | E141: 23 | F141: 10.2 | G141: 1 | H141: 30 | I141: 2 | J141: 60 | K141: 1064 | L141: 100 | M141: =L141*0.9 -> 90 | N141: 215 | O141: =K141-(M141+Q141+S141) -> 289 | P141: 50 | Q141: =P141*1.1 -> 55 | R141: 700 | S141: =0.9*R141 -> 630 | T141: 1 | U141: 0.09398496241 | V141: 0.2020676692 | W141: 0.0469924812 | X141: 0.6578947368
A142: B | B142: 3 | C142: 0.9 | D142: 9 | E142: 23 | F142: 10.2 | G142: 1 | H142: 30 | I142: 1.3 | J142: 40 | K142: 1064 | L142: 100 | M142: 90 | N142: 191 | O142: 267.1 | P142: 56 | Q142: 61.6 | R142: 717 | S142: 645.3 | T142: 1 | U142: 0.09398496241 | V142: 0.1795112782 | W142: 0.05263157895 | X142: 0.6738721805
A143: B | B143: 3 | C143: 0.9 | D143: 9 | E143: 23 | F143: 10.2 | G143: 1 | H143: 30 | I143: 0.6 | J143: 20 | K143: 1064 | L143: 100 | M143: 90 | N143: 147 | O143: 226.1 | P143: 63 | Q143: 69.3 | R143: 754 | S143: 678.6 | T143: 1 | U143: 0.09398496241 | V143: 0.1381578947 | W143: 0.05921052632 | X143: 0.7086466165
A144: B | B144: 3 | C144: 0.9 | D144: 9 | E144: 23 | F144: 8.2 | G144: NO IWS | H144: NO IWS | I144: 2 | J144: 60 | K144: 876 | L144: 99 | M144: 89.1 | N144: 634 | O144: 652.3 | P144: 25 | Q144: 27.5 | R144: 119 | S144: 107.1 | T144: 1.25 | U144: 0.1130136986 | V144: 0.7237442922 | W144: 0.02853881279 | X144: 0.1358447489
A145: B | B145: 3 | C145: 0.9 | D145: 9 | E145: 23 | F145: 8.2 | G145: 1 | H145: 30 | I145: 2 | J145: 60 | K145: 876 | L145: 99 | M145: 89.1 | N145: 141 | O145: 209.7 | P145: 24 | Q145: 26.4 | R145: 612 | S145: 550.8 | T145: 1.25 | U145: 0.1130136986 | V145: 0.1609589041 | W145: 0.02739726027 | X145: 0.698630137
A146: B | B146: 3 | C146: 0.9 | D146: 9 | E146: 23 | F146: 8.2 | G146: 1 | H146: 30 | I146: 1.3 | J146: 40 | K146: 876 | L146: 99 | M146: 89.1 | N146: 127 | O146: 196.5 | P146: 27 | Q146: 29.7 | R146: 623 | S146: 560.7 | T146: 1.25 | U146: 0.1130136986 | V146: 0.1449771689 | W146: 0.03082191781 | X146: 0.7111872146
A147: B | B147: 3 | C147: 0.9 | D147: 9 | E147: 23 | F147: 8.2 | G147: 1 | H147: 30 | I147: 0.6 | J147: 20 | K147: 876 | L147: 99 | M147: 89.1 | N147: 97 | O147: 168.7 | P147: 31 | Q147: 34.1 | R147: 649 | S147: 584.1 | T147: 1.25 | U147: 0.1130136986 | V147: 0.1107305936 | W147: 0.03538812785 | X147: 0.7408675799
A148: B | B148: 3 | C148: 0.9 | D148: 9 | E148: 23 | F148: 6.8 | G148: NO IWS | H148: NO IWS | I148: 2 | J148: 60 | K148: 745 | L148: 99 | M148: 89.1 | N148: 524 | O148: 544.4 | P148: 13 | Q148: 14.3 | R148: 108 | S148: 97.2 | T148: 1.5 | U148: 0.132885906 | V148: 0.7033557047 | W148: 0.01744966443 | X148: 0.144966443
A149: B | B149: 3 | C149: 0.9 | D149: 9 | E149: 23 | F149: 6.8 | G149: 1 | H149: 30 | I149: 2 | J149: 60 | K149: 745 | L149: 99 | M149: 89.1 | N149: 93 | O149: 156.5 | P149: 13 | Q149: 14.3 | R149: 539 | S149: 485.1 | T149: 1.5 | U149: 0.132885906 | V149: 0.1248322148 | W149: 0.01744966443 | X149: 0.7234899329
A150: B | B150: 3 | C150: 0.9 | D150: 9 | E150: 23 | F150: 6.8 | G150: 1 | H150: 30 | I150: 1.3 | J150: 40 | K150: 745 | L150: 99 | M150: 89.1 | N150: 83 | O150: 146.2 | P150: 15 | Q150: 16.5 | R150: 548 | S150: 493.2 | T150: 1.5 | U150: 0.132885906 | V150: 0.111409396 | W150: 0.02013422819 | X150: 0.7355704698
A151: B | B151: 3 | C151: 0.9 | D151: 9 | E151: 23 | F151: 6.8 | G151: 1 | H151: 30 | I151: 0.6 | J151: 20 | K151: 745 | L151: 99 | M151: 89.1 | N151: 65 | O151: 129.6 | P151: 17 | Q151: 18.7 | R151: 564 | S151: 507.6 | T151: 1.5 | U151: 0.132885906 | V151: 0.08724832215 | W151: 0.02281879195 | X151: 0.7570469799
A152: B | B152: 3 | C152: 0.9 | D152: 9 | E152: 23 | F152: 5.1 | G152: NO IWS | H152: NO IWS | I152: 2 | J152: 60 | K152: 585 | L152: 99 | M152: 89.1 | N152: 389 | O152: 406.7 | P152: 5 | Q152: 5.5 | R152: 93 | S152: 83.7 | T152: 2 | U152: 0.1692307692 | V152: 0.664957265 | W152: 0.008547008547 | X152: 0.158974359
A153: B | B153: 3 | C153: 0.9 | D153: 9 | E153: 23 | F153: 5.1 | G153: 1 | H153: 30 | I153: 2 | J153: 60 | K153: 585 | L153: 99 | M153: 89.1 | N153: 47 | O153: 98.9 | P153: 5 | Q153: 5.5 | R153: 435 | S153: 391.5 | T153: 2 | U153: 0.1692307692 | V153: 0.08034188034 | W153: 0.008547008547 | X153: 0.7435897436
A154: B | B154: 3 | C154: 0.9 | D154: 9 | E154: 23 | F154: 5.1 | G154: 1 | H154: 30 | I154: 1.3 | J154: 40 | K154: 585 | L154: 99 | M154: 89.1 | N154: 42 | O154: 94.2 | P154: 6 | Q154: 6.6 | R154: 439 | S154: 395.1 | T154: 2 | U154: 0.1692307692 | V154: 0.07179487179 | W154: 0.01025641026 | X154: 0.7504273504
A155: B | B155: 3 | C155: 0.9 | D155: 9 | E155: 23 | F155: 5.1 | G155: 1 | H155: 30 | I155: 0.6 | J155: 20 | K155: 585 | L155: 99 | M155: 89.1 | N155: 32 | O155: 86.1 | P155: 6 | Q155: 6.6 | R155: 448 | S155: 403.2 | T155: 2 | U155: 0.1692307692 | V155: 0.0547008547 | W155: 0.01025641026 | X155: 0.7658119658
A156: B | B156: 4 | C156: 1.2 | D156: 12 | E156: 30 | F156: 28 | G156: NO IWS | H156: NO IWS | I156: 2 | J156: 60 | K156: 2734 | L156: 101 | M156: 90.9 | N156: 1778 | O156: 1748.9 | P156: 619 | Q156: 680.9 | R156: 237 | S156: 213.3 | T156: 0.5 | U156: 0.03694220922 | V156: 0.650329188 | W156: 0.2264081931 | X156: 0.0866861741
A157: B | B157: 4 | C157: 1.2 | D157: 12 | E157: 30 | F157: 28 | G157: 1 | H157: 30 | I157: 2 | J157: 60 | K157: 2734 | L157: 101 | M157: 90.9 | N157: 652 | O157: 735.4 | P157: 624 | Q157: 686.4 | R157: 1357 | S157: 1221.3 | T157: 0.5 | U157: 0.03694220922 | V157: 0.2384784199 | W157: 0.2282370154 | X157: 0.4963423555
A158: B | B158: 4 | C158: 1.2 | D158: 12 | E158: 30 | F158: 28 | G158: 1 | H158: 30 | I158: 1.3 | J158: 40 | K158: 2734 | L158: 101 | M158: 90.9 | N158: 547 | O158: 632.5 | P158: 666 | Q158: 732.6 | R158: 1420 | S158: 1278 | T158: 0.5 | U158: 0.03694220922 | V158: 0.2000731529 | W158: 0.2435991222 | X158: 0.5193855157
A159: B | B159: 4 | C159: 1.2 | D159: 12 | E159: 30 | F159: 28 | G159: 1 | H159: 30 | I159: 0.6 | J159: 20 | K159: 2734 | L159: 101 | M159: 90.9 | N159: 412 | O159: 503.9 | P159: 697 | Q159: 766.7 | R159: 1525 | S159: 1372.5 | T159: 0.5 | U159: 0.03694220922 | V159: 0.1506949525 | W159: 0.25493782 | X159: 0.5577907827
A160: B | B160: 4 | C160: 1.2 | D160: 12 | E160: 30 | F160: 18.7 | G160: NO IWS | H160: NO IWS | I160: 2 | J160: 60 | K160: 1861 | L160: 101 | M160: 90.9 | N160: 1341 | O160: 1349.6 | P160: 217 | Q160: 238.7 | R160: 202 | S160: 181.8 | T160: 0.75 | U160: 0.05427189683 | V160: 0.7205803332 | W160: 0.1166039764 | X160: 0.1085437937
A161: B | B161: 4 | C161: 1.2 | D161: 12 | E161: 30 | F161: 18.7 | G161: 1 | H161: 30 | I161: 2 | J161: 60 | K161: 1861 | L161: 101 | M161: 90.9 | N161: 413 | O161: 513.9 | P161: 215 | Q161: 236.5 | R161: 1133 | S161: 1019.7 | T161: 0.75 | U161: 0.05427189683 | V161: 0.2219236969 | W161: 0.1155292853 | X161: 0.6088124664
A162: B | B162: 4 | C162: 1.2 | D162: 12 | E162: 30 | F162: 18.7 | G162: 1 | H162: 30 | I162: 1.3 | J162: 40 | K162: 1861 | L162: 101 | M162: 90.9 | N162: 353 | O162: 455.9 | P162: 235 | Q162: 258.5 | R162: 1173 | S162: 1055.7 | T162: 0.75 | U162: 0.05427189683 | V162: 0.1896829661 | W162: 0.1262761956 | X162: 0.6303062869
A163: B | B163: 4 | C163: 1.2 | D163: 12 | E163: 30 | F163: 18.7 | G163: 1 | H163: 30 | I163: 0.6 | J163: 20 | K163: 1861 | L163: 101 | M163: 90.9 | N163: 266 | O163: 374.4 | P163: 251 | Q163: 276.1 | R163: 1244 | S163: 1119.6 | T163: 0.75 | U163: 0.05427189683 | V163: 0.1429339065 | W163: 0.1348737238 | X163: 0.6684578184
A164: B | B164: 4 | C164: 1.2 | D164: 12 | E164: 30 | F164: 14 | G164: NO IWS | H164: NO IWS | I164: 2 | J164: 60 | K164: 1420 | L164: 101 | M164: 90.9 | N164: 1050 | O164: 1067.9 | P164: 91 | Q164: 100.1 | R164: 179 | S164: 161.1 | T164: 1 | U164: 0.07112676056 | V164: 0.7394366197 | W164: 0.06408450704 | X164: 0.126056338
A165: B | B165: 4 | C165: 1.2 | D165: 12 | E165: 30 | F165: 14 | G165: 1 | H165: 30 | I165: 2 | J165: 60 | K165: 1420 | L165: 101 | M165: 90.9 | N165: 263 | O165: 359.8 | P165: 90 | Q165: 99 | R165: 967 | S165: 870.3 | T165: 1 | U165: 0.07112676056 | V165: 0.1852112676 | W165: 0.06338028169 | X165: 0.6809859155
A166: B | B166: 4 | C166: 1.2 | D166: 12 | E166: 30 | F166: 14 | G166: 1 | H166: 30 | I166: 1.3 | J166: 40 | K166: 1420 | L166: 101 | M166: 90.9 | N166: 225 | O166: 324.7 | P166: 99 | Q166: 108.9 | R166: 995 | S166: 895.5 | T166: 1 | U166: 0.07112676056 | V166: 0.1584507042 | W166: 0.06971830986 | X166: 0.7007042254
A167: B | B167: 4 | C167: 1.2 | D167: 12 | E167: 30 | F167: 14 | G167: 1 | H167: 30 | I167: 0.6 | J167: 20 | K167: 1420 | L167: 101 | M167: 90.9 | N167: 171 | O167: 273.8 | P167: 106 | Q167: 116.6 | R167: 1043 | S167: 938.7 | T167: 1 | U167: 0.07112676056 | V167: 0.1204225352 | W167: 0.07464788732 | X167: 0.7345070423
A168: B | B168: 4 | C168: 1.2 | D168: 12 | E168: 30 | F168: 11.2 | G168: NO IWS | H168: NO IWS | I168: 2 | J168: 60 | K168: 1158 | L168: 101 | M168: 90.9 | N168: 851 | O168: 872.9 | P168: 44 | Q168: 48.4 | R168: 162 | S168: 145.8 | T168: 1.25 | U168: 0.0872193437 | V168: 0.7348877375 | W168: 0.03799654577 | X168: 0.1398963731
A169: B | B169: 4 | C169: 1.2 | D169: 12 | E169: 30 | F169: 11.2 | G169: 1 | H169: 30 | I169: 2 | J169: 60 | K169: 1158 | L169: 100 | M169: 90 | N169: 169 | O169: 259.1 | P169: 44 | Q169: 48.4 | R169: 845 | S169: 760.5 | T169: 1.25 | U169: 0.08635578584 | V169: 0.1459412781 | W169: 0.03799654577 | X169: 0.7297063903
A170: B | B170: 4 | C170: 1.2 | D170: 12 | E170: 30 | F170: 11.2 | G170: 1 | H170: 30 | I170: 1.3 | J170: 40 | K170: 1158 | L170: 100 | M170: 90 | N170: 148 | O170: 239.4 | P170: 48 | Q170: 52.8 | R170: 862 | S170: 775.8 | T170: 1.25 | U170: 0.08635578584 | V170: 0.127806563 | W170: 0.0414507772 | X170: 0.7443868739
A171: B | B171: 4 | C171: 1.2 | D171: 12 | E171: 30 | F171: 11.2 | G171: 1 | H171: 30 | I171: 0.6 | J171: 20 | K171: 1158 | L171: 100 | M171: 90 | N171: 111 | O171: 206.2 | P171: 52 | Q171: 57.2 | R171: 894 | S171: 804.6 | T171: 1.25 | U171: 0.08635578584 | V171: 0.09585492228 | W171: 0.04490500864 | X171: 0.7720207254
A172: B | B172: 4 | C172: 1.2 | D172: 12 | E172: 30 | F172: 9.3 | G172: NO IWS | H172: NO IWS | I172: 2 | J172: 60 | K172: 979 | L172: 101 | M172: 90.9 | N172: 706 | O172: 728.7 | P172: 23 | Q172: 25.3 | R172: 149 | S172: 134.1 | T172: 1.5 | U172: 0.1031664964 | V172: 0.7211440245 | W172: 0.02349336057 | X172: 0.1521961185
A173: B | B173: 4 | C173: 1.2 | D173: 12 | E173: 30 | F173: 9.3 | G173: 1 | H173: 30 | I173: 2 | J173: 60 | K173: 979 | L173: 100 | M173: 90 | N173: 113 | O173: 193.9 | P173: 24 | Q173: 26.4 | R173: 743 | S173: 668.7 | T173: 1.5 | U173: 0.102145046 | V173: 0.1154239019 | W173: 0.02451481103 | X173: 0.7589376915
A174: B | B174: 4 | C174: 1.2 | D174: 12 | E174: 30 | F174: 9.3 | G174: 1 | H174: 30 | I174: 1.3 | J174: 40 | K174: 979 | L174: 100 | M174: 90 | N174: 99 | O174: 182 | P174: 25 | Q174: 27.5 | R174: 755 | S174: 679.5 | T174: 1.5 | U174: 0.102145046 | V174: 0.1011235955 | W174: 0.02553626149 | X174: 0.771195097
A175: B | B175: 4 | C175: 1.2 | D175: 12 | E175: 30 | F175: 9.3 | G175: 1 | H175: 30 | I175: 0.6 | J175: 20 | K175: 979 | L175: 100 | M175: 90 | N175: 75 | O175: 160 | P175: 27 | Q175: 29.7 | R175: 777 | S175: 699.3 | T175: 1.5 | U175: 0.102145046 | V175: 0.07660878447 | W175: 0.02757916241 | X175: 0.7936670072
A176: B | B176: 4 | C176: 1.2 | D176: 12 | E176: 30 | F176: 7 | G176: NO IWS | H176: NO IWS | I176: 2 | J176: 60 | K176: 764 | L176: 101 | M176: 90.9 | N176: 523 | O176: 545.3 | P176: 9 | Q176: 9.9 | R176: 131 | S176: 117.9 | T176: 2 | U176: 0.1321989529 | V176: 0.6845549738 | W176: 0.01178010471 | X176: 0.1714659686
A177: B | B177: 4 | C177: 1.2 | D177: 12 | E177: 30 | F177: 7 | G177: 1 | H177: 30 | I177: 2 | J177: 60 | K177: 764 | L177: 100 | M177: 90 | N177: 55 | O177: 125 | P177: 9 | Q177: 9.9 | R177: 599 | S177: 539.1 | T177: 2 | U177: 0.1308900524 | V177: 0.0719895288 | W177: 0.01178010471 | X177: 0.7840314136
A178: B | B178: 4 | C178: 1.2 | D178: 12 | E178: 30 | F178: 7 | G178: 1 | H178: 30 | I178: 1.3 | J178: 40 | K178: 764 | L178: 100 | M178: 90 | N178: 48 | O178: 117.6 | P178: 10 | Q178: 11 | R178: 606 | S178: 545.4 | T178: 2 | U178: 0.1308900524 | V178: 0.06282722513 | W178: 0.01308900524 | X178: 0.7931937173
A179: B | B179: 4 | C179: 1.2 | D179: 12 | E179: 30 | F179: 7 | G179: 1 | H179: 30 | I179: 0.6 | J179: 20 | K179: 764 | L179: 100 | M179: 90 | N179: 36 | O179: 107.7 | P179: 10 | Q179: 11 | R179: 617 | S179: 555.3 | T179: 2 | U179: 0.1308900524 | V179: 0.04712041885 | W179: 0.01308900524 | X179: 0.807591623
A180: B | B180: 4 | C180: 1.2 | D180: 9 | E180: 23 | F180: 20.4 | G180: NO IWS | H180: NO IWS | I180: 2 | J180: 60 | K180: 2021 | L180: 101 | M180: 90.9 | N180: 1361 | O180: 1356.2 | P180: 354 | Q180: 389.4 | R180: 205 | S180: 184.5 | T180: 0.5 | U180: 0.04997525977 | V180: 0.6734289955 | W180: 0.1751608115 | X180: 0.1014349332
A181: B | B181: 4 | C181: 1.2 | D181: 9 | E181: 23 | F181: 20.4 | G181: 1 | H181: 30 | I181: 2 | J181: 60 | K181: 2021 | L181: 101 | M181: 90.9 | N181: 401 | O181: 492.4 | P181: 353 | Q181: 388.3 | R181: 1166 | S181: 1049.4 | T181: 0.5 | U181: 0.04997525977 | V181: 0.1984166254 | W181: 0.1746660069 | X181: 0.5769421079
A182: B | B182: 4 | C182: 1.2 | D182: 9 | E182: 23 | F182: 20.4 | G182: 1 | H182: 30 | I182: 1.3 | J182: 40 | K182: 2021 | L182: 101 | M182: 90.9 | N182: 338 | O182: 430.5 | P182: 379 | Q182: 416.9 | R182: 1203 | S182: 1082.7 | T182: 0.5 | U182: 0.04997525977 | V182: 0.1672439386 | W182: 0.1875309253 | X182: 0.5952498763
A183: B | B183: 4 | C183: 1.2 | D183: 9 | E183: 23 | F183: 20.4 | G183: 1 | H183: 30 | I183: 0.6 | J183: 20 | K183: 2021 | L183: 101 | M183: 90.9 | N183: 252 | O183: 348.9 | P183: 400 | Q183: 440 | R183: 1268 | S183: 1141.2 | T183: 0.5 | U183: 0.04997525977 | V183: 0.1246907472 | W183: 0.1979218209 | X183: 0.6274121722
A184: B | B184: 4 | C184: 1.2 | D184: 9 | E184: 23 | F184: 13.6 | G184: NO IWS | H184: NO IWS | I184: 2 | J184: 60 | K184: 1383 | L184: 101 | M184: 90.9 | N184: 992 | O184: 1007 | P184: 116 | Q184: 127.6 | R184: 175 | S184: 157.5 | T184: 0.75 | U184: 0.0730296457 | V184: 0.7172812726 | W184: 0.08387563268 | X184: 0.1265365148
A185: B | B185: 4 | C185: 1.2 | D185: 9 | E185: 23 | F185: 13.6 | G185: 1 | H185: 30 | I185: 2 | J185: 60 | K185: 1383 | L185: 101 | M185: 90.9 | N185: 222 | O185: 315.1 | P185: 115 | Q185: 126.5 | R185: 945 | S185: 850.5 | T185: 0.75 | U185: 0.0730296457 | V185: 0.1605206074 | W185: 0.08315256688 | X185: 0.68329718
A186: B | B186: 4 | C186: 1.2 | D186: 9 | E186: 23 | F186: 13.6 | G186: 1 | H186: 30 | I186: 1.3 | J186: 40 | K186: 1383 | L186: 101 | M186: 90.9 | N186: 191 | O186: 285.4 | P186: 124 | Q186: 136.4 | R186: 967 | S186: 870.3 | T186: 0.75 | U186: 0.0730296457 | V186: 0.1381055676 | W186: 0.08966015907 | X186: 0.6992046276
A187: B | B187: 4 | C187: 1.2 | D187: 9 | E187: 23 | F187: 13.6 | G187: 1 | H187: 30 | I187: 0.6 | J187: 20 | K187: 1383 | L187: 101 | M187: 90.9 | N187: 142 | O187: 239.5 | P187: 133 | Q187: 146.3 | R187: 1007 | S187: 906.3 | T187: 0.75 | U187: 0.0730296457 | V187: 0.1026753435 | W187: 0.09616775127 | X187: 0.7281272596
A188: B | B188: 4 | C188: 1.2 | D188: 9 | E188: 23 | F188: 10.2 | G188: NO IWS | H188: NO IWS | I188: 2 | J188: 60 | K188: 1064 | L188: 101 | M188: 90.9 | N188: 761 | O188: 780.8 | P188: 48 | Q188: 52.8 | R188: 155 | S188: 139.5 | T188: 1 | U188: 0.09492481203 | V188: 0.7152255639 | W188: 0.04511278195 | X188: 0.1456766917
A189: B | B189: 4 | C189: 1.2 | D189: 9 | E189: 23 | F189: 10.2 | G189: 1 | H189: 30 | I189: 2 | J189: 60 | K189: 1064 | L189: 100 | M189: 90 | N189: 126 | O189: 210.2 | P189: 48 | Q189: 52.8 | R189: 790 | S189: 711 | T189: 1 | U189: 0.09398496241 | V189: 0.1184210526 | W189: 0.04511278195 | X189: 0.742481203
A190: B | B190: 4 | C190: 1.2 | D190: 9 | E190: 23 | F190: 10.2 | G190: 1 | H190: 30 | I190: 1.3 | J190: 40 | K190: 1064 | L190: 100 | M190: 90 | N190: 110 | O190: 195.2 | P190: 51 | Q190: 56.1 | R190: 803 | S190: 722.7 | T190: 1 | U190: 0.09398496241 | V190: 0.1033834586 | W190: 0.04793233083 | X190: 0.7546992481
A191: B | B191: 4 | C191: 1.2 | D191: 9 | E191: 23 | F191: 10.2 | G191: 1 | H191: 30 | I191: 0.6 | J191: 20 | K191: 1064 | L191: 100 | M191: 90 | N191: 83 | O191: 170.1 | P191: 55 | Q191: 60.5 | R191: 826 | S191: 743.4 | T191: 1 | U191: 0.09398496241 | V191: 0.0780075188 | W191: 0.05169172932 | X191: 0.7763157895
A192: B | B192: 4 | C192: 1.2 | D192: 9 | E192: 23 | F192: 8.2 | G192: NO IWS | H192: NO IWS | I192: 2 | J192: 60 | K192: 876 | L192: 101 | M192: 90.9 | N192: 612 | O192: 632.9 | P192: 23 | Q192: 25.3 | R192: 141 | S192: 126.9 | T192: 1.25 | U192: 0.1152968037 | V192: 0.698630137 | W192: 0.02625570776 | X192: 0.1609589041
A193: B | B193: 4 | C193: 1.2 | D193: 9 | E193: 23 | F193: 8.2 | G193: 1 | H193: 30 | I193: 2 | J193: 60 | K193: 876 | L193: 100 | M193: 90 | N193: 76 | O193: 151.2 | P193: 24 | Q193: 26.4 | R193: 676 | S193: 608.4 | T193: 1.25 | U193: 0.1141552511 | V193: 0.08675799087 | W193: 0.02739726027 | X193: 0.7716894977
A194: B | B194: 4 | C194: 1.2 | D194: 9 | E194: 23 | F194: 8.2 | G194: 1 | H194: 30 | I194: 1.3 | J194: 40 | K194: 876 | L194: 100 | M194: 90 | N194: 67 | O194: 144 | P194: 24 | Q194: 26.4 | R194: 684 | S194: 615.6 | T194: 1.25 | U194: 0.1141552511 | V194: 0.07648401826 | W194: 0.02739726027 | X194: 0.7808219178
A195: B | B195: 4 | C195: 1.2 | D195: 9 | E195: 23 | F195: 8.2 | G195: 1 | H195: 30 | I195: 0.6 | J195: 20 | K195: 876 | L195: 100 | M195: 90 | N195: 51 | O195: 128.3 | P195: 26 | Q195: 28.6 | R195: 699 | S195: 629.1 | T195: 1.25 | U195: 0.1141552511 | V195: 0.05821917808 | W195: 0.0296803653 | X195: 0.7979452055
A196: B | B196: 4 | C196: 1.2 | D196: 9 | E196: 23 | F196: 6.8 | G196: NO IWS | H196: NO IWS | I196: 2 | J196: 60 | K196: 745 | L196: 101 | M196: 90.9 | N196: 503 | O196: 523.7 | P196: 13 | Q196: 14.3 | R196: 129 | S196: 116.1 | T196: 1.5 | U196: 0.1355704698 | V196: 0.6751677852 | W196: 0.01744966443 | X196: 0.1731543624
A197: B | B197: 4 | C197: 1.2 | D197: 9 | E197: 23 | F197: 6.8 | G197: 1 | H197: 30 | I197: 2 | J197: 60 | K197: 745 | L197: 100 | M197: 90 | N197: 48 | O197: 115.1 | P197: 13 | Q197: 14.3 | R197: 584 | S197: 525.6 | T197: 1.5 | U197: 0.1342281879 | V197: 0.0644295302 | W197: 0.01744966443 | X197: 0.7838926174
A198: B | B198: 4 | C198: 1.2 | D198: 9 | E198: 23 | F198: 6.8 | G198: 1 | H198: 30 | I198: 1.3 | J198: 40 | K198: 745 | L198: 100 | M198: 90 | N198: 41 | O198: 108.6 | P198: 14 | Q198: 15.4 | R198: 590 | S198: 531 | T198: 1.5 | U198: 0.1342281879 | V198: 0.05503355705 | W198: 0.01879194631 | X198: 0.7919463087
A199: B | B199: 4 | C199: 1.2 | D199: 9 | E199: 23 | F199: 6.8 | G199: 1 | H199: 30 | I199: 0.6 | J199: 20 | K199: 745 | L199: 100 | M199: 90 | N199: 31 | O199: 100.5 | P199: 14 | Q199: 15.4 | R199: 599 | S199: 539.1 | T199: 1.5 | U199: 0.1342281879 | V199: 0.04161073826 | W199: 0.01879194631 | X199: 0.8040268456
A200: B | B200: 4 | C200: 1.2 | D200: 9 | E200: 23 | F200: 5.1 | G200: NO IWS | H200: NO IWS | I200: 2 | J200: 60 | K200: 585 | L200: 100 | M200: 90 | N200: 369 | O200: 390.7 | P200: 4 | Q200: 4.4 | R200: 111 | S200: 99.9 | T200: 2 | U200: 0.1709401709 | V200: 0.6307692308 | W200: 0.006837606838 | X200: 0.1897435897
A201: B | B201: 4 | C201: 1.2 | D201: 9 | E201: 23 | F201: 5.1 | G201: 1 | H201: 30 | I201: 2 | J201: 60 | K201: 585 | L201: 100 | M201: 90 | N201: 21 | O201: 76.6 | P201: 4 | Q201: 4.4 | R201: 460 | S201: 414 | T201: 2 | U201: 0.1709401709 | V201: 0.0358974359 | W201: 0.006837606838 | X201: 0.7863247863
A202: B | B202: 4 | C202: 1.2 | D202: 9 | E202: 23 | F202: 5.1 | G202: 1 | H202: 30 | I202: 1.3 | J202: 40 | K202: 585 | L202: 100 | M202: 90 | N202: 19 | O202: 73.7 | P202: 5 | Q202: 5.5 | R202: 462 | S202: 415.8 | T202: 2 | U202: 0.1709401709 | V202: 0.03247863248 | W202: 0.008547008547 | X202: 0.7897435897
... 241 more rows

Sheet All_Graphs (hidden)
A12: ou

Sheet A-2ft (hidden)
H1: Runoff | I1: ET | J1: Drainage | K1: Overflow | L1: Exfiltration
A2: Soil Type | B2: Media Depth | C2: Surf Storage | D2: Area Ratio | E2: Top of IWS | F2: DC | G2: Area Ratio | H2: Rainfall | I2: ET | J2: Drainage | K2: Runoff | L2: VertSeepage | M2: ET | N2: Drainage | O2: Overflow | P2: Exfiltration
A3: A | B3: 2 | C3: 30 | D3: 28 | E3: none | F3: 60 | G3: 0.5 | H3: 2734 | I3: 100 | J3: 1055 | K3: 651 | L3: 927 | M3: =I3/H3 -> 0.03657644477 | N3: =J3/H3 -> 0.3858814923 | O3: =K3/H3 -> 0.2381126554 | P3: =L3/H3 -> 0.339063643
A4: A | B4: 2 | C4: 30 | D4: 28 | E4: 30 | F4: 60 | G4: 0.5 | H4: 2734 | I4: 100 | J4: 0 | K4: 651 | L4: 1984 | M4: 0.03657644477 | N4: 0 | O4: 0.2381126554 | P4: 0.7256766642
A5: A | B5: 2 | C5: 30 | D5: 28 | E5: 30 | F5: 40 | G5: 0.5 | H5: 2734 | I5: 100 | J5: 0 | K5: 651 | L5: 1984 | M5: 0.03657644477 | N5: 0 | O5: 0.2381126554 | P5: 0.7256766642
A6: A | B6: 2 | C6: 30 | D6: 28 | E6: 30 | F6: 20 | G6: 0.5 | H6: 2734 | I6: 100 | J6: 0 | K6: 651 | L6: 1984 | M6: 0.03657644477 | N6: 0 | O6: 0.2381126554 | P6: 0.7256766642
A7: A | B7: 2 | C7: 30 | D7: 18.7 | E7: none | F7: 60 | G7: 0.75 | H7: 1861 | I7: 100 | J7: 781 | K7: 233 | L7: 747 | M7: 0.05373455132 | N7: 0.4196668458 | O7: 0.1252015046 | P7: 0.4013970983
A8: A | B8: 2 | C8: 30 | D8: 18.7 | E8: 30 | F8: 60 | G8: 0.75 | H8: 1861 | I8: 100 | J8: 0 | K8: 233 | L8: 1529 | M8: 0.05373455132 | N8: 0 | O8: 0.1252015046 | P8: 0.8216012896
A9: A | B9: 2 | C9: 30 | D9: 18.7 | E9: 30 | F9: 40 | G9: 0.75 | H9: 1861 | I9: 100 | J9: 0 | K9: 233 | L9: 1529 | M9: 0.05373455132 | N9: 0 | O9: 0.1252015046 | P9: 0.8216012896
A10: A | B10: 2 | C10: 30 | D10: 18.7 | E10: 30 | F10: 20 | G10: 0.75 | H10: 1861 | I10: 100 | J10: 0 | K10: 233 | L10: 1529 | M10: 0.05373455132 | N10: 0 | O10: 0.1252015046 | P10: 0.8216012896
A11: A | B11: 2 | C11: 30 | D11: 14 | E11: none | F11: 60 | G11: 1 | H11: 1420 | I11: 100 | J11: 597 | K11: 99 | L11: 624 | M11: 0.07042253521 | N11: 0.4204225352 | O11: 0.06971830986 | P11: 0.4394366197
A12: A | B12: 2 | C12: 30 | D12: 14 | E12: 30 | F12: 60 | G12: 1 | H12: 1420 | I12: 100 | J12: 0 | K12: 99 | L12: 1222 | M12: 0.07042253521 | N12: 0 | O12: 0.06971830986 | P12: 0.8605633803
A13: A | B13: 2 | C13: 30 | D13: 14 | E13: 30 | F13: 40 | G13: 1 | H13: 1420 | I13: 100 | J13: 0 | K13: 99 | L13: 1222 | M13: 0.07042253521 | N13: 0 | O13: 0.06971830986 | P13: 0.8605633803
A14: A | B14: 2 | C14: 30 | D14: 14 | E14: 30 | F14: 20 | G14: 1 | H14: 1420 | I14: 100 | J14: 0 | K14: 99 | L14: 1222 | M14: 0.07042253521 | N14: 0 | O14: 0.06971830986 | P14: 0.8605633803
A15: A | B15: 2 | C15: 30 | D15: 11.2 | E15: none | F15: 60 | G15: 1.25 | H15: 1158 | I15: 100 | J15: 471 | K15: 49 | L15: 538 | M15: 0.08635578584 | N15: 0.4067357513 | O15: 0.04231433506 | P15: 0.4645941278
A16: A | B16: 2 | C16: 30 | D16: 11.2 | E16: 30 | F16: 60 | G16: 1.25 | H16: 1158 | I16: 100 | J16: 0 | K16: 49 | L16: 1009 | M16: 0.08635578584 | N16: 0 | O16: 0.04231433506 | P16: 0.8713298791
A17: A | B17: 2 | C17: 30 | D17: 11.2 | E17: 30 | F17: 40 | G17: 1.25 | H17: 1158 | I17: 100 | J17: 0 | K17: 49 | L17: 1009 | M17: 0.08635578584 | N17: 0 | O17: 0.04231433506 | P17: 0.8713298791
A18: A | B18: 2 | C18: 30 | D18: 11.2 | E18: 30 | F18: 20 | G18: 1.25 | H18: 1158 | I18: 100 | J18: 0 | K18: 49 | L18: 1009 | M18: 0.08635578584 | N18: 0 | O18: 0.04231433506 | P18: 0.8713298791
A19: A | B19: 2 | C19: 30 | D19: 9.3 | E19: none | F19: 60 | G19: 1.5 | H19: 979 | I19: 99 | J19: 381 | K19: 26 | L19: 473 | M19: 0.1011235955 | N19: 0.3891726251 | O19: 0.02655771195 | P19: 0.4831460674
A20: A | B20: 2 | C20: 30 | D20: 9.3 | E20: 30 | F20: 60 | G20: 1.5 | H20: 979 | I20: 99 | J20: 0 | K20: 26 | L20: 854 | M20: 0.1011235955 | N20: 0 | O20: 0.02655771195 | P20: 0.8723186925
A21: A | B21: 2 | C21: 30 | D21: 9.3 | E21: 30 | F21: 40 | G21: 1.5 | H21: 979 | I21: 99 | J21: 0 | K21: 26 | L21: 854 | M21: 0.1011235955 | N21: 0 | O21: 0.02655771195 | P21: 0.8723186925
A22: A | B22: 2 | C22: 30 | D22: 9.3 | E22: 30 | F22: 20 | G22: 1.5 | H22: 979 | I22: 99 | J22: 0 | K22: 26 | L22: 854 | M22: 0.1011235955 | N22: 0 | O22: 0.02655771195 | P22: 0.8723186925
A23: A | B23: 2 | C23: 30 | D23: 7 | E23: none | F23: 60 | G23: 2 | H23: 764 | I23: 99 | J23: 269 | K23: 10 | L23: 386 | M23: 0.1295811518 | N23: 0.3520942408 | O23: 0.01308900524 | P23: 0.5052356021
A24: A | B24: 2 | C24: 30 | D24: 7 | E24: 30 | F24: 60 | G24: 2 | H24: 764 | I24: 99 | J24: 0 | K24: 10 | L24: 655 | M24: 0.1295811518 | N24: 0 | O24: 0.01308900524 | P24: 0.8573298429
A25: A | B25: 2 | C25: 30 | D25: 7 | E25: 30 | F25: 40 | G25: 2 | H25: 764 | I25: 99 | J25: 0 | K25: 10 | L25: 655 | M25: 0.1295811518 | N25: 0 | O25: 0.01308900524 | P25: 0.8573298429
A26: A | B26: 2 | C26: 30 | D26: 7 | E26: 30 | F26: 20 | G26: 2 | H26: 764 | I26: 99 | J26: 0 | K26: 10 | L26: 655 | M26: 0.1295811518 | N26: 0 | O26: 0.01308900524 | P26: 0.8573298429
A27: A | B27: 2 | C27: 23 | D27: 20.4 | E27: none | F27: 60 | G27: 0.5 | H27: 2021 | I27: 100 | J27: 788 | K27: 378 | L27: 754 | M27: 0.04948045522 | N27: 0.3899059871 | O27: 0.1870361207 | P27: 0.3730826324
A28: A | B28: 2 | C28: 23 | D28: 20.4 | E28: 30 | F28: 60 | G28: 0.5 | H28: 2021 | I28: 100 | J28: 0 | K28: 378 | L28: 1544 | M28: 0.04948045522 | N28: 0 | O28: 0.1870361207 | P28: 0.7639782286
A29: A | B29: 2 | C29: 23 | D29: 20.4 | E29: 30 | F29: 40 | G29: 0.5 | H29: 2021 | I29: 100 | J29: 0 | K29: 378 | L29: 1544 | M29: 0.04948045522 | N29: 0 | O29: 0.1870361207 | P29: 0.7639782286
A30: A | B30: 2 | C30: 23 | D30: 20.4 | E30: 30 | F30: 20 | G30: 0.5 | H30: 2021 | I30: 100 | J30: 0 | K30: 378 | L30: 1544 | M30: 0.04948045522 | N30: 0 | O30: 0.1870361207 | P30: 0.7639782286
A31: A | B31: 2 | C31: 23 | D31: 13.6 | E31: none | F31: 60 | G31: 0.75 | H31: 1383 | I31: 100 | J31: 558 | K31: 126 | L31: 599 | M31: 0.0723065799 | N31: 0.4034707158 | O31: 0.09110629067 | P31: 0.4331164136
A32: A | B32: 2 | C32: 23 | D32: 13.6 | E32: 30 | F32: 60 | G32: 0.75 | H32: 1383 | I32: 100 | J32: 0 | K32: 126 | L32: 1157 | M32: 0.0723065799 | N32: 0 | O32: 0.09110629067 | P32: 0.8365871294
A33: A | B33: 2 | C33: 23 | D33: 13.6 | E33: 30 | F33: 40 | G33: 0.75 | H33: 1383 | I33: 100 | J33: 0 | K33: 126 | L33: 1157 | M33: 0.0723065799 | N33: 0 | O33: 0.09110629067 | P33: 0.8365871294
A34: A | B34: 2 | C34: 23 | D34: 13.6 | E34: 30 | F34: 20 | G34: 0.75 | H34: 1383 | I34: 100 | J34: 0 | K34: 126 | L34: 1157 | M34: 0.0723065799 | N34: 0 | O34: 0.09110629067 | P34: 0.8365871294
A35: A | B35: 2 | C35: 23 | D35: 10.2 | E35: none | F35: 60 | G35: 1 | H35: 1064 | I35: 100 | J35: 414 | K35: 53 | L35: 497 | M35: 0.09398496241 | N35: 0.3890977444 | O35: 0.04981203008 | P35: 0.4671052632
A36: A | B36: 2 | C36: 23 | D36: 10.2 | E36: 30 | F36: 60 | G36: 1 | H36: 1064 | I36: 100 | J36: 0 | K36: 53 | L36: 911 | M36: 0.09398496241 | N36: 0 | O36: 0.04981203008 | P36: 0.8562030075
A37: A | B37: 2 | C37: 23 | D37: 10.2 | E37: 30 | F37: 40 | G37: 1 | H37: 1064 | I37: 100 | J37: 0 | K37: 53 | L37: 911 | M37: 0.09398496241 | N37: 0 | O37: 0.04981203008 | P37: 0.8562030075
A38: A | B38: 2 | C38: 23 | D38: 10.2 | E38: 30 | F38: 20 | G38: 1 | H38: 1064 | I38: 100 | J38: 0 | K38: 53 | L38: 911 | M38: 0.09398496241 | N38: 0 | O38: 0.04981203008 | P38: 0.8562030075
A39: A | B39: 2 | C39: 23 | D39: 8.2 | E39: none | F39: 60 | G39: 1.25 | H39: 876 | I39: 99 | J39: 322 | K39: 26 | L39: 429 | M39: 0.1130136986 | N39: 0.3675799087 | O39: 0.0296803653 | P39: 0.4897260274
A40: A | B40: 2 | C40: 23 | D40: 8.2 | E40: 30 | F40: 60 | G40: 1.25 | H40: 876 | I40: 99 | J40: 0 | K40: 26 | L40: 751 | M40: 0.1130136986 | N40: 0 | O40: 0.0296803653 | P40: 0.8573059361
A41: A | B41: 2 | C41: 23 | D41: 8.2 | E41: 30 | F41: 40 | G41: 1.25 | H41: 876 | I41: 99 | J41: 0 | K41: 26 | L41: 751 | M41: 0.1130136986 | N41: 0 | O41: 0.0296803653 | P41: 0.8573059361
A42: A | B42: 2 | C42: 23 | D42: 8.2 | E42: 30 | F42: 20 | G42: 1.25 | H42: 876 | I42: 99 | J42: 0 | K42: 26 | L42: 751 | M42: 0.1130136986 | N42: 0 | O42: 0.0296803653 | P42: 0.8573059361
A43: A | B43: 2 | C43: 23 | D43: 6.8 | E43: none | F43: 60 | G43: 1.5 | H43: 745 | I43: 99 | J43: 256 | K43: 14 | L43: 376 | M43: 0.132885906 | N43: 0.3436241611 | O43: 0.01879194631 | P43: 0.5046979866
A44: A | B44: 2 | C44: 23 | D44: 6.8 | E44: 30 | F44: 60 | G44: 1.5 | H44: 745 | I44: 99 | J44: 0 | K44: 14 | L44: 632 | M44: 0.132885906 | N44: 0 | O44: 0.01879194631 | P44: 0.8483221477
A45: A | B45: 2 | C45: 23 | D45: 6.8 | E45: 30 | F45: 40 | G45: 1.5 | H45: 745 | I45: 99 | J45: 0 | K45: 14 | L45: 632 | M45: 0.132885906 | N45: 0 | O45: 0.01879194631 | P45: 0.8483221477
A46: A | B46: 2 | C46: 23 | D46: 6.8 | E46: 30 | F46: 20 | G46: 1.5 | H46: 745 | I46: 99 | J46: 0 | K46: 14 | L46: 632 | M46: 0.132885906 | N46: 0 | O46: 0.01879194631 | P46: 0.8483221477
A47: A | B47: 2 | C47: 23 | D47: 5.1 | E47: none | F47: 60 | G47: 2 | H47: 585 | I47: 99 | J47: 176 | K47: 5 | L47: 305 | M47: 0.1692307692 | N47: 0.3008547009 | O47: 0.008547008547 | P47: 0.5213675214
A48: A | B48: 2 | C48: 23 | D48: 5.1 | E48: 30 | F48: 60 | G48: 2 | H48: 585 | I48: 99 | J48: 0 | K48: 5 | L48: 481 | M48: 0.1692307692 | N48: 0 | O48: 0.008547008547 | P48: 0.8222222222
A49: A | B49: 2 | C49: 23 | D49: 5.1 | E49: 30 | F49: 40 | G49: 2 | H49: 585 | I49: 99 | J49: 0 | K49: 5 | L49: 481 | M49: 0.1692307692 | N49: 0 | O49: 0.008547008547 | P49: 0.8222222222
A50: A | B50: 2 | C50: 23 | D50: 5.1 | E50: 30 | F50: 20 | G50: 2 | H50: 585 | I50: 99 | J50: 0 | K50: 5 | L50: 481 | M50: 0.1692307692 | N50: 0 | O50: 0.008547008547 | P50: 0.8222222222

Sheet A-3ft (hidden)
H1: Runoff | I1: ET | J1: Drainage | K1: Overflow | L1: Exfiltration
A2: Soil Type | B2: Media Depth | C2: Surf Storage | D2: Area Ratio | E2: Top of IWS | F2: DC | G2: Area Ratio | H2: Rainfall | I2: ET | J2: Drainage | K2: Runoff | L2: VertSeepage | M2: ET | N2: Drainage | O2: Overflow | P2: Exfiltration
A3: A | B3: 3 | C3: 30 | D3: 28 | E3: none | F3: 60 | G3: 0.5 | H3: 2734 | I3: 100 | J3: 1095 | K3: 636 | L3: 902 | M3: =I3/H3 -> 0.03657644477 | N3: =J3/H3 -> 0.4005120702 | O3: =K3/H3 -> 0.2326261887 | P3: =L3/H3 -> 0.3299195318
A4: A | B4: 3 | C4: 30 | D4: 28 | E4: 30 | F4: 60 | G4: 0.5 | H4: 2734 | I4: 100 | J4: 0 | K4: 633 | L4: 2004 | M4: 0.03657644477 | N4: 0 | O4: 0.2315288954 | P4: 0.7329919532
A5: A | B5: 3 | C5: 30 | D5: 28 | E5: 30 | F5: 40 | G5: 0.5 | H5: 2734 | I5: 100 | J5: 0 | K5: 633 | L5: 2004 | M5: 0.03657644477 | N5: 0 | O5: 0.2315288954 | P5: 0.7329919532
A6: A | B6: 3 | C6: 30 | D6: 28 | E6: 30 | F6: 20 | G6: 0.5 | H6: 2734 | I6: 100 | J6: 0 | K6: 633 | L6: 2004 | M6: 0.03657644477 | N6: 0 | O6: 0.2315288954 | P6: 0.7329919532
A7: A | B7: 3 | C7: 30 | D7: 18.7 | E7: none | F7: 60 | G7: 0.75 | H7: 1861 | I7: 100 | J7: 813 | K7: 226 | L7: 722 | M7: 0.05373455132 | N7: 0.4368619022 | O7: 0.121440086 | P7: 0.3879634605
A8: A | B8: 3 | C8: 30 | D8: 18.7 | E8: 30 | F8: 60 | G8: 0.75 | H8: 1861 | I8: 100 | J8: 0 | K8: 224 | L8: 1539 | M8: 0.05373455132 | N8: 0 | O8: 0.1203653949 | P8: 0.8269747448
A9: A | B9: 3 | C9: 30 | D9: 18.7 | E9: 30 | F9: 40 | G9: 0.75 | H9: 1861 | I9: 100 | J9: 0 | K9: 224 | L9: 1539 | M9: 0.05373455132 | N9: 0 | O9: 0.1203653949 | P9: 0.8269747448
A10: A | B10: 3 | C10: 30 | D10: 18.7 | E10: 30 | F10: 20 | G10: 0.75 | H10: 1861 | I10: 100 | J10: 0 | K10: 224 | L10: 1539 | M10: 0.05373455132 | N10: 0 | O10: 0.1203653949 | P10: 0.8269747448
A11: A | B11: 3 | C11: 30 | D11: 14 | E11: none | F11: 60 | G11: 1 | H11: 1420 | I11: 100 | J11: 623 | K11: 96 | L11: 601 | M11: 0.07042253521 | N11: 0.4387323944 | O11: 0.0676056338 | P11: 0.4232394366
A12: A | B12: 3 | C12: 30 | D12: 14 | E12: 30 | F12: 60 | G12: 1 | H12: 1420 | I12: 100 | J12: 0 | K12: 95 | L12: 1227 | M12: 0.07042253521 | N12: 0 | O12: 0.06690140845 | P12: 0.864084507
A13: A | B13: 3 | C13: 30 | D13: 14 | E13: 30 | F13: 40 | G13: 1 | H13: 1420 | I13: 100 | J13: 0 | K13: 95 | L13: 1227 | M13: 0.07042253521 | N13: 0 | O13: 0.06690140845 | P13: 0.864084507
A14: A | B14: 3 | C14: 30 | D14: 14 | E14: 30 | F14: 20 | G14: 1 | H14: 1420 | I14: 100 | J14: 0 | K14: 95 | L14: 1227 | M14: 0.07042253521 | N14: 0 | O14: 0.06690140845 | P14: 0.864084507
A15: A | B15: 3 | C15: 30 | D15: 11.2 | E15: none | F15: 60 | G15: 1.25 | H15: 1158 | I15: 100 | J15: 495 | K15: 47 | L15: 516 | M15: 0.08635578584 | N15: 0.4274611399 | O15: 0.04058721934 | P15: 0.4455958549
A16: A | B16: 3 | C16: 30 | D16: 11.2 | E16: 30 | F16: 60 | G16: 1.25 | H16: 1158 | I16: 100 | J16: 0 | K16: 46 | L16: 1012 | M16: 0.08635578584 | N16: 0 | O16: 0.03972366149 | P16: 0.8739205527
A17: A | B17: 3 | C17: 30 | D17: 11.2 | E17: 30 | F17: 40 | G17: 1.25 | H17: 1158 | I17: 100 | J17: 0 | K17: 46 | L17: 1012 | M17: 0.08635578584 | N17: 0 | O17: 0.03972366149 | P17: 0.8739205527
A18: A | B18: 3 | C18: 30 | D18: 11.2 | E18: 30 | F18: 20 | G18: 1.25 | H18: 1158 | I18: 100 | J18: 0 | K18: 46 | L18: 1012 | M18: 0.08635578584 | N18: 0 | O18: 0.03972366149 | P18: 0.8739205527
A19: A | B19: 3 | C19: 30 | D19: 9.3 | E19: none | F19: 60 | G19: 1.5 | H19: 979 | I19: 100 | J19: 402 | K19: 25 | L19: 453 | M19: 0.102145046 | N19: 0.4106230848 | O19: 0.02553626149 | P19: 0.4627170582
A20: A | B20: 3 | C20: 30 | D20: 9.3 | E20: 30 | F20: 60 | G20: 1.5 | H20: 979 | I20: 99 | J20: 0 | K20: 24 | L20: 856 | M20: 0.1011235955 | N20: 0 | O20: 0.02451481103 | P20: 0.8743615935
A21: A | B21: 3 | C21: 30 | D21: 9.3 | E21: 30 | F21: 40 | G21: 1.5 | H21: 979 | I21: 99 | J21: 0 | K21: 24 | L21: 856 | M21: 0.1011235955 | N21: 0 | O21: 0.02451481103 | P21: 0.8743615935
A22: A | B22: 3 | C22: 30 | D22: 9.3 | E22: 30 | F22: 20 | G22: 1.5 | H22: 979 | I22: 99 | J22: 0 | K22: 24 | L22: 856 | M22: 0.1011235955 | N22: 0 | O22: 0.02451481103 | P22: 0.8743615935
A23: A | B23: 3 | C23: 30 | D23: 7 | E23: none | F23: 60 | G23: 2 | H23: 764 | I23: 100 | J23: 286 | K23: 9 | L23: 369 | M23: 0.1308900524 | N23: 0.3743455497 | O23: 0.01178010471 | P23: 0.4829842932
A24: A | B24: 3 | C24: 30 | D24: 7 | E24: 30 | F24: 60 | G24: 2 | H24: 764 | I24: 99 | J24: 0 | K24: 9 | L24: 655 | M24: 0.1295811518 | N24: 0 | O24: 0.01178010471 | P24: 0.8573298429
A25: A | B25: 3 | C25: 30 | D25: 7 | E25: 30 | F25: 40 | G25: 2 | H25: 764 | I25: 99 | J25: 0 | K25: 9 | L25: 655 | M25: 0.1295811518 | N25: 0 | O25: 0.01178010471 | P25: 0.8573298429
A26: A | B26: 3 | C26: 30 | D26: 7 | E26: 30 | F26: 20 | G26: 2 | H26: 764 | I26: 99 | J26: 0 | K26: 9 | L26: 655 | M26: 0.1295811518 | N26: 0 | O26: 0.01178010471 | P26: 0.8573298429
A27: A | B27: 3 | C27: 23 | D27: 20.4 | E27: none | F27: 60 | G27: 0.5 | H27: 2021 | I27: 100 | J27: 823 | K27: 367 | L27: 730 | M27: 0.04948045522 | N27: 0.4072241465 | O27: 0.1815932707 | P27: 0.3612073231
A28: A | B28: 3 | C28: 23 | D28: 20.4 | E28: 30 | F28: 60 | G28: 0.5 | H28: 2021 | I28: 100 | J28: 0 | K28: 365 | L28: 1559 | M28: 0.04948045522 | N28: 0 | O28: 0.1806036616 | P28: 0.7714002969
A29: A | B29: 3 | C29: 23 | D29: 20.4 | E29: 30 | F29: 40 | G29: 0.5 | H29: 2021 | I29: 100 | J29: 0 | K29: 365 | L29: 1559 | M29: 0.04948045522 | N29: 0 | O29: 0.1806036616 | P29: 0.7714002969
A30: A | B30: 3 | C30: 23 | D30: 20.4 | E30: 30 | F30: 20 | G30: 0.5 | H30: 2021 | I30: 100 | J30: 0 | K30: 365 | L30: 1559 | M30: 0.04948045522 | N30: 0 | O30: 0.1806036616 | P30: 0.7714002969
A31: A | B31: 3 | C31: 23 | D31: 13.6 | E31: none | F31: 60 | G31: 0.75 | H31: 1383 | I31: 100 | J31: 585 | K31: 121 | L31: 577 | M31: 0.0723065799 | N31: 0.4229934924 | O31: 0.08749096168 | P31: 0.417208966
A32: A | B32: 3 | C32: 23 | D32: 13.6 | E32: 30 | F32: 60 | G32: 0.75 | H32: 1383 | I32: 100 | J32: 0 | K32: 120 | L32: 1164 | M32: 0.0723065799 | N32: 0 | O32: 0.08676789588 | P32: 0.84164859
A33: A | B33: 3 | C33: 23 | D33: 13.6 | E33: 30 | F33: 40 | G33: 0.75 | H33: 1383 | I33: 100 | J33: 0 | K33: 120 | L33: 1164 | M33: 0.0723065799 | N33: 0 | O33: 0.08676789588 | P33: 0.84164859
A34: A | B34: 3 | C34: 23 | D34: 13.6 | E34: 30 | F34: 20 | G34: 0.75 | H34: 1383 | I34: 100 | J34: 0 | K34: 120 | L34: 1164 | M34: 0.0723065799 | N34: 0 | O34: 0.08676789588 | P34: 0.84164859
A35: A | B35: 3 | C35: 23 | D35: 10.2 | E35: none | F35: 60 | G35: 1 | H35: 1064 | I35: 100 | J35: 436 | K35: 51 | L35: 477 | M35: 0.09398496241 | N35: 0.4097744361 | O35: 0.04793233083 | P35: 0.4483082707
A36: A | B36: 3 | C36: 23 | D36: 10.2 | E36: 30 | F36: 60 | G36: 1 | H36: 1064 | I36: 100 | J36: 0 | K36: 50 | L36: 915 | M36: 0.09398496241 | N36: 0 | O36: 0.0469924812 | P36: 0.859962406
A37: A | B37: 3 | C37: 23 | D37: 10.2 | E37: 30 | F37: 40 | G37: 1 | H37: 1064 | I37: 100 | J37: 0 | K37: 50 | L37: 915 | M37: 0.09398496241 | N37: 0 | O37: 0.0469924812 | P37: 0.859962406
A38: A | B38: 3 | C38: 23 | D38: 10.2 | E38: 30 | F38: 20 | G38: 1 | H38: 1064 | I38: 100 | J38: 0 | K38: 50 | L38: 915 | M38: 0.09398496241 | N38: 0 | O38: 0.0469924812 | P38: 0.859962406
A39: A | B39: 3 | C39: 23 | D39: 8.2 | E39: none | F39: 60 | G39: 1.25 | H39: 876 | I39: 100 | J39: 342 | K39: 25 | L39: 410 | M39: 0.1141552511 | N39: 0.3904109589 | O39: 0.02853881279 | P39: 0.4680365297
A40: A | B40: 3 | C40: 23 | D40: 8.2 | E40: 30 | F40: 60 | G40: 1.25 | H40: 876 | I40: 99 | J40: 0 | K40: 24 | L40: 753 | M40: 0.1130136986 | N40: 0 | O40: 0.02739726027 | P40: 0.8595890411
A41: A | B41: 3 | C41: 23 | D41: 8.2 | E41: 30 | F41: 40 | G41: 1.25 | H41: 876 | I41: 99 | J41: 0 | K41: 24 | L41: 753 | M41: 0.1130136986 | N41: 0 | O41: 0.02739726027 | P41: 0.8595890411
A42: A | B42: 3 | C42: 23 | D42: 8.2 | E42: 30 | F42: 20 | G42: 1.25 | H42: 876 | I42: 99 | J42: 0 | K42: 24 | L42: 753 | M42: 0.1130136986 | N42: 0 | O42: 0.02739726027 | P42: 0.8595890411
A43: A | B43: 3 | C43: 23 | D43: 6.8 | E43: none | F43: 60 | G43: 1.5 | H43: 745 | I43: 100 | J43: 273 | K43: 13 | L43: 359 | M43: 0.1342281879 | N43: 0.366442953 | O43: 0.01744966443 | P43: 0.4818791946
A44: A | B44: 3 | C44: 23 | D44: 6.8 | E44: 30 | F44: 60 | G44: 1.5 | H44: 745 | I44: 99 | J44: 0 | K44: 13 | L44: 633 | M44: 0.132885906 | N44: 0 | O44: 0.01744966443 | P44: 0.8496644295
A45: A | B45: 3 | C45: 23 | D45: 6.8 | E45: 30 | F45: 40 | G45: 1.5 | H45: 745 | I45: 99 | J45: 0 | K45: 13 | L45: 633 | M45: 0.132885906 | N45: 0 | O45: 0.01744966443 | P45: 0.8496644295
A46: A | B46: 3 | C46: 23 | D46: 6.8 | E46: 30 | F46: 20 | G46: 1.5 | H46: 745 | I46: 99 | J46: 0 | K46: 13 | L46: 633 | M46: 0.132885906 | N46: 0 | O46: 0.01744966443 | P46: 0.8496644295
A47: A | B47: 3 | C47: 23 | D47: 5.1 | E47: none | F47: 60 | G47: 2 | H47: 585 | I47: 99 | J47: 190 | K47: 5 | L47: 291 | M47: 0.1692307692 | N47: 0.3247863248 | O47: 0.008547008547 | P47: 0.4974358974
A48: A | B48: 3 | C48: 23 | D48: 5.1 | E48: 30 | F48: 60 | G48: 2 | H48: 585 | I48: 99 | J48: 0 | K48: 5 | L48: 482 | M48: 0.1692307692 | N48: 0 | O48: 0.008547008547 | P48: 0.8239316239
A49: A | B49: 3 | C49: 23 | D49: 5.1 | E49: 30 | F49: 40 | G49: 2 | H49: 585 | I49: 99 | J49: 0 | K49: 5 | L49: 482 | M49: 0.1692307692 | N49: 0 | O49: 0.008547008547 | P49: 0.8239316239
A50: A | B50: 3 | C50: 23 | D50: 5.1 | E50: 30 | F50: 20 | G50: 2 | H50: 585 | I50: 99 | J50: 0 | K50: 5 | L50: 482 | M50: 0.1692307692 | N50: 0 | O50: 0.008547008547 | P50: 0.8239316239

Sheet B-3ft (hidden)
H1: Runoff | I1: ET | J1: Drainage | K1: Overflow | L1: Exfiltration
A2: Soil Type | B2: Media Depth | C2: Surf Storage | D2: Area Ratio | E2: Top of IWS | F2: DC | G2: Area Ratio | H2: Rainfall | I2: ET | J2: Drainage | K2: Runoff | L2: VertSeepage | M2: ET | N2: Drainage | O2: Overflow | P2: Exfiltration
A3: B | B3: 3 | C3: 30 | D3: 28 | E3: none | F3: 60 | G3: 0.5 | H3: 2734 | I3: 100 | J3: 1788 | K3: 637 | L3: 208 | M3: =I3/H3 -> 0.03657644477 | N3: =J3/H3 -> 0.6539868325 | O3: =K3/H3 -> 0.2329919532 | P3: =L3/H3 -> 0.07607900512
A4: B | B4: 3 | C4: 30 | D4: 28 | E4: 30 | F4: 60 | G4: 0.5 | H4: 2734 | I4: 100 | J4: 875 | K4: 634 | L4: 1124 | M4: 0.03657644477 | N4: 0.3200438917 | O4: 0.2318946598 | P4: 0.4111192392
A5: B | B5: 3 | C5: 30 | D5: 28 | E5: 30 | F5: 40 | G5: 0.5 | H5: 2734 | I5: 100 | J5: 746 | K5: 695 | L5: 1192 | M5: 0.03657644477 | N5: 0.272860278 | O5: 0.2542062911 | P5: 0.4359912217
A6: B | B6: 3 | C6: 30 | D6: 28 | E6: 30 | F6: 20 | G6: 0.5 | H6: 2734 | I6: 100 | J6: 565 | K6: 751 | L6: 1317 | M6: 0.03657644477 | N6: 0.2066569129 | O6: 0.2746891002 | P6: 0.4817117776
A7: B | B7: 3 | C7: 30 | D7: 18.7 | E7: none | F7: 60 | G7: 0.75 | H7: 1861 | I7: 100 | J7: 1358 | K7: 226 | L7: 177 | M7: 0.05373455132 | N7: 0.7297152069 | O7: 0.121440086 | P7: 0.09511015583
A8: B | B8: 3 | C8: 30 | D8: 18.7 | E8: 30 | F8: 60 | G8: 0.75 | H8: 1861 | I8: 100 | J8: 578 | K8: 222 | L8: 961 | M8: 0.05373455132 | N8: 0.3105857066 | O8: 0.1192907039 | P8: 0.5163890382
A9: B | B9: 3 | C9: 30 | D9: 18.7 | E9: 30 | F9: 40 | G9: 0.75 | H9: 1861 | I9: 100 | J9: 505 | K9: 251 | L9: 1006 | M9: 0.05373455132 | N9: 0.2713594841 | O9: 0.1348737238 | P9: 0.5405695862
A10: B | B10: 3 | C10: 30 | D10: 18.7 | E10: 30 | F10: 20 | G10: 0.75 | H10: 1861 | I10: 100 | J10: 387 | K10: 278 | L10: 1097 | M10: 0.05373455132 | N10: 0.2079527136 | O10: 0.1493820527 | P10: 0.5894680279
A11: B | B11: 3 | C11: 30 | D11: 14 | E11: none | F11: 60 | G11: 1 | H11: 1420 | I11: 100 | J11: 1070 | K11: 96 | L11: 155 | M11: 0.07042253521 | N11: 0.7535211268 | O11: 0.0676056338 | P11: 0.1091549296
A12: B | B12: 3 | C12: 30 | D12: 14 | E12: 30 | F12: 60 | G12: 1 | H12: 1420 | I12: 100 | J12: 391 | K12: 93 | L12: 836 | M12: 0.07042253521 | N12: 0.2753521127 | O12: 0.06549295775 | P12: 0.5887323944
A13: B | B13: 3 | C13: 30 | D13: 14 | E13: 30 | F13: 40 | G13: 1 | H13: 1420 | I13: 100 | J13: 346 | K13: 106 | L13: 869 | M13: 0.07042253521 | N13: 0.2436619718 | O13: 0.07464788732 | P13: 0.611971831
A14: B | B14: 3 | C14: 30 | D14: 14 | E14: 30 | F14: 20 | G14: 1 | H14: 1420 | I14: 100 | J14: 268 | K14: 139 | L14: 933 | M14: 0.07042253521 | N14: 0.1887323944 | O14: 0.09788732394 | P14: 0.6570422535
A15: B | B15: 3 | C15: 30 | D15: 11.2 | E15: none | F15: 60 | G15: 1.25 | H15: 1158 | I15: 100 | J15: 872 | K15: 47 | L15: 139 | M15: 0.08635578584 | N15: 0.7530224525 | O15: 0.04058721934 | P15: 0.1200345423
A16: B | B16: 3 | C16: 30 | D16: 11.2 | E16: 30 | F16: 60 | G16: 1.25 | H16: 1158 | I16: 100 | J16: 271 | K16: 46 | L16: 741 | M16: 0.08635578584 | N16: 0.2340241796 | O16: 0.03972366149 | P16: 0.6398963731
A17: B | B17: 3 | C17: 30 | D17: 11.2 | E17: 30 | F17: 40 | G17: 1.25 | H17: 1158 | I17: 100 | J17: 242 | K17: 52 | L17: 765 | M17: 0.08635578584 | N17: 0.2089810017 | O17: 0.04490500864 | P17: 0.6606217617
A18: B | B18: 3 | C18: 30 | D18: 11.2 | E18: 30 | F18: 20 | G18: 1.25 | H18: 1158 | I18: 100 | J18: 187 | K18: 60 | L18: 811 | M18: 0.08635578584 | N18: 0.1614853195 | O18: 0.0518134715 | P18: 0.7003454231
A19: B | B19: 3 | C19: 30 | D19: 9.3 | E19: none | F19: 60 | G19: 1.5 | H19: 979 | I19: 99 | J19: 728 | K19: 25 | L19: 127 | M19: 0.1011235955 | N19: 0.7436159346 | O19: 0.02553626149 | P19: 0.1297242084
A20: B | B20: 3 | C20: 30 | D20: 9.3 | E20: 30 | F20: 60 | G20: 1.5 | H20: 979 | I20: 99 | J20: 191 | K20: 24 | L20: 665 | M20: 0.1011235955 | N20: 0.1950970378 | O20: 0.02451481103 | P20: 0.6792645557
A21: B | B21: 3 | C21: 30 | D21: 9.3 | E21: 30 | F21: 40 | G21: 1.5 | H21: 979 | I21: 99 | J21: 171 | K21: 27 | L21: 681 | M21: 0.1011235955 | N21: 0.1746680286 | O21: 0.02757916241 | P21: 0.695607763
A22: B | B22: 3 | C22: 30 | D22: 9.3 | E22: 30 | F22: 20 | G22: 1.5 | H22: 979 | I22: 100 | J22: 133 | K22: 32 | L22: 715 | M22: 0.102145046 | N22: 0.1358529111 | O22: 0.03268641471 | P22: 0.7303370787
A23: B | B23: 3 | C23: 30 | D23: 7 | E23: none | F23: 60 | G23: 2 | H23: 764 | I23: 99 | J23: 545 | K23: 9 | L23: 110 | M23: 0.1295811518 | N23: 0.7133507853 | O23: 0.01178010471 | P23: 0.1439790576
A24: B | B24: 3 | C24: 30 | D24: 7 | E24: 30 | F24: 60 | G24: 2 | H24: 764 | I24: 99 | J24: 104 | K24: 9 | L24: 551 | M24: 0.1295811518 | N24: 0.1361256545 | O24: 0.01178010471 | P24: 0.7212041885
A25: B | B25: 3 | C25: 30 | D25: 7 | E25: 30 | F25: 40 | G25: 2 | H25: 764 | I25: 99 | J25: 93 | K25: 11 | L25: 560 | M25: 0.1295811518 | N25: 0.1217277487 | O25: 0.01439790576 | P25: 0.7329842932
A26: B | B26: 3 | C26: 30 | D26: 7 | E26: 30 | F26: 20 | G26: 2 | H26: 764 | I26: 99 | J26: 73 | K26: 12 | L26: 579 | M26: 0.1295811518 | N26: 0.09554973822 | O26: 0.01570680628 | P26: 0.7578534031
A27: B | B27: 3 | C27: 23 | D27: 20.4 | E27: none | F27: 60 | G27: 0.5 | H27: 2021 | I27: 100 | J27: 1374 | K27: 368 | L27: 179 | M27: 0.04948045522 | N27: 0.6798614547 | O27: 0.1820880752 | P27: 0.08857001484
A28: B | B28: 3 | C28: 23 | D28: 20.4 | E28: 30 | F28: 60 | G28: 0.5 | H28: 2021 | I28: 100 | J28: 571 | K28: 367 | L28: 983 | M28: 0.04948045522 | N28: 0.2825333993 | O28: 0.1815932707 | P28: 0.4863928748
A29: B | B29: 3 | C29: 23 | D29: 20.4 | E29: 30 | F29: 40 | G29: 0.5 | H29: 2021 | I29: 100 | J29: 496 | K29: 401 | L29: 1024 | M29: 0.04948045522 | N29: 0.2454230579 | O29: 0.1984166254 | P29: 0.5066798615
A30: B | B30: 3 | C30: 23 | D30: 20.4 | E30: 30 | F30: 20 | G30: 0.5 | H30: 2021 | I30: 100 | J30: 372 | K30: 439 | L30: 1111 | M30: 0.04948045522 | N30: 0.1840672934 | O30: 0.2172191984 | P30: 0.5497278575
A31: B | B31: 3 | C31: 23 | D31: 13.6 | E31: none | F31: 60 | G31: 0.75 | H31: 1383 | I31: 100 | J31: 1011 | K31: 122 | L31: 151 | M31: 0.0723065799 | N31: 0.7310195228 | O31: 0.08821402748 | P31: 0.1091829356
A32: B | B32: 3 | C32: 23 | D32: 13.6 | E32: 30 | F32: 60 | G32: 0.75 | H32: 1383 | I32: 100 | J32: 346 | K32: 119 | L32: 818 | M32: 0.0723065799 | N32: 0.2501807664 | O32: 0.08604483008 | P32: 0.5914678236
A33: B | B33: 3 | C33: 23 | D33: 13.6 | E33: 30 | F33: 40 | G33: 0.75 | H33: 1383 | I33: 100 | J33: 305 | K33: 132 | L33: 845 | M33: 0.0723065799 | N33: 0.2205350687 | O33: 0.09544468547 | P33: 0.6109906001
A34: B | B34: 3 | C34: 23 | D34: 13.6 | E34: 30 | F34: 20 | G34: 0.75 | H34: 1383 | I34: 100 | J34: 233 | K34: 150 | L34: 900 | M34: 0.0723065799 | N34: 0.1684743312 | O34: 0.1084598698 | P34: 0.6507592191
A35: B | B35: 3 | C35: 23 | D35: 10.2 | E35: none | F35: 60 | G35: 1 | H35: 1064 | I35: 100 | J35: 781 | K35: 51 | L35: 132 | M35: 0.09398496241 | N35: 0.7340225564 | O35: 0.04793233083 | P35: 0.1240601504
A36: B | B36: 3 | C36: 23 | D36: 10.2 | E36: 30 | F36: 60 | G36: 1 | H36: 1064 | I36: 100 | J36: 215 | K36: 50 | L36: 700 | M36: 0.09398496241 | N36: 0.2020676692 | O36: 0.0469924812 | P36: 0.6578947368
A37: B | B37: 3 | C37: 23 | D37: 10.2 | E37: 30 | F37: 40 | G37: 1 | H37: 1064 | I37: 100 | J37: 191 | K37: 56 | L37: 717 | M37: 0.09398496241 | N37: 0.1795112782 | O37: 0.05263157895 | P37: 0.6738721805
A38: B | B38: 3 | C38: 23 | D38: 10.2 | E38: 30 | F38: 20 | G38: 1 | H38: 1064 | I38: 100 | J38: 147 | K38: 63 | L38: 754 | M38: 0.09398496241 | N38: 0.1381578947 | O38: 0.05921052632 | P38: 0.7086466165
A39: B | B39: 3 | C39: 23 | D39: 8.2 | E39: none | F39: 60 | G39: 1.25 | H39: 876 | I39: 99 | J39: 634 | K39: 25 | L39: 119 | M39: 0.1130136986 | N39: 0.7237442922 | O39: 0.02853881279 | P39: 0.1358447489
A40: B | B40: 3 | C40: 23 | D40: 8.2 | E40: 30 | F40: 60 | G40: 1.25 | H40: 876 | I40: 99 | J40: 141 | K40: 24 | L40: 612 | M40: 0.1130136986 | N40: 0.1609589041 | O40: 0.02739726027 | P40: 0.698630137
A41: B | B41: 3 | C41: 23 | D41: 8.2 | E41: 30 | F41: 40 | G41: 1.25 | H41: 876 | I41: 99 | J41: 127 | K41: 27 | L41: 623 | M41: 0.1130136986 | N41: 0.1449771689 | O41: 0.03082191781 | P41: 0.7111872146
A42: B | B42: 3 | C42: 23 | D42: 8.2 | E42: 30 | F42: 20 | G42: 1.25 | H42: 876 | I42: 99 | J42: 97 | K42: 31 | L42: 649 | M42: 0.1130136986 | N42: 0.1107305936 | O42: 0.03538812785 | P42: 0.7408675799
A43: B | B43: 3 | C43: 23 | D43: 6.8 | E43: none | F43: 60 | G43: 1.5 | H43: 745 | I43: 99 | J43: 524 | K43: 13 | L43: 108 | M43: 0.132885906 | N43: 0.7033557047 | O43: 0.01744966443 | P43: 0.144966443
A44: B | B44: 3 | C44: 23 | D44: 6.8 | E44: 30 | F44: 60 | G44: 1.5 | H44: 745 | I44: 99 | J44: 93 | K44: 13 | L44: 539 | M44: 0.132885906 | N44: 0.1248322148 | O44: 0.01744966443 | P44: 0.7234899329
A45: B | B45: 3 | C45: 23 | D45: 6.8 | E45: 30 | F45: 40 | G45: 1.5 | H45: 745 | I45: 99 | J45: 83 | K45: 15 | L45: 548 | M45: 0.132885906 | N45: 0.111409396 | O45: 0.02013422819 | P45: 0.7355704698
A46: B | B46: 3 | C46: 23 | D46: 6.8 | E46: 30 | F46: 20 | G46: 1.5 | H46: 745 | I46: 99 | J46: 65 | K46: 17 | L46: 564 | M46: 0.132885906 | N46: 0.08724832215 | O46: 0.02281879195 | P46: 0.7570469799
A47: B | B47: 3 | C47: 23 | D47: 5.1 | E47: none | F47: 60 | G47: 2 | H47: 585 | I47: 99 | J47: 389 | K47: 5 | L47: 93 | M47: 0.1692307692 | N47: 0.664957265 | O47: 0.008547008547 | P47: 0.158974359
A48: B | B48: 3 | C48: 23 | D48: 5.1 | E48: 30 | F48: 60 | G48: 2 | H48: 585 | I48: 99 | J48: 47 | K48: 5 | L48: 435 | M48: 0.1692307692 | N48: 0.08034188034 | O48: 0.008547008547 | P48: 0.7435897436
A49: B | B49: 3 | C49: 23 | D49: 5.1 | E49: 30 | F49: 40 | G49: 2 | H49: 585 | I49: 99 | J49: 42 | K49: 6 | L49: 439 | M49: 0.1692307692 | N49: 0.07179487179 | O49: 0.01025641026 | P49: 0.7504273504
A50: B | B50: 3 | C50: 23 | D50: 5.1 | E50: 30 | F50: 20 | G50: 2 | H50: 585 | I50: 99 | J50: 32 | K50: 6 | L50: 448 | M50: 0.1692307692 | N50: 0.0547008547 | O50: 0.01025641026 | P50: 0.7658119658

Sheet B-4ft (hidden)
H1: Runoff | I1: ET | J1: Drainage | K1: Overflow | L1: Exfiltration
A2: Soil Type | B2: Media Depth | C2: Surf Storage | D2: Area Ratio | E2: Top of IWS | F2: DC | G2: Area Ratio | H2: Rainfall | I2: ET | J2: Drainage | K2: Runoff | L2: VertSeepage | M2: ET | N2: Drainage | O2: Overflow | P2: Exfiltration
A3: B | B3: 4 | C3: 30 | D3: 28 | E3: none | F3: 60 | G3: 0.5 | H3: 2734 | I3: 101 | J3: 1778 | K3: 619 | L3: 237 | M3: =I3/H3 -> 0.03694220922 | N3: =J3/H3 -> 0.650329188 | O3: =K3/H3 -> 0.2264081931 | P3: =L3/H3 -> 0.0866861741
A4: B | B4: 4 | C4: 30 | D4: 28 | E4: 30 | F4: 60 | G4: 0.5 | H4: 2734 | I4: 101 | J4: 652 | K4: 624 | L4: 1357 | M4: 0.03694220922 | N4: 0.2384784199 | O4: 0.2282370154 | P4: 0.4963423555
A5: B | B5: 4 | C5: 30 | D5: 28 | E5: 30 | F5: 40 | G5: 0.5 | H5: 2734 | I5: 101 | J5: 547 | K5: 666 | L5: 1420 | M5: 0.03694220922 | N5: 0.2000731529 | O5: 0.2435991222 | P5: 0.5193855157
A6: B | B6: 4 | C6: 30 | D6: 28 | E6: 30 | F6: 20 | G6: 0.5 | H6: 2734 | I6: 101 | J6: 412 | K6: 697 | L6: 1525 | M6: 0.03694220922 | N6: 0.1506949525 | O6: 0.25493782 | P6: 0.5577907827
A7: B | B7: 4 | C7: 30 | D7: 18.7 | E7: none | F7: 60 | G7: 0.75 | H7: 1861 | I7: 101 | J7: 1341 | K7: 217 | L7: 202 | M7: 0.05427189683 | N7: 0.7205803332 | O7: 0.1166039764 | P7: 0.1085437937
A8: B | B8: 4 | C8: 30 | D8: 18.7 | E8: 30 | F8: 60 | G8: 0.75 | H8: 1861 | I8: 101 | J8: 413 | K8: 215 | L8: 1133 | M8: 0.05427189683 | N8: 0.2219236969 | O8: 0.1155292853 | P8: 0.6088124664
A9: B | B9: 4 | C9: 30 | D9: 18.7 | E9: 30 | F9: 40 | G9: 0.75 | H9: 1861 | I9: 101 | J9: 353 | K9: 235 | L9: 1173 | M9: 0.05427189683 | N9: 0.1896829661 | O9: 0.1262761956 | P9: 0.6303062869
A10: B | B10: 4 | C10: 30 | D10: 18.7 | E10: 30 | F10: 20 | G10: 0.75 | H10: 1861 | I10: 101 | J10: 266 | K10: 251 | L10: 1244 | M10: 0.05427189683 | N10: 0.1429339065 | O10: 0.1348737238 | P10: 0.6684578184
A11: B | B11: 4 | C11: 30 | D11: 14 | E11: none | F11: 60 | G11: 1 | H11: 1420 | I11: 101 | J11: 1050 | K11: 91 | L11: 179 | M11: 0.07112676056 | N11: 0.7394366197 | O11: 0.06408450704 | P11: 0.126056338
A12: B | B12: 4 | C12: 30 | D12: 14 | E12: 30 | F12: 60 | G12: 1 | H12: 1420 | I12: 101 | J12: 263 | K12: 90 | L12: 967 | M12: 0.07112676056 | N12: 0.1852112676 | O12: 0.06338028169 | P12: 0.6809859155
A13: B | B13: 4 | C13: 30 | D13: 14 | E13: 30 | F13: 40 | G13: 1 | H13: 1420 | I13: 101 | J13: 225 | K13: 99 | L13: 995 | M13: 0.07112676056 | N13: 0.1584507042 | O13: 0.06971830986 | P13: 0.7007042254
A14: B | B14: 4 | C14: 30 | D14: 14 | E14: 30 | F14: 20 | G14: 1 | H14: 1420 | I14: 101 | J14: 171 | K14: 106 | L14: 1043 | M14: 0.07112676056 | N14: 0.1204225352 | O14: 0.07464788732 | P14: 0.7345070423
A15: B | B15: 4 | C15: 30 | D15: 11.2 | E15: none | F15: 60 | G15: 1.25 | H15: 1158 | I15: 101 | J15: 851 | K15: 44 | L15: 162 | M15: 0.0872193437 | N15: 0.7348877375 | O15: 0.03799654577 | P15: 0.1398963731
A16: B | B16: 4 | C16: 30 | D16: 11.2 | E16: 30 | F16: 60 | G16: 1.25 | H16: 1158 | I16: 100 | J16: 169 | K16: 44 | L16: 845 | M16: 0.08635578584 | N16: 0.1459412781 | O16: 0.03799654577 | P16: 0.7297063903
A17: B | B17: 4 | C17: 30 | D17: 11.2 | E17: 30 | F17: 40 | G17: 1.25 | H17: 1158 | I17: 100 | J17: 148 | K17: 48 | L17: 862 | M17: 0.08635578584 | N17: 0.127806563 | O17: 0.0414507772 | P17: 0.7443868739
A18: B | B18: 4 | C18: 30 | D18: 11.2 | E18: 30 | F18: 20 | G18: 1.25 | H18: 1158 | I18: 100 | J18: 111 | K18: 52 | L18: 894 | M18: 0.08635578584 | N18: 0.09585492228 | O18: 0.04490500864 | P18: 0.7720207254
A19: B | B19: 4 | C19: 30 | D19: 9.3 | E19: none | F19: 60 | G19: 1.5 | H19: 979 | I19: 101 | J19: 706 | K19: 23 | L19: 149 | M19: 0.1031664964 | N19: 0.7211440245 | O19: 0.02349336057 | P19: 0.1521961185
A20: B | B20: 4 | C20: 30 | D20: 9.3 | E20: 30 | F20: 60 | G20: 1.5 | H20: 979 | I20: 100 | J20: 113 | K20: 24 | L20: 743 | M20: 0.102145046 | N20: 0.1154239019 | O20: 0.02451481103 | P20: 0.7589376915
A21: B | B21: 4 | C21: 30 | D21: 9.3 | E21: 30 | F21: 40 | G21: 1.5 | H21: 979 | I21: 100 | J21: 99 | K21: 25 | L21: 755 | M21: 0.102145046 | N21: 0.1011235955 | O21: 0.02553626149 | P21: 0.771195097
A22: B | B22: 4 | C22: 30 | D22: 9.3 | E22: 30 | F22: 20 | G22: 1.5 | H22: 979 | I22: 100 | J22: 75 | K22: 27 | L22: 777 | M22: 0.102145046 | N22: 0.07660878447 | O22: 0.02757916241 | P22: 0.7936670072
A23: B | B23: 4 | C23: 30 | D23: 7 | E23: none | F23: 60 | G23: 2 | H23: 764 | I23: 101 | J23: 523 | K23: 9 | L23: 131 | M23: 0.1321989529 | N23: 0.6845549738 | O23: 0.01178010471 | P23: 0.1714659686
A24: B | B24: 4 | C24: 30 | D24: 7 | E24: 30 | F24: 60 | G24: 2 | H24: 764 | I24: 100 | J24: 55 | K24: 9 | L24: 599 | M24: 0.1308900524 | N24: 0.0719895288 | O24: 0.01178010471 | P24: 0.7840314136
A25: B | B25: 4 | C25: 30 | D25: 7 | E25: 30 | F25: 40 | G25: 2 | H25: 764 | I25: 100 | J25: 48 | K25: 10 | L25: 606 | M25: 0.1308900524 | N25: 0.06282722513 | O25: 0.01308900524 | P25: 0.7931937173
A26: B | B26: 4 | C26: 30 | D26: 7 | E26: 30 | F26: 20 | G26: 2 | H26: 764 | I26: 100 | J26: 36 | K26: 10 | L26: 617 | M26: 0.1308900524 | N26: 0.04712041885 | O26: 0.01308900524 | P26: 0.807591623
A27: B | B27: 4 | C27: 23 | D27: 20.4 | E27: none | F27: 60 | G27: 0.5 | H27: 2021 | I27: 101 | J27: 1361 | K27: 354 | L27: 205 | M27: 0.04997525977 | N27: 0.6734289955 | O27: 0.1751608115 | P27: 0.1014349332
A28: B | B28: 4 | C28: 23 | D28: 20.4 | E28: 30 | F28: 60 | G28: 0.5 | H28: 2021 | I28: 101 | J28: 401 | K28: 353 | L28: 1166 | M28: 0.04997525977 | N28: 0.1984166254 | O28: 0.1746660069 | P28: 0.5769421079
A29: B | B29: 4 | C29: 23 | D29: 20.4 | E29: 30 | F29: 40 | G29: 0.5 | H29: 2021 | I29: 101 | J29: 338 | K29: 379 | L29: 1203 | M29: 0.04997525977 | N29: 0.1672439386 | O29: 0.1875309253 | P29: 0.5952498763
A30: B | B30: 4 | C30: 23 | D30: 20.4 | E30: 30 | F30: 20 | G30: 0.5 | H30: 2021 | I30: 101 | J30: 252 | K30: 400 | L30: 1268 | M30: 0.04997525977 | N30: 0.1246907472 | O30: 0.1979218209 | P30: 0.6274121722
A31: B | B31: 4 | C31: 23 | D31: 13.6 | E31: none | F31: 60 | G31: 0.75 | H31: 1383 | I31: 101 | J31: 992 | K31: 116 | L31: 175 | M31: 0.0730296457 | N31: 0.7172812726 | O31: 0.08387563268 | P31: 0.1265365148
A32: B | B32: 4 | C32: 23 | D32: 13.6 | E32: 30 | F32: 60 | G32: 0.75 | H32: 1383 | I32: 101 | J32: 222 | K32: 115 | L32: 945 | M32: 0.0730296457 | N32: 0.1605206074 | O32: 0.08315256688 | P32: 0.68329718
A33: B | B33: 4 | C33: 23 | D33: 13.6 | E33: 30 | F33: 40 | G33: 0.75 | H33: 1383 | I33: 101 | J33: 191 | K33: 124 | L33: 967 | M33: 0.0730296457 | N33: 0.1381055676 | O33: 0.08966015907 | P33: 0.6992046276
A34: B | B34: 4 | C34: 23 | D34: 13.6 | E34: 30 | F34: 20 | G34: 0.75 | H34: 1383 | I34: 101 | J34: 142 | K34: 133 | L34: 1007 | M34: 0.0730296457 | N34: 0.1026753435 | O34: 0.09616775127 | P34: 0.7281272596
A35: B | B35: 4 | C35: 23 | D35: 10.2 | E35: none | F35: 60 | G35: 1 | H35: 1064 | I35: 101 | J35: 761 | K35: 48 | L35: 155 | M35: 0.09492481203 | N35: 0.7152255639 | O35: 0.04511278195 | P35: 0.1456766917
A36: B | B36: 4 | C36: 23 | D36: 10.2 | E36: 30 | F36: 60 | G36: 1 | H36: 1064 | I36: 100 | J36: 126 | K36: 48 | L36: 790 | M36: 0.09398496241 | N36: 0.1184210526 | O36: 0.04511278195 | P36: 0.742481203
A37: B | B37: 4 | C37: 23 | D37: 10.2 | E37: 30 | F37: 40 | G37: 1 | H37: 1064 | I37: 100 | J37: 110 | K37: 51 | L37: 803 | M37: 0.09398496241 | N37: 0.1033834586 | O37: 0.04793233083 | P37: 0.7546992481
A38: B | B38: 4 | C38: 23 | D38: 10.2 | E38: 30 | F38: 20 | G38: 1 | H38: 1064 | I38: 100 | J38: 83 | K38: 55 | L38: 826 | M38: 0.09398496241 | N38: 0.0780075188 | O38: 0.05169172932 | P38: 0.7763157895
A39: B | B39: 4 | C39: 23 | D39: 8.2 | E39: none | F39: 60 | G39: 1.25 | H39: 876 | I39: 101 | J39: 612 | K39: 23 | L39: 141 | M39: 0.1152968037 | N39: 0.698630137 | O39: 0.02625570776 | P39: 0.1609589041
A40: B | B40: 4 | C40: 23 | D40: 8.2 | E40: 30 | F40: 60 | G40: 1.25 | H40: 876 | I40: 100 | J40: 76 | K40: 24 | L40: 676 | M40: 0.1141552511 | N40: 0.08675799087 | O40: 0.02739726027 | P40: 0.7716894977
A41: B | B41: 4 | C41: 23 | D41: 8.2 | E41: 30 | F41: 40 | G41: 1.25 | H41: 876 | I41: 100 | J41: 67 | K41: 24 | L41: 684 | M41: 0.1141552511 | N41: 0.07648401826 | O41: 0.02739726027 | P41: 0.7808219178
A42: B | B42: 4 | C42: 23 | D42: 8.2 | E42: 30 | F42: 20 | G42: 1.25 | H42: 876 | I42: 100 | J42: 51 | K42: 26 | L42: 699 | M42: 0.1141552511 | N42: 0.05821917808 | O42: 0.0296803653 | P42: 0.7979452055
A43: B | B43: 4 | C43: 23 | D43: 6.8 | E43: none | F43: 60 | G43: 1.5 | H43: 745 | I43: 101 | J43: 503 | K43: 13 | L43: 129 | M43: 0.1355704698 | N43: 0.6751677852 | O43: 0.01744966443 | P43: 0.1731543624
A44: B | B44: 4 | C44: 23 | D44: 6.8 | E44: 30 | F44: 60 | G44: 1.5 | H44: 745 | I44: 100 | J44: 48 | K44: 13 | L44: 584 | M44: 0.1342281879 | N44: 0.0644295302 | O44: 0.01744966443 | P44: 0.7838926174
A45: B | B45: 4 | C45: 23 | D45: 6.8 | E45: 30 | F45: 40 | G45: 1.5 | H45: 745 | I45: 100 | J45: 41 | K45: 14 | L45: 590 | M45: 0.1342281879 | N45: 0.05503355705 | O45: 0.01879194631 | P45: 0.7919463087
A46: B | B46: 4 | C46: 23 | D46: 6.8 | E46: 30 | F46: 20 | G46: 1.5 | H46: 745 | I46: 100 | J46: 31 | K46: 14 | L46: 599 | M46: 0.1342281879 | N46: 0.04161073826 | O46: 0.01879194631 | P46: 0.8040268456
A47: B | B47: 4 | C47: 23 | D47: 5.1 | E47: none | F47: 60 | G47: 2 | H47: 585 | I47: 100 | J47: 369 | K47: 4 | L47: 111 | M47: 0.1709401709 | N47: 0.6307692308 | O47: 0.006837606838 | P47: 0.1897435897
A48: B | B48: 4 | C48: 23 | D48: 5.1 | E48: 30 | F48: 60 | G48: 2 | H48: 585 | I48: 100 | J48: 21 | K48: 4 | L48: 460 | M48: 0.1709401709 | N48: 0.0358974359 | O48: 0.006837606838 | P48: 0.7863247863
A49: B | B49: 4 | C49: 23 | D49: 5.1 | E49: 30 | F49: 40 | G49: 2 | H49: 585 | I49: 100 | J49: 19 | K49: 5 | L49: 462 | M49: 0.1709401709 | N49: 0.03247863248 | O49: 0.008547008547 | P49: 0.7897435897
A50: B | B50: 4 | C50: 23 | D50: 5.1 | E50: 30 | F50: 20 | G50: 2 | H50: 585 | I50: 100 | J50: 14 | K50: 5 | L50: 466 | M50: 0.1709401709 | N50: 0.02393162393 | O50: 0.008547008547 | P50: 0.7965811966

Sheet C-3ft (hidden)
H1: Runoff | I1: ET | J1: Drainage | K1: Overflow | L1: Exfiltration
A2: Soil Type | B2: Media Depth | C2: Surf Storage | D2: Area Ratio | E2: Top of IWS | F2: DC | G2: Area Ratio | H2: Rainfall | I2: ET | J2: Drainage | K2: Runoff | L2: VertSeepage | M2: ET | N2: Drainage | O2: Overflow | P2: Exfiltration
A3: C | B3: 3 | C3: 30 | D3: 28 | E3: none | F3: 60 | G3: 0.5 | H3: 2734 | I3: 100 | J3: 1952 | K3: 638 | L3: 44 | M3: =I3/H3 -> 0.03657644477 | N3: =J3/H3 -> 0.7139722019 | O3: =K3/H3 -> 0.2333577176 | P3: =L3/H3 -> 0.0160936357
A4: C | B4: 3 | C4: 30 | D4: 28 | E4: 45 | F4: 60 | G4: 0.5 | H4: 2734 | I4: 100 | J4: 1594 | K4: 680 | L4: 359 | M4: 0.03657644477 | N4: 0.5830285296 | O4: 0.2487198244 | P4: 0.1313094367
A5: C | B5: 3 | C5: 30 | D5: 28 | E5: 45 | F5: 40 | G5: 0.5 | H5: 2734 | I5: 100 | J5: 1480 | K5: 776 | L5: 378 | M5: 0.03657644477 | N5: 0.5413313826 | O5: 0.2838332114 | P5: 0.1382589612
A6: C | B6: 3 | C6: 30 | D6: 28 | E6: 45 | F6: 20 | G6: 0.5 | H6: 2734 | I6: 100 | J6: 1269 | K6: 948 | L6: 416 | M6: 0.03657644477 | N6: 0.4641550841 | O6: 0.3467446964 | P6: 0.1521580102
A7: C | B7: 3 | C7: 30 | D7: 18.7 | E7: none | F7: 60 | G7: 0.75 | H7: 1861 | I7: 100 | J7: 1497 | K7: 227 | L7: 38 | M7: 0.05373455132 | N7: 0.8044062332 | O7: 0.1219774315 | P7: 0.0204191295
A8: C | B8: 3 | C8: 30 | D8: 18.7 | E8: 45 | F8: 60 | G8: 0.75 | H8: 1861 | I8: 100 | J8: 1177 | K8: 244 | L8: 341 | M8: 0.05373455132 | N8: 0.632455669 | O8: 0.1311123052 | P8: 0.18323482
A9: C | B9: 3 | C9: 30 | D9: 18.7 | E9: 45 | F9: 40 | G9: 0.75 | H9: 1861 | I9: 100 | J9: 1115 | K9: 290 | L9: 355 | M9: 0.05373455132 | N9: 0.5991402472 | O9: 0.1558301988 | P9: 0.1907576572
A10: C | B10: 3 | C10: 30 | D10: 18.7 | E10: 45 | F10: 20 | G10: 0.75 | H10: 1861 | I10: 100 | J10: 990 | K10: 384 | L10: 387 | M10: 0.05373455132 | N10: 0.531972058 | O10: 0.2063406771 | P10: 0.2079527136
A11: C | B11: 3 | C11: 30 | D11: 14 | E11: none | F11: 60 | G11: 1 | H11: 1420 | I11: 100 | J11: 1191 | K11: 96 | L11: 34 | M11: 0.07042253521 | N11: 0.8387323944 | O11: 0.0676056338 | P11: 0.02394366197
A12: C | B12: 3 | C12: 30 | D12: 14 | E12: 45 | F12: 60 | G12: 1 | H12: 1420 | I12: 100 | J12: 890 | K12: 104 | L12: 326 | M12: 0.07042253521 | N12: 0.6267605634 | O12: 0.07323943662 | P12: 0.2295774648
A13: C | B13: 3 | C13: 30 | D13: 14 | E13: 45 | F13: 40 | G13: 1 | H13: 1420 | I13: 100 | J13: 856 | K13: 127 | L13: 337 | M13: 0.07042253521 | N13: 0.6028169014 | O13: 0.08943661972 | P13: 0.2373239437
A14: C | B14: 3 | C14: 30 | D14: 14 | E14: 45 | F14: 20 | G14: 1 | H14: 1420 | I14: 100 | J14: 778 | K14: 178 | L14: 363 | M14: 0.07042253521 | N14: 0.5478873239 | O14: 0.1253521127 | P14: 0.2556338028
A15: C | B15: 3 | C15: 30 | D15: 11.2 | E15: none | F15: 60 | G15: 1.25 | H15: 1158 | I15: 100 | J15: 980 | K15: 47 | L15: 31 | M15: 0.08635578584 | N15: 0.8462867012 | O15: 0.04058721934 | P15: 0.02677029361
A16: C | B16: 3 | C16: 30 | D16: 11.2 | E16: 45 | F16: 60 | G16: 1.25 | H16: 1158 | I16: 100 | J16: 695 | K16: 51 | L16: 312 | M16: 0.08635578584 | N16: 0.6001727116 | O16: 0.04404145078 | P16: 0.2694300518
A17: C | B17: 3 | C17: 30 | D17: 11.2 | E17: 45 | F17: 40 | G17: 1.25 | H17: 1158 | I17: 100 | J17: 673 | K17: 63 | L17: 322 | M17: 0.08635578584 | N17: 0.5811744387 | O17: 0.05440414508 | P17: 0.2780656304
A18: C | B18: 3 | C18: 30 | D18: 11.2 | E18: 45 | F18: 20 | G18: 1.25 | H18: 1158 | I18: 100 | J18: 623 | K18: 91 | L18: 343 | M18: 0.08635578584 | N18: 0.5379965458 | O18: 0.07858376511 | P18: 0.2962003454
A19: C | B19: 3 | C19: 30 | D19: 9.3 | E19: none | F19: 60 | G19: 1.5 | H19: 979 | I19: 100 | J19: 827 | K19: 25 | L19: 28 | M19: 0.102145046 | N19: 0.8447395301 | O19: 0.02553626149 | P19: 0.02860061287
A20: C | B20: 3 | C20: 30 | D20: 9.3 | E20: 45 | F20: 60 | G20: 1.5 | H20: 979 | I20: 100 | J20: 552 | K20: 27 | L20: 300 | M20: 0.102145046 | N20: 0.5638406537 | O20: 0.02757916241 | P20: 0.3064351379
A21: C | B21: 3 | C21: 30 | D21: 9.3 | E21: 45 | F21: 40 | G21: 1.5 | H21: 979 | I21: 100 | J21: 538 | K21: 34 | L21: 308 | M21: 0.102145046 | N21: 0.5495403473 | O21: 0.03472931563 | P21: 0.3146067416
A22: C | B22: 3 | C22: 30 | D22: 9.3 | E22: 45 | F22: 20 | G22: 1.5 | H22: 979 | I22: 100 | J22: 503 | K22: 51 | L22: 325 | M22: 0.102145046 | N22: 0.5137895812 | O22: 0.05209397344 | P22: 0.3319713994
A23: C | B23: 3 | C23: 30 | D23: 7 | E23: none | F23: 60 | G23: 2 | H23: 764 | I23: 99 | J23: 630 | K23: 9 | L23: 25 | M23: 0.1295811518 | N23: 0.8246073298 | O23: 0.01178010471 | P23: 0.03272251309
A24: C | B24: 3 | C24: 30 | D24: 7 | E24: 45 | F24: 60 | G24: 2 | H24: 764 | I24: 100 | J24: 374 | K24: 10 | L24: 280 | M24: 0.1308900524 | N24: 0.4895287958 | O24: 0.01308900524 | P24: 0.3664921466
A25: C | B25: 3 | C25: 30 | D25: 7 | E25: 45 | F25: 40 | G25: 2 | H25: 764 | I25: 100 | J25: 365 | K25: 14 | L25: 285 | M25: 0.1308900524 | N25: 0.4777486911 | O25: 0.01832460733 | P25: 0.3730366492
A26: C | B26: 3 | C26: 30 | D26: 7 | E26: 45 | F26: 20 | G26: 2 | H26: 764 | I26: 100 | J26: 347 | K26: 19 | L26: 298 | M26: 0.1308900524 | N26: 0.4541884817 | O26: 0.02486910995 | P26: 0.390052356
A27: C | B27: 3 | C27: 23 | D27: 20.4 | E27: none | F27: 60 | G27: 0.5 | H27: 2021 | I27: 100 | J27: 1514 | K27: 369 | L27: 38 | M27: 0.04948045522 | N27: 0.749134092 | O27: 0.1825828798 | P27: 0.01880257298
A28: C | B28: 3 | C28: 23 | D28: 20.4 | E28: 45 | F28: 60 | G28: 0.5 | H28: 2021 | I28: 100 | J28: 1181 | K28: 396 | L28: 344 | M28: 0.04948045522 | N28: 0.5843641762 | O28: 0.1959426027 | P28: 0.170212766
A29: C | B29: 3 | C29: 23 | D29: 20.4 | E29: 45 | F29: 40 | G29: 0.5 | H29: 2021 | I29: 100 | J29: 1098 | K29: 465 | L29: 357 | M29: 0.04948045522 | N29: 0.5432953983 | O29: 0.2300841168 | P29: 0.1766452251
A30: C | B30: 3 | C30: 23 | D30: 20.4 | E30: 45 | F30: 20 | G30: 0.5 | H30: 2021 | I30: 100 | J30: 951 | K30: 583 | L30: 386 | M30: 0.04948045522 | N30: 0.4705591291 | O30: 0.2884710539 | P30: 0.1909945571
A31: C | B31: 3 | C31: 23 | D31: 13.6 | E31: none | F31: 60 | G31: 0.75 | H31: 1383 | I31: 100 | J31: 1128 | K31: 122 | L31: 33 | M31: 0.0723065799 | N31: 0.8156182213 | O31: 0.08821402748 | P31: 0.02386117137
A32: C | B32: 3 | C32: 23 | D32: 13.6 | E32: 45 | F32: 60 | G32: 0.75 | H32: 1383 | I32: 100 | J32: 828 | K32: 132 | L32: 323 | M32: 0.0723065799 | N32: 0.5986984816 | O32: 0.09544468547 | P32: 0.2335502531
A33: C | B33: 3 | C33: 23 | D33: 13.6 | E33: 45 | F33: 40 | G33: 0.75 | H33: 1383 | I33: 100 | J33: 788 | K33: 161 | L33: 334 | M33: 0.0723065799 | N33: 0.5697758496 | O33: 0.1164135936 | P33: 0.2415039769
A34: C | B34: 3 | C34: 23 | D34: 13.6 | E34: 45 | F34: 20 | G34: 0.75 | H34: 1383 | I34: 100 | J34: 706 | K34: 220 | L34: 356 | M34: 0.0723065799 | N34: 0.5104844541 | O34: 0.1590744758 | P34: 0.2574114244
A35: C | B35: 3 | C35: 23 | D35: 10.2 | E35: none | F35: 60 | G35: 1 | H35: 1064 | I35: 100 | J35: 884 | K35: 51 | L35: 29 | M35: 0.09398496241 | N35: 0.8308270677 | O35: 0.04793233083 | P35: 0.0272556391
A36: C | B36: 3 | C36: 23 | D36: 10.2 | E36: 45 | F36: 60 | G36: 1 | H36: 1064 | I36: 100 | J36: 603 | K36: 55 | L36: 306 | M36: 0.09398496241 | N36: 0.5667293233 | O36: 0.05169172932 | P36: 0.287593985
A37: C | B37: 3 | C37: 23 | D37: 10.2 | E37: 45 | F37: 40 | G37: 1 | H37: 1064 | I37: 100 | J37: 581 | K37: 69 | L37: 314 | M37: 0.09398496241 | N37: 0.5460526316 | O37: 0.06484962406 | P37: 0.295112782
A38: C | B38: 3 | C38: 23 | D38: 10.2 | E38: 45 | F38: 20 | G38: 1 | H38: 1064 | I38: 100 | J38: 535 | K38: 97 | L38: 332 | M38: 0.09398496241 | N38: 0.5028195489 | O38: 0.09116541353 | P38: 0.3120300752
A39: C | B39: 3 | C39: 23 | D39: 8.2 | E39: none | F39: 60 | G39: 1.25 | H39: 876 | I39: 99 | J39: 726 | K39: 25 | L39: 27 | M39: 0.1130136986 | N39: 0.8287671233 | O39: 0.02853881279 | P39: 0.03082191781
A40: C | B40: 3 | C40: 23 | D40: 8.2 | E40: 45 | F40: 60 | G40: 1.25 | H40: 876 | I40: 100 | J40: 458 | K40: 27 | L40: 291 | M40: 0.1141552511 | N40: 0.5228310502 | O40: 0.03082191781 | P40: 0.3321917808
A41: C | B41: 3 | C41: 23 | D41: 8.2 | E41: 45 | F41: 40 | G41: 1.25 | H41: 876 | I41: 100 | J41: 444 | K41: 34 | L41: 298 | M41: 0.1141552511 | N41: 0.5068493151 | O41: 0.03881278539 | P41: 0.3401826484
A42: C | B42: 3 | C42: 23 | D42: 8.2 | E42: 45 | F42: 20 | G42: 1.25 | H42: 876 | I42: 100 | J42: 415 | K42: 49 | L42: 312 | M42: 0.1141552511 | N42: 0.4737442922 | O42: 0.05593607306 | P42: 0.3561643836
A43: C | B43: 3 | C43: 23 | D43: 6.8 | E43: none | F43: 60 | G43: 1.5 | H43: 745 | I43: 99 | J43: 608 | K43: 13 | L43: 24 | M43: 0.132885906 | N43: 0.8161073826 | O43: 0.01744966443 | P43: 0.0322147651
A44: C | B44: 3 | C44: 23 | D44: 6.8 | E44: 45 | F44: 60 | G44: 1.5 | H44: 745 | I44: 99 | J44: 353 | K44: 14 | L44: 277 | M44: 0.132885906 | N44: 0.4738255034 | O44: 0.01879194631 | P44: 0.3718120805
A45: C | B45: 3 | C45: 23 | D45: 6.8 | E45: 45 | F45: 40 | G45: 1.5 | H45: 745 | I45: 100 | J45: 344 | K45: 19 | L45: 283 | M45: 0.1342281879 | N45: 0.4617449664 | O45: 0.0255033557 | P45: 0.3798657718
A46: C | B46: 3 | C46: 23 | D46: 6.8 | E46: 45 | F46: 20 | G46: 1.5 | H46: 745 | I46: 100 | J46: 324 | K46: 27 | L46: 294 | M46: 0.1342281879 | N46: 0.4348993289 | O46: 0.03624161074 | P46: 0.3946308725
A47: C | B47: 3 | C47: 23 | D47: 5.1 | E47: none | F47: 60 | G47: 2 | H47: 585 | I47: 99 | J47: 461 | K47: 5 | L47: 21 | M47: 0.1692307692 | N47: 0.788034188 | O47: 0.008547008547 | P47: 0.0358974359
A48: C | B48: 3 | C48: 23 | D48: 5.1 | E48: 45 | F48: 60 | G48: 2 | H48: 585 | I48: 99 | J48: 227 | K48: 5 | L48: 254 | M48: 0.1692307692 | N48: 0.388034188 | O48: 0.008547008547 | P48: 0.4341880342
A49: C | B49: 3 | C49: 23 | D49: 5.1 | E49: 45 | F49: 40 | G49: 2 | H49: 585 | I49: 99 | J49: 221 | K49: 7 | L49: 258 | M49: 0.1692307692 | N49: 0.3777777778 | O49: 0.01196581197 | P49: 0.441025641
A50: C | B50: 3 | C50: 23 | D50: 5.1 | E50: 45 | F50: 20 | G50: 2 | H50: 585 | I50: 99 | J50: 210 | K50: 11 | L50: 265 | M50: 0.1692307692 | N50: 0.358974359 | O50: 0.0188034188 | P50: 0.452991453

Sheet C-4ft (hidden)
H1: Runoff | I1: ET | J1: Drainage | K1: Overflow | L1: Exfiltration
A2: Soil Type | B2: Media Depth | C2: Surf Storage | D2: Area Ratio | E2: Top of IWS | F2: DC | G2: Area Ratio | H2: Rainfall | I2: ET | J2: Drainage | K2: Runoff | L2: VertSeepage | M2: ET | N2: Drainage | O2: Overflow | P2: Exfiltration
A3: C | B3: 4 | C3: 30 | D3: 28 | E3: none | F3: 60 | G3: 0.5 | H3: 2734 | I3: 101 | J3: 1958 | K3: 620 | L3: 55 | M3: =I3/H3 -> 0.03694220922 | N3: =J3/H3 -> 0.7161667886 | O3: =K3/H3 -> 0.2267739576 | P3: =L3/H3 -> 0.02011704462
A4: C | B4: 4 | C4: 30 | D4: 28 | E4: 45 | F4: 60 | G4: 0.5 | H4: 2734 | I4: 101 | J4: 1477 | K4: 663 | L4: 493 | M4: 0.03694220922 | N4: 0.5402340892 | O4: 0.2425018288 | P4: 0.1803218727
A5: C | B5: 4 | C5: 30 | D5: 28 | E5: 45 | F5: 40 | G5: 0.5 | H5: 2734 | I5: 101 | J5: 1345 | K5: 773 | L5: 515 | M5: 0.03694220922 | N5: 0.4919531822 | O5: 0.2827359181 | P5: 0.1883686906
A6: C | B6: 4 | C6: 30 | D6: 28 | E6: 45 | F6: 20 | G6: 0.5 | H6: 2734 | I6: 101 | J6: 1167 | K6: 911 | L6: 555 | M6: 0.03694220922 | N6: 0.4268471105 | O6: 0.3332114119 | P6: 0.2029992685
A7: C | B7: 4 | C7: 30 | D7: 18.7 | E7: none | F7: 60 | G7: 0.75 | H7: 1861 | I7: 101 | J7: 1494 | K7: 218 | L7: 49 | M7: 0.05427189683 | N7: 0.8027941967 | O7: 0.1171413219 | P7: 0.02632993015
A8: C | B8: 4 | C8: 30 | D8: 18.7 | E8: 45 | F8: 60 | G8: 0.75 | H8: 1861 | I8: 101 | J8: 1059 | K8: 236 | L8: 466 | M8: 0.05427189683 | N8: 0.5690488984 | O8: 0.1268135411 | P8: 0.2504030091
A9: C | B9: 4 | C9: 30 | D9: 18.7 | E9: 45 | F9: 40 | G9: 0.75 | H9: 1861 | I9: 101 | J9: 990 | K9: 287 | L9: 483 | M9: 0.05427189683 | N9: 0.531972058 | O9: 0.1542181623 | P9: 0.2595378829
A10: C | B10: 4 | C10: 30 | D10: 18.7 | E10: 45 | F10: 20 | G10: 0.75 | H10: 1861 | I10: 101 | J10: 883 | K10: 362 | L10: 515 | M10: 0.05427189683 | N10: 0.4744760881 | O10: 0.1945190758 | P10: 0.2767329393
A11: C | B11: 4 | C11: 30 | D11: 14 | E11: none | F11: 60 | G11: 1 | H11: 1420 | I11: 101 | J11: 1184 | K11: 91 | L11: 45 | M11: 0.07112676056 | N11: 0.8338028169 | O11: 0.06408450704 | P11: 0.03169014085
A12: C | B12: 4 | C12: 30 | D12: 14 | E12: 45 | F12: 60 | G12: 1 | H12: 1420 | I12: 101 | J12: 779 | K12: 99 | L12: 442 | M12: 0.07112676056 | N12: 0.5485915493 | O12: 0.06971830986 | P12: 0.3112676056
A13: C | B13: 4 | C13: 30 | D13: 14 | E13: 45 | F13: 40 | G13: 1 | H13: 1420 | I13: 101 | J13: 739 | K13: 125 | L13: 455 | M13: 0.07112676056 | N13: 0.5204225352 | O13: 0.08802816901 | P13: 0.3204225352
A14: C | B14: 4 | C14: 30 | D14: 14 | E14: 45 | F14: 20 | G14: 1 | H14: 1420 | I14: 101 | J14: 674 | K14: 164 | L14: 481 | M14: 0.07112676056 | N14: 0.4746478873 | O14: 0.1154929577 | P14: 0.3387323944
A15: C | B15: 4 | C15: 30 | D15: 11.2 | E15: none | F15: 60 | G15: 1.25 | H15: 1158 | I15: 101 | J15: 971 | K15: 44 | L15: 42 | M15: 0.0872193437 | N15: 0.8385146805 | O15: 0.03799654577 | P15: 0.03626943005
A16: C | B16: 4 | C16: 30 | D16: 11.2 | E16: 45 | F16: 60 | G16: 1.25 | H16: 1158 | I16: 101 | J16: 588 | K16: 48 | L16: 420 | M16: 0.0872193437 | N16: 0.5077720207 | O16: 0.0414507772 | P16: 0.3626943005
A17: C | B17: 4 | C17: 30 | D17: 11.2 | E17: 45 | F17: 40 | G17: 1.25 | H17: 1158 | I17: 101 | J17: 563 | K17: 62 | L17: 431 | M17: 0.0872193437 | N17: 0.4861830743 | O17: 0.05354058722 | P17: 0.372193437
A18: C | B18: 4 | C18: 30 | D18: 11.2 | E18: 45 | F18: 20 | G18: 1.25 | H18: 1158 | I18: 101 | J18: 521 | K18: 83 | L18: 452 | M18: 0.0872193437 | N18: 0.4499136442 | O18: 0.07167530225 | P18: 0.390328152
A19: C | B19: 4 | C19: 30 | D19: 9.3 | E19: none | F19: 60 | G19: 1.5 | H19: 979 | I19: 101 | J19: 816 | K19: 24 | L19: 39 | M19: 0.1031664964 | N19: 0.8335035751 | O19: 0.02451481103 | P19: 0.03983656793
A20: C | B20: 4 | C20: 30 | D20: 9.3 | E20: 45 | F20: 60 | G20: 1.5 | H20: 979 | I20: 101 | J20: 452 | K20: 26 | L20: 401 | M20: 0.1031664964 | N20: 0.4616956078 | O20: 0.02655771195 | P20: 0.4096016343
A21: C | B21: 4 | C21: 30 | D21: 9.3 | E21: 45 | F21: 40 | G21: 1.5 | H21: 979 | I21: 101 | J21: 436 | K21: 33 | L21: 409 | M21: 0.1031664964 | N21: 0.4453524004 | O21: 0.03370786517 | P21: 0.417773238
A22: C | B22: 4 | C22: 30 | D22: 9.3 | E22: 45 | F22: 20 | G22: 1.5 | H22: 979 | I22: 101 | J22: 407 | K22: 45 | L22: 426 | M22: 0.1031664964 | N22: 0.4157303371 | O22: 0.04596527068 | P22: 0.4351378958
A23: C | B23: 4 | C23: 30 | D23: 7 | E23: none | F23: 60 | G23: 2 | H23: 764 | I23: 101 | J23: 619 | K23: 9 | L23: 36 | M23: 0.1321989529 | N23: 0.8102094241 | O23: 0.01178010471 | P23: 0.04712041885
A24: C | B24: 4 | C24: 30 | D24: 7 | E24: 45 | F24: 60 | G24: 2 | H24: 764 | I24: 101 | J24: 286 | K24: 10 | L24: 367 | M24: 0.1321989529 | N24: 0.3743455497 | O24: 0.01308900524 | P24: 0.4803664921
A25: C | B25: 4 | C25: 30 | D25: 7 | E25: 45 | F25: 40 | G25: 2 | H25: 764 | I25: 101 | J25: 277 | K25: 13 | L25: 372 | M25: 0.1321989529 | N25: 0.362565445 | O25: 0.01701570681 | P25: 0.4869109948
A26: C | B26: 4 | C26: 30 | D26: 7 | E26: 45 | F26: 20 | G26: 2 | H26: 764 | I26: 101 | J26: 262 | K26: 17 | L26: 384 | M26: 0.1321989529 | N26: 0.3429319372 | O26: 0.0222513089 | P26: 0.502617801
A27: C | B27: 4 | C27: 23 | D27: 20.4 | E27: none | F27: 60 | G27: 0.5 | H27: 2021 | I27: 101 | J27: 1516 | K27: 355 | L27: 49 | M27: 0.04997525977 | N27: 0.7501237011 | O27: 0.175655616 | P27: 0.02424542306
A28: C | B28: 4 | C28: 23 | D28: 20.4 | E28: 45 | F28: 60 | G28: 0.5 | H28: 2021 | I28: 101 | J28: 1064 | K28: 385 | L28: 470 | M28: 0.04997525977 | N28: 0.5264720435 | O28: 0.1904997526 | P28: 0.2325581395
A29: C | B29: 4 | C29: 23 | D29: 20.4 | E29: 45 | F29: 40 | G29: 0.5 | H29: 2021 | I29: 101 | J29: 979 | K29: 454 | L29: 487 | M29: 0.04997525977 | N29: 0.4844136566 | O29: 0.2246412667 | P29: 0.2409698169
A30: C | B30: 4 | C30: 23 | D30: 20.4 | E30: 45 | F30: 20 | G30: 0.5 | H30: 2021 | I30: 101 | J30: 851 | K30: 552 | L30: 516 | M30: 0.04997525977 | N30: 0.4210786739 | O30: 0.2731321128 | P30: 0.2553191489
A31: C | B31: 4 | C31: 23 | D31: 13.6 | E31: none | F31: 60 | G31: 0.75 | H31: 1383 | I31: 101 | J31: 1123 | K31: 116 | L31: 44 | M31: 0.0730296457 | N31: 0.8120028923 | O31: 0.08387563268 | P31: 0.03181489516
A32: C | B32: 4 | C32: 23 | D32: 13.6 | E32: 45 | F32: 60 | G32: 0.75 | H32: 1383 | I32: 101 | J32: 717 | K32: 126 | L32: 438 | M32: 0.0730296457 | N32: 0.5184381779 | O32: 0.09110629067 | P32: 0.31670282
A33: C | B33: 4 | C33: 23 | D33: 13.6 | E33: 45 | F33: 40 | G33: 0.75 | H33: 1383 | I33: 101 | J33: 676 | K33: 156 | L33: 450 | M33: 0.0730296457 | N33: 0.4887924801 | O33: 0.1127982646 | P33: 0.3253796095
A34: C | B34: 4 | C34: 23 | D34: 13.6 | E34: 45 | F34: 20 | G34: 0.75 | H34: 1383 | I34: 101 | J34: 606 | K34: 202 | L34: 473 | M34: 0.0730296457 | N34: 0.4381778742 | O34: 0.1460592914 | P34: 0.3420101229
A35: C | B35: 4 | C35: 23 | D35: 10.2 | E35: none | F35: 60 | G35: 1 | H35: 1064 | I35: 101 | J35: 875 | K35: 48 | L35: 40 | M35: 0.09492481203 | N35: 0.8223684211 | O35: 0.04511278195 | P35: 0.03759398496
A36: C | B36: 4 | C36: 23 | D36: 10.2 | E36: 45 | F36: 60 | G36: 1 | H36: 1064 | I36: 101 | J36: 500 | K36: 53 | L36: 410 | M36: 0.09492481203 | N36: 0.469924812 | O36: 0.04981203008 | P36: 0.3853383459
A37: C | B37: 4 | C37: 23 | D37: 10.2 | E37: 45 | F37: 40 | G37: 1 | H37: 1064 | I37: 101 | J37: 478 | K37: 66 | L37: 419 | M37: 0.09492481203 | N37: 0.4492481203 | O37: 0.06203007519 | P37: 0.3937969925
A38: C | B38: 4 | C38: 23 | D38: 10.2 | E38: 45 | F38: 20 | G38: 1 | H38: 1064 | I38: 101 | J38: 439 | K38: 87 | L38: 437 | M38: 0.09492481203 | N38: 0.412593985 | O38: 0.08176691729 | P38: 0.4107142857
A39: C | B39: 4 | C39: 23 | D39: 8.2 | E39: none | F39: 60 | G39: 1.25 | H39: 876 | I39: 101 | J39: 715 | K39: 23 | L39: 37 | M39: 0.1152968037 | N39: 0.8162100457 | O39: 0.02625570776 | P39: 0.04223744292
A40: C | B40: 4 | C40: 23 | D40: 8.2 | E40: 45 | F40: 60 | G40: 1.25 | H40: 876 | I40: 101 | J40: 364 | K40: 25 | L40: 386 | M40: 0.1152968037 | N40: 0.4155251142 | O40: 0.02853881279 | P40: 0.4406392694
A41: C | B41: 4 | C41: 23 | D41: 8.2 | E41: 45 | F41: 40 | G41: 1.25 | H41: 876 | I41: 101 | J41: 350 | K41: 33 | L41: 393 | M41: 0.1152968037 | N41: 0.399543379 | O41: 0.03767123288 | P41: 0.448630137
A42: C | B42: 4 | C42: 23 | D42: 8.2 | E42: 45 | F42: 20 | G42: 1.25 | H42: 876 | I42: 101 | J42: 326 | K42: 43 | L42: 406 | M42: 0.1152968037 | N42: 0.3721461187 | O42: 0.04908675799 | P42: 0.4634703196
A43: C | B43: 4 | C43: 23 | D43: 6.8 | E43: none | F43: 60 | G43: 1.5 | H43: 745 | I43: 101 | J43: 597 | K43: 13 | L43: 35 | M43: 0.1355704698 | N43: 0.8013422819 | O43: 0.01744966443 | P43: 0.04697986577
A44: C | B44: 4 | C44: 23 | D44: 6.8 | E44: 45 | F44: 60 | G44: 1.5 | H44: 745 | I44: 101 | J44: 267 | K44: 14 | L44: 363 | M44: 0.1355704698 | N44: 0.3583892617 | O44: 0.01879194631 | P44: 0.4872483221
A45: C | B45: 4 | C45: 23 | D45: 6.8 | E45: 45 | F45: 40 | G45: 1.5 | H45: 745 | I45: 101 | J45: 258 | K45: 17 | L45: 368 | M45: 0.1355704698 | N45: 0.3463087248 | O45: 0.02281879195 | P45: 0.4939597315
A46: C | B46: 4 | C46: 23 | D46: 6.8 | E46: 45 | F46: 20 | G46: 1.5 | H46: 745 | I46: 101 | J46: 242 | K46: 23 | L46: 378 | M46: 0.1355704698 | N46: 0.3248322148 | O46: 0.03087248322 | P46: 0.5073825503
A47: C | B47: 4 | C47: 23 | D47: 5.1 | E47: none | F47: 60 | G47: 2 | H47: 585 | I47: 101 | J47: 449 | K47: 4 | L47: 32 | M47: 0.1726495726 | N47: 0.7675213675 | O47: 0.006837606838 | P47: 0.0547008547
A48: C | B48: 4 | C48: 23 | D48: 5.1 | E48: 45 | F48: 60 | G48: 2 | H48: 585 | I48: 101 | J48: 155 | K48: 5 | L48: 324 | M48: 0.1726495726 | N48: 0.264957265 | O48: 0.008547008547 | P48: 0.5538461538
A49: C | B49: 4 | C49: 23 | D49: 5.1 | E49: 45 | F49: 40 | G49: 2 | H49: 585 | I49: 101 | J49: 150 | K49: 7 | L49: 328 | M49: 0.1726495726 | N49: 0.2564102564 | O49: 0.01196581197 | P49: 0.5606837607
A50: C | B50: 4 | C50: 23 | D50: 5.1 | E50: 45 | F50: 20 | G50: 2 | H50: 585 | I50: 101 | J50: 141 | K50: 9 | L50: 334 | M50: 0.1726495726 | N50: 0.241025641 | O50: 0.01538461538 | P50: 0.5709401709

Sheet D-3ft (hidden)
H1: Runoff | I1: ET | J1: Drainage | K1: Overflow | L1: Exfiltration
A2: Soil Type | B2: Media Depth | C2: Surf Storage | D2: Area Ratio | E2: Top of IWS | F2: DC | G2: Area Ratio | H2: Rainfall | I2: ET | J2: Drainage | K2: Runoff | L2: VertSeepage | M2: ET | N2: Drainage | O2: Overflow | P2: Exfiltration
A3: D | B3: 3 | C3: 30 | D3: 28 | E3: none | F3: 60 | G3: 0.5 | H3: 2734 | I3: 100 | J3: 1991 | K3: 639 | L3: 5 | M3: =I3/H3 -> 0.03657644477 | N3: =J3/H3 -> 0.7282370154 | O3: =K3/H3 -> 0.2337234821 | P3: =L3/H3 -> 0.001828822238
A4: D | B4: 3 | C4: 30 | D4: 28 | E4: 45 | F4: 60 | G4: 0.5 | H4: 2734 | I4: 101 | J4: 1865 | K4: 716 | L4: 51 | M4: 0.03694220922 | N4: 0.682150695 | O4: 0.2618873446 | P4: 0.01865398683
A5: D | B5: 3 | C5: 30 | D5: 28 | E5: 45 | F5: 40 | G5: 0.5 | H5: 2734 | I5: 101 | J5: 1754 | K5: 826 | L5: 53 | M5: 0.03694220922 | N5: 0.6415508413 | O5: 0.3021214338 | P5: 0.01938551573
A6: D | B6: 3 | C6: 30 | D6: 28 | E6: 45 | F6: 20 | G6: 0.5 | H6: 2734 | I6: 101 | J6: 1546 | K6: 1031 | L6: 56 | M6: 0.03694220922 | N6: 0.5654718361 | O6: 0.3771031456 | P6: 0.02048280907
A7: D | B7: 3 | C7: 30 | D7: 18.7 | E7: none | F7: 60 | G7: 0.75 | H7: 1861 | I7: 100 | J7: 1531 | K7: 227 | L7: 4 | M7: 0.05373455132 | N7: 0.8226759807 | O7: 0.1219774315 | P7: 0.002149382053
A8: D | B8: 3 | C8: 30 | D8: 18.7 | E8: 45 | F8: 60 | G8: 0.75 | H8: 1861 | I8: 101 | J8: 1450 | K8: 260 | L8: 50 | M8: 0.05427189683 | N8: 0.7791509941 | O8: 0.1397098334 | P8: 0.02686727566
A9: D | B9: 3 | C9: 30 | D9: 18.7 | E9: 45 | F9: 40 | G9: 0.75 | H9: 1861 | I9: 101 | J9: 1388 | K9: 321 | L9: 52 | M9: 0.05427189683 | N9: 0.7458355723 | O9: 0.1724879097 | P9: 0.02794196668
A10: D | B10: 3 | C10: 30 | D10: 18.7 | E10: 45 | F10: 20 | G10: 0.75 | H10: 1861 | I10: 101 | J10: 1270 | K10: 436 | L10: 54 | M10: 0.05427189683 | N10: 0.6824288017 | O10: 0.2342826437 | P10: 0.02901665771
A11: D | B11: 3 | C11: 30 | D11: 14 | E11: none | F11: 60 | G11: 1 | H11: 1420 | I11: 100 | J11: 1221 | K11: 96 | L11: 4 | M11: 0.07042253521 | N11: 0.8598591549 | O11: 0.0676056338 | P11: 0.002816901408
A12: D | B12: 3 | C12: 30 | D12: 14 | E12: 45 | F12: 60 | G12: 1 | H12: 1420 | I12: 101 | J12: 1157 | K12: 113 | L12: 50 | M12: 0.07112676056 | N12: 0.8147887324 | O12: 0.07957746479 | P12: 0.03521126761
A13: D | B13: 3 | C13: 30 | D13: 14 | E13: 45 | F13: 40 | G13: 1 | H13: 1420 | I13: 101 | J13: 1126 | K13: 143 | L13: 51 | M13: 0.07112676056 | N13: 0.7929577465 | O13: 0.1007042254 | P13: 0.03591549296
A14: D | B14: 3 | C14: 30 | D14: 14 | E14: 45 | F14: 20 | G14: 1 | H14: 1420 | I14: 101 | J14: 1058 | K14: 208 | L14: 53 | M14: 0.07112676056 | N14: 0.7450704225 | O14: 0.1464788732 | P14: 0.03732394366
A15: D | B15: 3 | C15: 30 | D15: 11.2 | E15: none | F15: 60 | G15: 1.25 | H15: 1158 | I15: 100 | J15: 1008 | K15: 47 | L15: 3 | M15: 0.08635578584 | N15: 0.8704663212 | O15: 0.04058721934 | P15: 0.002590673575
A16: D | B16: 3 | C16: 30 | D16: 11.2 | E16: 45 | F16: 60 | G16: 1.25 | H16: 1158 | I16: 101 | J16: 952 | K16: 56 | L16: 49 | M16: 0.0872193437 | N16: 0.8221070812 | O16: 0.04835924007 | P16: 0.04231433506
A17: D | B17: 3 | C17: 30 | D17: 11.2 | E17: 45 | F17: 40 | G17: 1.25 | H17: 1158 | I17: 101 | J17: 934 | K17: 72 | L17: 50 | M17: 0.0872193437 | N17: 0.8065630397 | O17: 0.0621761658 | P17: 0.04317789292
A18: D | B18: 3 | C18: 30 | D18: 11.2 | E18: 45 | F18: 20 | G18: 1.25 | H18: 1158 | I18: 101 | J18: 893 | K18: 111 | L18: 52 | M18: 0.0872193437 | N18: 0.7711571675 | O18: 0.09585492228 | P18: 0.04490500864
A19: D | B19: 3 | C19: 30 | D19: 9.3 | E19: none | F19: 60 | G19: 1.5 | H19: 979 | I19: 99 | J19: 852 | K19: 25 | L19: 3 | M19: 0.1011235955 | N19: 0.8702757916 | O19: 0.02553626149 | P19: 0.003064351379
A20: D | B20: 3 | C20: 30 | D20: 9.3 | E20: 45 | F20: 60 | G20: 1.5 | H20: 979 | I20: 101 | J20: 800 | K20: 30 | L20: 48 | M20: 0.1031664964 | N20: 0.8171603677 | O20: 0.03064351379 | P20: 0.04902962206
A21: D | B21: 3 | C21: 30 | D21: 9.3 | E21: 45 | F21: 40 | G21: 1.5 | H21: 979 | I21: 101 | J21: 789 | K21: 40 | L21: 49 | M21: 0.1031664964 | N21: 0.8059244127 | O21: 0.04085801839 | P21: 0.05005107252
A22: D | B22: 3 | C22: 30 | D22: 9.3 | E22: 45 | F22: 20 | G22: 1.5 | H22: 979 | I22: 101 | J22: 764 | K22: 63 | L22: 51 | M22: 0.1031664964 | N22: 0.7803881512 | O22: 0.06435137896 | P22: 0.05209397344
A23: D | B23: 3 | C23: 30 | D23: 7 | E23: none | F23: 60 | G23: 2 | H23: 764 | I23: 99 | J23: 653 | K23: 9 | L23: 2 | M23: 0.1295811518 | N23: 0.8547120419 | O23: 0.01178010471 | P23: 0.002617801047
A24: D | B24: 3 | C24: 30 | D24: 7 | E24: 45 | F24: 60 | G24: 2 | H24: 764 | I24: 101 | J24: 603 | K24: 12 | L24: 48 | M24: 0.1321989529 | N24: 0.7892670157 | O24: 0.01570680628 | P24: 0.06282722513
A25: D | B25: 3 | C25: 30 | D25: 7 | E25: 45 | F25: 40 | G25: 2 | H25: 764 | I25: 101 | J25: 599 | K25: 16 | L25: 48 | M25: 0.1321989529 | N25: 0.7840314136 | O25: 0.02094240838 | P25: 0.06282722513
A26: D | B26: 3 | C26: 30 | D26: 7 | E26: 45 | F26: 20 | G26: 2 | H26: 764 | I26: 101 | J26: 587 | K26: 25 | L26: 50 | M26: 0.1321989529 | N26: 0.7683246073 | O26: 0.03272251309 | P26: 0.06544502618
A27: D | B27: 3 | C27: 23 | D27: 20.4 | E27: none | F27: 60 | G27: 0.5 | H27: 2021 | I27: 100 | J27: 1548 | K27: 369 | L27: 4 | M27: 0.04948045522 | N27: 0.7659574468 | O27: 0.1825828798 | P27: 0.001979218209
A28: D | B28: 3 | C28: 23 | D28: 20.4 | E28: 45 | F28: 60 | G28: 0.5 | H28: 2021 | I28: 101 | J28: 1451 | K28: 418 | L28: 50 | M28: 0.04997525977 | N28: 0.7179614052 | O28: 0.2068283028 | P28: 0.02474022761
A29: D | B29: 3 | C29: 23 | D29: 20.4 | E29: 45 | F29: 40 | G29: 0.5 | H29: 2021 | I29: 101 | J29: 1362 | K29: 506 | L29: 52 | M29: 0.04997525977 | N29: 0.6739238001 | O29: 0.2503711034 | P29: 0.02572983671
A30: D | B30: 3 | C30: 23 | D30: 20.4 | E30: 45 | F30: 20 | G30: 0.5 | H30: 2021 | I30: 101 | J30: 1214 | K30: 651 | L30: 54 | M30: 0.04997525977 | N30: 0.6006927264 | O30: 0.3221177635 | P30: 0.02671944582
A31: D | B31: 3 | C31: 23 | D31: 13.6 | E31: none | F31: 60 | G31: 0.75 | H31: 1383 | I31: 100 | J31: 1158 | K31: 122 | L31: 3 | M31: 0.0723065799 | N31: 0.8373101952 | O31: 0.08821402748 | P31: 0.002169197397
A32: D | B32: 3 | C32: 23 | D32: 13.6 | E32: 45 | F32: 60 | G32: 0.75 | H32: 1383 | I32: 101 | J32: 1090 | K32: 142 | L32: 49 | M32: 0.0730296457 | N32: 0.7881417209 | O32: 0.1026753435 | P32: 0.03543022415
A33: D | B33: 3 | C33: 23 | D33: 13.6 | E33: 45 | F33: 40 | G33: 0.75 | H33: 1383 | I33: 101 | J33: 1048 | K33: 183 | L33: 50 | M33: 0.0730296457 | N33: 0.7577729573 | O33: 0.1323210412 | P33: 0.03615328995
A34: D | B34: 3 | C34: 23 | D34: 13.6 | E34: 45 | F34: 20 | G34: 0.75 | H34: 1383 | I34: 101 | J34: 970 | K34: 259 | L34: 53 | M34: 0.0730296457 | N34: 0.701373825 | O34: 0.1872740419 | P34: 0.03832248735
A35: D | B35: 3 | C35: 23 | D35: 10.2 | E35: none | F35: 60 | G35: 1 | H35: 1064 | I35: 100 | J35: 910 | K35: 51 | L35: 3 | M35: 0.09398496241 | N35: 0.8552631579 | O35: 0.04793233083 | P35: 0.002819548872
A36: D | B36: 3 | C36: 23 | D36: 10.2 | E36: 45 | F36: 60 | G36: 1 | H36: 1064 | I36: 101 | J36: 854 | K36: 60 | L36: 49 | M36: 0.09492481203 | N36: 0.8026315789 | O36: 0.05639097744 | P36: 0.04605263158
A37: D | B37: 3 | C37: 23 | D37: 10.2 | E37: 45 | F37: 40 | G37: 1 | H37: 1064 | I37: 101 | J37: 833 | K37: 80 | L37: 50 | M37: 0.09492481203 | N37: 0.7828947368 | O37: 0.07518796992 | P37: 0.0469924812
A38: D | B38: 3 | C38: 23 | D38: 10.2 | E38: 45 | F38: 20 | G38: 1 | H38: 1064 | I38: 101 | J38: 791 | K38: 120 | L38: 51 | M38: 0.09492481203 | N38: 0.7434210526 | O38: 0.1127819549 | P38: 0.04793233083
A39: D | B39: 3 | C39: 23 | D39: 8.2 | E39: none | F39: 60 | G39: 1.25 | H39: 876 | I39: 99 | J39: 750 | K39: 25 | L39: 3 | M39: 0.1130136986 | N39: 0.8561643836 | O39: 0.02853881279 | P39: 0.003424657534
A40: D | B40: 3 | C40: 23 | D40: 8.2 | E40: 45 | F40: 60 | G40: 1.25 | H40: 876 | I40: 101 | J40: 697 | K40: 30 | L40: 48 | M40: 0.1152968037 | N40: 0.7956621005 | O40: 0.03424657534 | P40: 0.05479452055
A41: D | B41: 3 | C41: 23 | D41: 8.2 | E41: 45 | F41: 40 | G41: 1.25 | H41: 876 | I41: 101 | J41: 685 | K41: 41 | L41: 49 | M41: 0.1152968037 | N41: 0.7819634703 | O41: 0.04680365297 | P41: 0.05593607306
A42: D | B42: 3 | C42: 23 | D42: 8.2 | E42: 45 | F42: 20 | G42: 1.25 | H42: 876 | I42: 101 | J42: 661 | K42: 64 | L42: 50 | M42: 0.1152968037 | N42: 0.75456621 | O42: 0.07305936073 | P42: 0.05707762557
A43: D | B43: 3 | C43: 23 | D43: 6.8 | E43: none | F43: 60 | G43: 1.5 | H43: 745 | I43: 99 | J43: 630 | K43: 13 | L43: 2 | M43: 0.132885906 | N43: 0.8456375839 | O43: 0.01744966443 | P43: 0.002684563758
A44: D | B44: 3 | C44: 23 | D44: 6.8 | E44: 45 | F44: 60 | G44: 1.5 | H44: 745 | I44: 101 | J44: 580 | K44: 16 | L44: 48 | M44: 0.1355704698 | N44: 0.7785234899 | O44: 0.02147651007 | P44: 0.0644295302
A45: D | B45: 3 | C45: 23 | D45: 6.8 | E45: 45 | F45: 40 | G45: 1.5 | H45: 745 | I45: 101 | J45: 574 | K45: 22 | L45: 48 | M45: 0.1355704698 | N45: 0.7704697987 | O45: 0.02953020134 | P45: 0.0644295302
A46: D | B46: 3 | C46: 23 | D46: 6.8 | E46: 45 | F46: 20 | G46: 1.5 | H46: 745 | I46: 101 | J46: 558 | K46: 36 | L46: 50 | M46: 0.1355704698 | N46: 0.7489932886 | O46: 0.04832214765 | P46: 0.06711409396
A47: D | B47: 3 | C47: 23 | D47: 5.1 | E47: none | F47: 60 | G47: 2 | H47: 585 | I47: 99 | J47: 480 | K47: 5 | L47: 2 | M47: 0.1692307692 | N47: 0.8205128205 | O47: 0.008547008547 | P47: 0.003418803419
A48: D | B48: 3 | C48: 23 | D48: 5.1 | E48: 45 | F48: 60 | G48: 2 | H48: 585 | I48: 101 | J48: 432 | K48: 6 | L48: 47 | M48: 0.1726495726 | N48: 0.7384615385 | O48: 0.01025641026 | P48: 0.08034188034
A49: D | B49: 3 | C49: 23 | D49: 5.1 | E49: 45 | F49: 40 | G49: 2 | H49: 585 | I49: 101 | J49: 428 | K49: 9 | L49: 47 | M49: 0.1726495726 | N49: 0.7316239316 | O49: 0.01538461538 | P49: 0.08034188034
A50: D | B50: 3 | C50: 23 | D50: 5.1 | E50: 45 | F50: 20 | G50: 2 | H50: 585 | I50: 101 | J50: 422 | K50: 14 | L50: 48 | M50: 0.1726495726 | N50: 0.7213675214 | O50: 0.02393162393 | P50: 0.08205128205

Sheet D-4ft (hidden)
H1: Runoff | I1: ET | J1: Drainage | K1: Overflow | L1: Exfiltration
A2: Soil Type | B2: Media Depth | C2: Surf Storage | D2: Area Ratio | E2: Top of IWS | F2: DC | G2: Area Ratio | H2: Rainfall | I2: ET | J2: Drainage | K2: Runoff | L2: VertSeepage | M2: ET | N2: Drainage | O2: Overflow | P2: Exfiltration
A3: D | B3: 4 | C3: 30 | D3: 28 | E3: none | F3: 60 | G3: 0.5 | H3: 2734 | I3: 101 | J3: 2007 | K3: 620 | L3: 6 | M3: =I3/H3 -> 0.03694220922 | N3: =J3/H3 -> 0.7340892465 | O3: =K3/H3 -> 0.2267739576 | P3: =L3/H3 -> 0.002194586686
A4: D | B4: 4 | C4: 30 | D4: 28 | E4: 45 | F4: 60 | G4: 0.5 | H4: 2734 | I4: 101 | J4: 1856 | K4: 705 | L4: 72 | M4: 0.03694220922 | N4: 0.6788588149 | O4: 0.2578639356 | P4: 0.02633504023
A5: D | B5: 4 | C5: 30 | D5: 28 | E5: 45 | F5: 40 | G5: 0.5 | H5: 2734 | I5: 101 | J5: 1732 | K5: 827 | L5: 74 | M5: 0.03694220922 | N5: 0.6335040234 | O5: 0.3024871982 | P5: 0.02706656913
A6: D | B6: 4 | C6: 30 | D6: 28 | E6: 45 | F6: 20 | G6: 0.5 | H6: 2734 | I6: 101 | J6: 1531 | K6: 1025 | L6: 77 | M6: 0.03694220922 | N6: 0.5599853694 | O6: 0.3749085589 | P6: 0.02816386247
A7: D | B7: 4 | C7: 30 | D7: 18.7 | E7: none | F7: 60 | G7: 0.75 | H7: 1861 | I7: 101 | J7: 1537 | K7: 218 | L7: 6 | M7: 0.05427189683 | N7: 0.8259000537 | O7: 0.1171413219 | P7: 0.003224073079
A8: D | B8: 4 | C8: 30 | D8: 18.7 | E8: 45 | F8: 60 | G8: 0.75 | H8: 1861 | I8: 101 | J8: 1433 | K8: 256 | L8: 71 | M8: 0.05427189683 | N8: 0.7700161204 | O8: 0.1375604514 | P8: 0.03815153143
A9: D | B9: 4 | C9: 30 | D9: 18.7 | E9: 45 | F9: 40 | G9: 0.75 | H9: 1861 | I9: 101 | J9: 1367 | K9: 321 | L9: 72 | M9: 0.05427189683 | N9: 0.7345513165 | O9: 0.1724879097 | P9: 0.03868887695
A10: D | B10: 4 | C10: 30 | D10: 18.7 | E10: 45 | F10: 20 | G10: 0.75 | H10: 1861 | I10: 101 | J10: 1253 | K10: 432 | L10: 75 | M10: 0.05427189683 | N10: 0.673293928 | O10: 0.2321332617 | P10: 0.04030091349
A11: D | B11: 4 | C11: 30 | D11: 14 | E11: none | F11: 60 | G11: 1 | H11: 1420 | I11: 101 | J11: 1223 | K11: 91 | L11: 5 | M11: 0.07112676056 | N11: 0.8612676056 | O11: 0.06408450704 | P11: 0.003521126761
A12: D | B12: 4 | C12: 30 | D12: 14 | E12: 45 | F12: 60 | G12: 1 | H12: 1420 | I12: 101 | J12: 1140 | K12: 109 | L12: 70 | M12: 0.07112676056 | N12: 0.8028169014 | O12: 0.07676056338 | P12: 0.04929577465
A13: D | B13: 4 | C13: 30 | D13: 14 | E13: 45 | F13: 40 | G13: 1 | H13: 1420 | I13: 101 | J13: 1106 | K13: 142 | L13: 71 | M13: 0.07112676056 | N13: 0.7788732394 | O13: 0.1 | P13: 0.05
A14: D | B14: 4 | C14: 30 | D14: 14 | E14: 45 | F14: 20 | G14: 1 | H14: 1420 | I14: 101 | J14: 1039 | K14: 206 | L14: 74 | M14: 0.07112676056 | N14: 0.7316901408 | O14: 0.1450704225 | P14: 0.05211267606
A15: D | B15: 4 | C15: 30 | D15: 11.2 | E15: none | F15: 60 | G15: 1.25 | H15: 1158 | I15: 101 | J15: 1008 | K15: 44 | L15: 5 | M15: 0.0872193437 | N15: 0.8704663212 | O15: 0.03799654577 | P15: 0.004317789292
A16: D | B16: 4 | C16: 30 | D16: 11.2 | E16: 45 | F16: 60 | G16: 1.25 | H16: 1158 | I16: 101 | J16: 934 | K16: 52 | L16: 69 | M16: 0.0872193437 | N16: 0.8065630397 | O16: 0.04490500864 | P16: 0.05958549223
A17: D | B17: 4 | C17: 30 | D17: 11.2 | E17: 45 | F17: 40 | G17: 1.25 | H17: 1158 | I17: 101 | J17: 914 | K17: 72 | L17: 70 | M17: 0.0872193437 | N17: 0.7892918826 | O17: 0.0621761658 | P17: 0.06044905009
A18: D | B18: 4 | C18: 30 | D18: 11.2 | E18: 45 | F18: 20 | G18: 1.25 | H18: 1158 | I18: 101 | J18: 875 | K18: 109 | L18: 73 | M18: 0.0872193437 | N18: 0.7556131261 | O18: 0.09412780656 | P18: 0.06303972366
A19: D | B19: 4 | C19: 30 | D19: 9.3 | E19: none | F19: 60 | G19: 1.5 | H19: 979 | I19: 101 | J19: 851 | K19: 24 | L19: 5 | M19: 0.1031664964 | N19: 0.8692543412 | O19: 0.02451481103 | P19: 0.005107252298
A20: D | B20: 4 | C20: 30 | D20: 9.3 | E20: 45 | F20: 60 | G20: 1.5 | H20: 979 | I20: 101 | J20: 780 | K20: 29 | L20: 69 | M20: 0.1031664964 | N20: 0.7967313585 | O20: 0.02962206333 | P20: 0.07048008172
A21: D | B21: 4 | C21: 30 | D21: 9.3 | E21: 45 | F21: 40 | G21: 1.5 | H21: 979 | I21: 101 | J21: 769 | K21: 40 | L21: 70 | M21: 0.1031664964 | N21: 0.7854954035 | O21: 0.04085801839 | P21: 0.07150153218
A22: D | B22: 4 | C22: 30 | D22: 9.3 | E22: 45 | F22: 20 | G22: 1.5 | H22: 979 | I22: 101 | J22: 745 | K22: 62 | L22: 72 | M22: 0.1031664964 | N22: 0.7609805924 | O22: 0.0633299285 | P22: 0.07354443309
A23: D | B23: 4 | C23: 30 | D23: 7 | E23: none | F23: 60 | G23: 2 | H23: 764 | I23: 101 | J23: 650 | K23: 9 | L23: 4 | M23: 0.1321989529 | N23: 0.8507853403 | O23: 0.01178010471 | P23: 0.005235602094
A24: D | B24: 4 | C24: 30 | D24: 7 | E24: 45 | F24: 60 | G24: 2 | H24: 764 | I24: 101 | J24: 584 | K24: 11 | L24: 68 | M24: 0.1321989529 | N24: 0.7643979058 | O24: 0.01439790576 | P24: 0.0890052356
A25: D | B25: 4 | C25: 30 | D25: 7 | E25: 45 | F25: 40 | G25: 2 | H25: 764 | I25: 101 | J25: 579 | K25: 15 | L25: 68 | M25: 0.1321989529 | N25: 0.7578534031 | O25: 0.01963350785 | P25: 0.0890052356
A26: D | B26: 4 | C26: 30 | D26: 7 | E26: 45 | F26: 20 | G26: 2 | H26: 764 | I26: 101 | J26: 568 | K26: 25 | L26: 70 | M26: 0.1321989529 | N26: 0.7434554974 | O26: 0.03272251309 | P26: 0.09162303665
A27: D | B27: 4 | C27: 23 | D27: 20.4 | E27: none | F27: 60 | G27: 0.5 | H27: 2021 | I27: 101 | J27: 1559 | K27: 355 | L27: 6 | M27: 0.04997525977 | N27: 0.7714002969 | O27: 0.175655616 | P27: 0.002968827313
A28: D | B28: 4 | C28: 23 | D28: 20.4 | E28: 45 | F28: 60 | G28: 0.5 | H28: 2021 | I28: 101 | J28: 1435 | K28: 414 | L28: 71 | M28: 0.04997525977 | N28: 0.7100445324 | O28: 0.2048490846 | P28: 0.03513112321
A29: D | B29: 4 | C29: 23 | D29: 20.4 | E29: 45 | F29: 40 | G29: 0.5 | H29: 2021 | I29: 101 | J29: 1342 | K29: 505 | L29: 72 | M29: 0.04997525977 | N29: 0.6640277091 | O29: 0.2498762989 | P29: 0.03562592776
A30: D | B30: 4 | C30: 23 | D30: 20.4 | E30: 45 | F30: 20 | G30: 0.5 | H30: 2021 | I30: 101 | J30: 1197 | K30: 647 | L30: 75 | M30: 0.04997525977 | N30: 0.592281049 | O30: 0.3201385453 | P30: 0.03711034142
A31: D | B31: 4 | C31: 23 | D31: 13.6 | E31: none | F31: 60 | G31: 0.75 | H31: 1383 | I31: 101 | J31: 1161 | K31: 116 | L31: 5 | M31: 0.0730296457 | N31: 0.8394793926 | O31: 0.08387563268 | P31: 0.003615328995
A32: D | B32: 4 | C32: 23 | D32: 13.6 | E32: 45 | F32: 60 | G32: 0.75 | H32: 1383 | I32: 101 | J32: 1073 | K32: 139 | L32: 70 | M32: 0.0730296457 | N32: 0.7758496023 | O32: 0.1005061461 | P32: 0.05061460593
A33: D | B33: 4 | C33: 23 | D33: 13.6 | E33: 45 | F33: 40 | G33: 0.75 | H33: 1383 | I33: 101 | J33: 1028 | K33: 183 | L33: 71 | M33: 0.0730296457 | N33: 0.7433116414 | O33: 0.1323210412 | P33: 0.05133767173
A34: D | B34: 4 | C34: 23 | D34: 13.6 | E34: 45 | F34: 20 | G34: 0.75 | H34: 1383 | I34: 101 | J34: 952 | K34: 257 | L34: 73 | M34: 0.0730296457 | N34: 0.6883586406 | O34: 0.1858279103 | P34: 0.05278380333
A35: D | B35: 4 | C35: 23 | D35: 10.2 | E35: none | F35: 60 | G35: 1 | H35: 1064 | I35: 101 | J35: 910 | K35: 48 | L35: 5 | M35: 0.09492481203 | N35: 0.8552631579 | O35: 0.04511278195 | P35: 0.00469924812
A36: D | B36: 4 | C36: 23 | D36: 10.2 | E36: 45 | F36: 60 | G36: 1 | H36: 1064 | I36: 101 | J36: 835 | K36: 59 | L36: 69 | M36: 0.09492481203 | N36: 0.7847744361 | O36: 0.05545112782 | P36: 0.06484962406
A37: D | B37: 4 | C37: 23 | D37: 10.2 | E37: 45 | F37: 40 | G37: 1 | H37: 1064 | I37: 101 | J37: 814 | K37: 79 | L37: 70 | M37: 0.09492481203 | N37: 0.765037594 | O37: 0.0742481203 | P37: 0.06578947368
A38: D | B38: 4 | C38: 23 | D38: 10.2 | E38: 45 | F38: 20 | G38: 1 | H38: 1064 | I38: 101 | J38: 772 | K38: 119 | L38: 72 | M38: 0.09492481203 | N38: 0.7255639098 | O38: 0.1118421053 | P38: 0.06766917293
A39: D | B39: 4 | C39: 23 | D39: 8.2 | E39: none | F39: 60 | G39: 1.25 | H39: 876 | I39: 101 | J39: 748 | K39: 23 | L39: 4 | M39: 0.1152968037 | N39: 0.8538812785 | O39: 0.02625570776 | P39: 0.004566210046
A40: D | B40: 4 | C40: 23 | D40: 8.2 | E40: 45 | F40: 60 | G40: 1.25 | H40: 876 | I40: 101 | J40: 677 | K40: 29 | L40: 68 | M40: 0.1152968037 | N40: 0.7728310502 | O40: 0.03310502283 | P40: 0.07762557078
A41: D | B41: 4 | C41: 23 | D41: 8.2 | E41: 45 | F41: 40 | G41: 1.25 | H41: 876 | I41: 101 | J41: 665 | K41: 40 | L41: 69 | M41: 0.1152968037 | N41: 0.7591324201 | O41: 0.04566210046 | P41: 0.07876712329
A42: D | B42: 4 | C42: 23 | D42: 8.2 | E42: 45 | F42: 20 | G42: 1.25 | H42: 876 | I42: 101 | J42: 641 | K42: 63 | L42: 71 | M42: 0.1152968037 | N42: 0.7317351598 | O42: 0.07191780822 | P42: 0.08105022831
A43: D | B43: 4 | C43: 23 | D43: 6.8 | E43: none | F43: 60 | G43: 1.5 | H43: 745 | I43: 101 | J43: 628 | K43: 13 | L43: 4 | M43: 0.1355704698 | N43: 0.8429530201 | O43: 0.01744966443 | P43: 0.005369127517
A44: D | B44: 4 | C44: 23 | D44: 6.8 | E44: 45 | F44: 60 | G44: 1.5 | H44: 745 | I44: 101 | J44: 560 | K44: 16 | L44: 68 | M44: 0.1355704698 | N44: 0.7516778523 | O44: 0.02147651007 | P44: 0.09127516779
A45: D | B45: 4 | C45: 23 | D45: 6.8 | E45: 45 | F45: 40 | G45: 1.5 | H45: 745 | I45: 101 | J45: 554 | K45: 21 | L45: 68 | M45: 0.1355704698 | N45: 0.7436241611 | O45: 0.02818791946 | P45: 0.09127516779
A46: D | B46: 4 | C46: 23 | D46: 6.8 | E46: 45 | F46: 20 | G46: 1.5 | H46: 745 | I46: 101 | J46: 539 | K46: 35 | L46: 70 | M46: 0.1355704698 | N46: 0.7234899329 | O46: 0.04697986577 | P46: 0.09395973154
A47: D | B47: 4 | C47: 23 | D47: 5.1 | E47: none | F47: 60 | G47: 2 | H47: 585 | I47: 101 | J47: 477 | K47: 4 | L47: 4 | M47: 0.1726495726 | N47: 0.8153846154 | O47: 0.006837606838 | P47: 0.006837606838
A48: D | B48: 4 | C48: 23 | D48: 5.1 | E48: 45 | F48: 60 | G48: 2 | H48: 585 | I48: 101 | J48: 411 | K48: 7 | L48: 66 | M48: 0.1726495726 | N48: 0.7025641026 | O48: 0.01196581197 | P48: 0.1128205128
A49: D | B49: 4 | C49: 23 | D49: 5.1 | E49: 45 | F49: 40 | G49: 2 | H49: 585 | I49: 101 | J49: 409 | K49: 9 | L49: 67 | M49: 0.1726495726 | N49: 0.6991452991 | O49: 0.01538461538 | P49: 0.1145299145
A50: D | B50: 4 | C50: 23 | D50: 5.1 | E50: 45 | F50: 20 | G50: 2 | H50: 585 | I50: 101 | J50: 403 | K50: 13 | L50: 68 | M50: 0.1726495726 | N50: 0.6888888889 | O50: 0.02222222222 | P50: 0.1162393162

Sheet D-5ft (hidden)
H1: Runoff | I1: ET | J1: Drainage | K1: Overflow | L1: Exfiltration
A2: Soil Type | B2: Media Depth | C2: Surf Storage | D2: Area Ratio | E2: Top of IWS | F2: DC | G2: Area Ratio | H2: Rainfall | I2: ET | J2: Drainage | K2: Runoff | L2: VertSeepage | M2: ET | N2: Drainage | O2: Overflow | P2: Exfiltration
A3: D | B3: 5 | C3: 30 | D3: 28 | E3: none | F3: 60 | G3: 0.5 | H3: 2734 | I3: 100 | J3: 2014 | K3: 615 | L3: 5 | M3: =I3/H3 -> 0.03657644477 | N3: =J3/H3 -> 0.7366495977 | O3: =K3/H3 -> 0.2249451353 | P3: =L3/H3 -> 0.001828822238
A4: D | B4: 5 | C4: 30 | D4: 28 | E4: 45 | F4: 60 | G4: 0.5 | H4: 2734 | I4: 101 | J4: 1839 | K4: 701 | L4: 93 | M4: 0.03694220922 | N4: 0.6726408193 | O4: 0.2564008778 | P4: 0.03401609364
A5: D | B5: 5 | C5: 30 | D5: 28 | E5: 45 | F5: 40 | G5: 0.5 | H5: 2734 | I5: 101 | J5: 1720 | K5: 819 | L5: 94 | M5: 0.03694220922 | N5: 0.62911485 | O5: 0.2995610827 | P5: 0.03438185808
A6: D | B6: 5 | C6: 30 | D6: 28 | E6: 45 | F6: 20 | G6: 0.5 | H6: 2734 | I6: 101 | J6: 1514 | K6: 1021 | L6: 98 | M6: 0.03694220922 | N6: 0.5537673738 | O6: 0.3734455011 | P6: 0.03584491587
A7: D | B7: 5 | C7: 30 | D7: 18.7 | E7: none | F7: 60 | G7: 0.75 | H7: 1861 | I7: 100 | J7: 1542 | K7: 215 | L7: 4 | M7: 0.05373455132 | N7: 0.8285867813 | O7: 0.1155292853 | P7: 0.002149382053
A8: D | B8: 5 | C8: 30 | D8: 18.7 | E8: 45 | F8: 60 | G8: 0.75 | H8: 1861 | I8: 101 | J8: 1414 | K8: 255 | L8: 92 | M8: 0.05427189683 | N8: 0.7598065556 | O8: 0.1370231059 | P8: 0.04943578721
A9: D | B9: 5 | C9: 30 | D9: 18.7 | E9: 45 | F9: 40 | G9: 0.75 | H9: 1861 | I9: 101 | J9: 1351 | K9: 316 | L9: 93 | M9: 0.05427189683 | N9: 0.7259537883 | O9: 0.1698011822 | P9: 0.04997313272
A10: D | B10: 5 | C10: 30 | D10: 18.7 | E10: 45 | F10: 20 | G10: 0.75 | H10: 1861 | I10: 101 | J10: 1236 | K10: 428 | L10: 96 | M10: 0.05427189683 | N10: 0.6641590543 | O10: 0.2299838796 | P10: 0.05158516926
A11: D | B11: 5 | C11: 30 | D11: 14 | E11: none | F11: 60 | G11: 1 | H11: 1420 | I11: 100 | J11: 1227 | K11: 90 | L11: 4 | M11: 0.07042253521 | N11: 0.864084507 | O11: 0.06338028169 | P11: 0.002816901408
A12: D | B12: 5 | C12: 30 | D12: 14 | E12: 45 | F12: 60 | G12: 1 | H12: 1420 | I12: 101 | J12: 1120 | K12: 108 | L12: 91 | M12: 0.07112676056 | N12: 0.7887323944 | O12: 0.07605633803 | P12: 0.06408450704
A13: D | B13: 5 | C13: 30 | D13: 14 | E13: 45 | F13: 40 | G13: 1 | H13: 1420 | I13: 101 | J13: 1088 | K13: 140 | L13: 92 | M13: 0.07112676056 | N13: 0.7661971831 | O13: 0.0985915493 | P13: 0.06478873239
A14: D | B14: 5 | C14: 30 | D14: 14 | E14: 45 | F14: 20 | G14: 1 | H14: 1420 | I14: 101 | J14: 1021 | K14: 204 | L14: 94 | M14: 0.07112676056 | N14: 0.7190140845 | O14: 0.1436619718 | P14: 0.0661971831
A15: D | B15: 5 | C15: 30 | D15: 11.2 | E15: none | F15: 60 | G15: 1.25 | H15: 1158 | I15: 100 | J15: 1011 | K15: 44 | L15: 3 | M15: 0.08635578584 | N15: 0.8730569948 | O15: 0.03799654577 | P15: 0.002590673575
A16: D | B16: 5 | C16: 30 | D16: 11.2 | E16: 45 | F16: 60 | G16: 1.25 | H16: 1158 | I16: 101 | J16: 914 | K16: 53 | L16: 90 | M16: 0.0872193437 | N16: 0.7892918826 | O16: 0.04576856649 | P16: 0.07772020725
A17: D | B17: 5 | C17: 30 | D17: 11.2 | E17: 45 | F17: 40 | G17: 1.25 | H17: 1158 | I17: 101 | J17: 895 | K17: 71 | L17: 91 | M17: 0.0872193437 | N17: 0.7728842832 | O17: 0.06131260794 | P17: 0.07858376511
A18: D | B18: 5 | C18: 30 | D18: 11.2 | E18: 45 | F18: 20 | G18: 1.25 | H18: 1158 | I18: 101 | J18: 856 | K18: 108 | L18: 93 | M18: 0.0872193437 | N18: 0.7392055268 | O18: 0.0932642487 | P18: 0.08031088083
A19: D | B19: 5 | C19: 30 | D19: 9.3 | E19: none | F19: 60 | G19: 1.5 | H19: 979 | I19: 99 | J19: 854 | K19: 23 | L19: 3 | M19: 0.1011235955 | N19: 0.8723186925 | O19: 0.02349336057 | P19: 0.003064351379
A20: D | B20: 5 | C20: 30 | D20: 9.3 | E20: 45 | F20: 60 | G20: 1.5 | H20: 979 | I20: 101 | J20: 760 | K20: 29 | L20: 89 | M20: 0.1031664964 | N20: 0.7763023493 | O20: 0.02962206333 | P20: 0.09090909091
A21: D | B21: 5 | C21: 30 | D21: 9.3 | E21: 45 | F21: 40 | G21: 1.5 | H21: 979 | I21: 101 | J21: 750 | K21: 39 | L21: 90 | M21: 0.1031664964 | N21: 0.7660878447 | O21: 0.03983656793 | P21: 0.09193054137
A22: D | B22: 5 | C22: 30 | D22: 9.3 | E22: 45 | F22: 20 | G22: 1.5 | H22: 979 | I22: 101 | J22: 725 | K22: 61 | L22: 92 | M22: 0.1031664964 | N22: 0.7405515832 | O22: 0.06230847804 | P22: 0.09397344229
A23: D | B23: 5 | C23: 30 | D23: 7 | E23: none | F23: 60 | G23: 2 | H23: 764 | I23: 99 | J23: 654 | K23: 9 | L23: 3 | M23: 0.1295811518 | N23: 0.8560209424 | O23: 0.01178010471 | P23: 0.003926701571
A24: D | B24: 5 | C24: 30 | D24: 7 | E24: 45 | F24: 60 | G24: 2 | H24: 764 | I24: 101 | J24: 564 | K24: 11 | L24: 88 | M24: 0.1321989529 | N24: 0.7382198953 | O24: 0.01439790576 | P24: 0.1151832461
A25: D | B25: 5 | C25: 30 | D25: 7 | E25: 45 | F25: 40 | G25: 2 | H25: 764 | I25: 101 | J25: 559 | K25: 15 | L25: 89 | M25: 0.1321989529 | N25: 0.7316753927 | O25: 0.01963350785 | P25: 0.1164921466
A26: D | B26: 5 | C26: 30 | D26: 7 | E26: 45 | F26: 20 | G26: 2 | H26: 764 | I26: 101 | J26: 548 | K26: 24 | L26: 90 | M26: 0.1321989529 | N26: 0.7172774869 | O26: 0.03141361257 | P26: 0.1178010471
A27: D | B27: 5 | C27: 23 | D27: 20.4 | E27: none | F27: 60 | G27: 0.5 | H27: 2021 | I27: 100 | J27: 1565 | K27: 352 | L27: 4 | M27: 0.04948045522 | N27: 0.7743691242 | O27: 0.1741712024 | P27: 0.001979218209
A28: D | B28: 5 | C28: 23 | D28: 20.4 | E28: 45 | F28: 60 | G28: 0.5 | H28: 2021 | I28: 101 | J28: 1417 | K28: 411 | L28: 92 | M28: 0.04997525977 | N28: 0.7011380505 | O28: 0.203364671 | P28: 0.0455220188
A29: D | B29: 5 | C29: 23 | D29: 20.4 | E29: 45 | F29: 40 | G29: 0.5 | H29: 2021 | I29: 101 | J29: 1326 | K29: 501 | L29: 93 | M29: 0.04997525977 | N29: 0.6561108362 | O29: 0.2478970807 | P29: 0.04601682335
A30: D | B30: 5 | C30: 23 | D30: 20.4 | E30: 45 | F30: 20 | G30: 0.5 | H30: 2021 | I30: 101 | J30: 1181 | K30: 643 | L30: 96 | M30: 0.04997525977 | N30: 0.5843641762 | O30: 0.3181593271 | P30: 0.04750123701
A31: D | B31: 5 | C31: 23 | D31: 13.6 | E31: none | F31: 60 | G31: 0.75 | H31: 1383 | I31: 100 | J31: 1165 | K31: 115 | L31: 4 | M31: 0.0723065799 | N31: 0.8423716558 | O31: 0.08315256688 | P31: 0.002892263196
A32: D | B32: 5 | C32: 23 | D32: 13.6 | E32: 45 | F32: 60 | G32: 0.75 | H32: 1383 | I32: 101 | J32: 1053 | K32: 139 | L32: 90 | M32: 0.0730296457 | N32: 0.7613882863 | O32: 0.1005061461 | P32: 0.06507592191
A33: D | B33: 5 | C33: 23 | D33: 13.6 | E33: 45 | F33: 40 | G33: 0.75 | H33: 1383 | I33: 101 | J33: 1010 | K33: 180 | L33: 92 | M33: 0.0730296457 | N33: 0.730296457 | O33: 0.1301518438 | P33: 0.06652205351
A34: D | B34: 5 | C34: 23 | D34: 13.6 | E34: 45 | F34: 20 | G34: 0.75 | H34: 1383 | I34: 101 | J34: 934 | K34: 254 | L34: 94 | M34: 0.0730296457 | N34: 0.6753434563 | O34: 0.1836587129 | P34: 0.0679681851
A35: D | B35: 5 | C35: 23 | D35: 10.2 | E35: none | F35: 60 | G35: 1 | H35: 1064 | I35: 100 | J35: 914 | K35: 47 | L35: 3 | M35: 0.09398496241 | N35: 0.8590225564 | O35: 0.04417293233 | P35: 0.002819548872
A36: D | B36: 5 | C36: 23 | D36: 10.2 | E36: 45 | F36: 60 | G36: 1 | H36: 1064 | I36: 101 | J36: 814 | K36: 59 | L36: 89 | M36: 0.09492481203 | N36: 0.765037594 | O36: 0.05545112782 | P36: 0.08364661654
A37: D | B37: 5 | C37: 23 | D37: 10.2 | E37: 45 | F37: 40 | G37: 1 | H37: 1064 | I37: 101 | J37: 795 | K37: 78 | L37: 90 | M37: 0.09492481203 | N37: 0.7471804511 | O37: 0.07330827068 | P37: 0.08458646617
A38: D | B38: 5 | C38: 23 | D38: 10.2 | E38: 45 | F38: 20 | G38: 1 | H38: 1064 | I38: 101 | J38: 753 | K38: 117 | L38: 92 | M38: 0.09492481203 | N38: 0.7077067669 | O38: 0.109962406 | P38: 0.08646616541
A39: D | B39: 5 | C39: 23 | D39: 8.2 | E39: none | F39: 60 | G39: 1.25 | H39: 876 | I39: 99 | J39: 751 | K39: 23 | L39: 3 | M39: 0.1130136986 | N39: 0.8573059361 | O39: 0.02625570776 | P39: 0.003424657534
A40: D | B40: 5 | C40: 23 | D40: 8.2 | E40: 45 | F40: 60 | G40: 1.25 | H40: 876 | I40: 101 | J40: 658 | K40: 29 | L40: 89 | M40: 0.1152968037 | N40: 0.7511415525 | O40: 0.03310502283 | P40: 0.1015981735
A41: D | B41: 5 | C41: 23 | D41: 8.2 | E41: 45 | F41: 40 | G41: 1.25 | H41: 876 | I41: 101 | J41: 646 | K41: 40 | L41: 89 | M41: 0.1152968037 | N41: 0.7374429224 | O41: 0.04566210046 | P41: 0.1015981735
A42: D | B42: 5 | C42: 23 | D42: 8.2 | E42: 45 | F42: 20 | G42: 1.25 | H42: 876 | I42: 101 | J42: 623 | K42: 61 | L42: 91 | M42: 0.1152968037 | N42: 0.7111872146 | O42: 0.0696347032 | P42: 0.1038812785
A43: D | B43: 5 | C43: 23 | D43: 6.8 | E43: none | F43: 60 | G43: 1.5 | H43: 745 | I43: 99 | J43: 631 | K43: 12 | L43: 3 | M43: 0.132885906 | N43: 0.8469798658 | O43: 0.01610738255 | P43: 0.004026845638
A44: D | B44: 5 | C44: 23 | D44: 6.8 | E44: 45 | F44: 60 | G44: 1.5 | H44: 745 | I44: 101 | J44: 540 | K44: 16 | L44: 88 | M44: 0.1355704698 | N44: 0.7248322148 | O44: 0.02147651007 | P44: 0.1181208054
A45: D | B45: 5 | C45: 23 | D45: 6.8 | E45: 45 | F45: 40 | G45: 1.5 | H45: 745 | I45: 101 | J45: 534 | K45: 21 | L45: 88 | M45: 0.1355704698 | N45: 0.7167785235 | O45: 0.02818791946 | P45: 0.1181208054
A46: D | B46: 5 | C46: 23 | D46: 6.8 | E46: 45 | F46: 20 | G46: 1.5 | H46: 745 | I46: 101 | J46: 519 | K46: 35 | L46: 90 | M46: 0.1355704698 | N46: 0.6966442953 | O46: 0.04697986577 | P46: 0.1208053691
A47: D | B47: 5 | C47: 23 | D47: 5.1 | E47: none | F47: 60 | G47: 2 | H47: 585 | I47: 99 | J47: 480 | K47: 4 | L47: 2 | M47: 0.1692307692 | N47: 0.8205128205 | O47: 0.006837606838 | P47: 0.003418803419
A48: D | B48: 5 | C48: 23 | D48: 5.1 | E48: 45 | F48: 60 | G48: 2 | H48: 585 | I48: 101 | J48: 392 | K48: 7 | L48: 86 | M48: 0.1726495726 | N48: 0.6700854701 | O48: 0.01196581197 | P48: 0.147008547
A49: D | B49: 5 | C49: 23 | D49: 5.1 | E49: 45 | F49: 40 | G49: 2 | H49: 585 | I49: 101 | J49: 390 | K49: 8 | L49: 87 | M49: 0.1726495726 | N49: 0.6666666667 | O49: 0.01367521368 | P49: 0.1487179487
A50: D | B50: 5 | C50: 23 | D50: 5.1 | E50: 45 | F50: 20 | G50: 2 | H50: 585 | I50: 101 | J50: 384 | K50: 13 | L50: 88 | M50: 0.1726495726 | N50: 0.6564102564 | O50: 0.02222222222 | P50: 0.1504273504
